Departmental Family,Entity,Date,Expense Type,Expense Area,Supplier,Transaction Number,Amount
Department of Health,Department of Health,01/06/2011,Outsourcing Contract,COMMISSIONING,POHWER,SINV501,354709
Department of Health,Department of Health,01/06/2011,Rates,FINANCE & OPERATIONS (DM),DEPARTMENT FOR WORK AND PENSIONS (DWP),5023966,112233.6
Department of Health,Department of Health,01/06/2011,Rent of Land & Buildings (non-PFI operating lease),FINANCE & OPERATIONS (DM),DEPARTMENT FOR WORK AND PENSIONS (DWP),5023966,484377.1
Department of Health,Department of Health,01/06/2011,Utilities,FINANCE & OPERATIONS (DM),DEPARTMENT FOR WORK AND PENSIONS (DWP),5023966,40526.48
Department of Health,Department of Health,01/06/2011,CASH FUNDING Rev Inside RAB,FINANCE & OPERATIONS (DM),"ASHTON, LEIGH & WIGAN PCT",HAFS-10708,44000000
Department of Health,Department of Health,01/06/2011,CASH FUNDING Rev Inside RAB,FINANCE & OPERATIONS (DM),BARKING AND DAGENHAM PCT,HAFS-10709,23500000
Department of Health,Department of Health,01/06/2011,CASH FUNDING Rev Inside RAB,FINANCE & OPERATIONS (DM),BARNET PCT,HAFS-10710,35000000
Department of Health,Department of Health,01/06/2011,CASH FUNDING Rev Inside RAB,FINANCE & OPERATIONS (DM),BASSETLAW PCT,HAFS-10711,13300000
Department of Health,Department of Health,01/06/2011,CASH FUNDING Rev Inside RAB,FINANCE & OPERATIONS (DM),BATH & NORTH EAST SOMERSET PCT,HAFS-10712,18000000
Department of Health,Department of Health,01/06/2011,CASH FUNDING Rev Inside RAB,FINANCE & OPERATIONS (DM),BEDFORDSHIRE PCT,HAFS-10713,46000000
Department of Health,Department of Health,01/06/2011,CASH FUNDING Rev Inside RAB,FINANCE & OPERATIONS (DM),BERKSHIRE EAST PCT,HAFS-10714,43827000
Department of Health,Department of Health,01/06/2011,CASH FUNDING Rev Inside RAB,FINANCE & OPERATIONS (DM),BERKSHIRE WEST PCT,HAFS-10715,40500000
Department of Health,Department of Health,01/06/2011,CASH FUNDING Rev Inside RAB,FINANCE & OPERATIONS (DM),BEXLEY CARE TRUST,HAFS-10716,24000000
Department of Health,Department of Health,01/06/2011,CASH FUNDING Rev Inside RAB,FINANCE & OPERATIONS (DM),BIRMINGHAM EAST AND NORTH PCT,HAFS-10717,44000000
Department of Health,Department of Health,01/06/2011,CASH FUNDING Rev Inside RAB,FINANCE & OPERATIONS (DM),BLACKBURN AND DARWEN TEACHING CARE TRUST PLUS,HAFS-10718,16389000
Department of Health,Department of Health,01/06/2011,CASH FUNDING Rev Inside RAB,FINANCE & OPERATIONS (DM),BLACKPOOL PCT,HAFS-10719,16834000
Department of Health,Department of Health,01/06/2011,CASH FUNDING Rev Inside RAB,FINANCE & OPERATIONS (DM),BOLTON PCT,HAFS-10720,33000000
Department of Health,Department of Health,01/06/2011,CASH FUNDING Rev Inside RAB,FINANCE & OPERATIONS (DM),BOURNEMOUTH & POOLE PCT,HAFS-10721,39000000
Department of Health,Department of Health,01/06/2011,CASH FUNDING Rev Inside RAB,FINANCE & OPERATIONS (DM),BRADFORD AND AIREDALE PCT,HAFS-10722,59000000
Department of Health,Department of Health,01/06/2011,CASH FUNDING Rev Inside RAB,FINANCE & OPERATIONS (DM),BRENT TEACHING PCT,HAFS-10723,45000000
Department of Health,Department of Health,01/06/2011,CASH FUNDING Rev Inside RAB,FINANCE & OPERATIONS (DM),BRIGHTON & HOVE CITY TEACHING PCT,HAFS-10724,58000000
Department of Health,Department of Health,01/06/2011,CASH FUNDING Rev Inside RAB,FINANCE & OPERATIONS (DM),BRISTOL PCT,HAFS-10725,40000000
Department of Health,Department of Health,01/06/2011,CASH FUNDING Rev Inside RAB,FINANCE & OPERATIONS (DM),BROMLEY PCT,HAFS-10726,30500000
Department of Health,Department of Health,01/06/2011,CASH FUNDING Rev Inside RAB,FINANCE & OPERATIONS (DM),BUCKINGHAMSHIRE PCT,HAFS-10727,47500000
Department of Health,Department of Health,01/06/2011,CASH FUNDING Rev Inside RAB,FINANCE & OPERATIONS (DM),BURY PCT,HAFS-10728,23000000
Department of Health,Department of Health,01/06/2011,CASH FUNDING Rev Inside RAB,FINANCE & OPERATIONS (DM),CALDERDALE PCT,HAFS-10729,25000000
Department of Health,Department of Health,01/06/2011,CASH FUNDING Rev Inside RAB,FINANCE & OPERATIONS (DM),CAMBRIDGESHIRE PCT,HAFS-10730,65000000
Department of Health,Department of Health,01/06/2011,CASH FUNDING Rev Inside RAB,FINANCE & OPERATIONS (DM),CAMDEN PCT,HAFS-10731,20000000
Department of Health,Department of Health,01/06/2011,CASH FUNDING Rev Inside RAB,FINANCE & OPERATIONS (DM),CENTRAL & EASTERN CHESHIRE PCT,HAFS-10732,48000000
Department of Health,Department of Health,01/06/2011,CASH FUNDING Rev Inside RAB,FINANCE & OPERATIONS (DM),CENTRAL LANCASHIRE PCT,HAFS-10733,55000000
Department of Health,Department of Health,01/06/2011,CASH FUNDING Rev Inside RAB,FINANCE & OPERATIONS (DM),CITY AND HACKNEY TEACHING PCT,HAFS-10734,42000000
Department of Health,Department of Health,01/06/2011,CASH FUNDING Rev Inside RAB,FINANCE & OPERATIONS (DM),CORNWALL & ISLES OF SCILLY PCT,HAFS-10735,64300000
Department of Health,Department of Health,01/06/2011,CASH FUNDING Rev Inside RAB,FINANCE & OPERATIONS (DM),COUNTY DURHAM PCT,HAFS-10736,74528000
Department of Health,Department of Health,01/06/2011,CASH FUNDING Rev Inside RAB,FINANCE & OPERATIONS (DM),COVENTRY TEACHING PCT,HAFS-10737,40000000
Department of Health,Department of Health,01/06/2011,CASH FUNDING Rev Inside RAB,FINANCE & OPERATIONS (DM),CROYDON PCT,HAFS-10738,35000000
Department of Health,Department of Health,01/06/2011,CASH FUNDING Rev Inside RAB,FINANCE & OPERATIONS (DM),CUMBRIA PCT,HAFS-10739,60000000
Department of Health,Department of Health,01/06/2011,CASH FUNDING Rev Inside RAB,FINANCE & OPERATIONS (DM),DARLINGTON PCT,HAFS-10740,14860000
Department of Health,Department of Health,01/06/2011,CASH FUNDING Rev Inside RAB,FINANCE & OPERATIONS (DM),DERBY CITY PCT,HAFS-10741,34000000
Department of Health,Department of Health,01/06/2011,CASH FUNDING Rev Inside RAB,FINANCE & OPERATIONS (DM),DERBYSHIRE COUNTY PCT,HAFS-10742,89000000
Department of Health,Department of Health,01/06/2011,CASH FUNDING Rev Inside RAB,FINANCE & OPERATIONS (DM),DEVON PCT,HAFS-10743,85000000
Department of Health,Department of Health,01/06/2011,CASH FUNDING Rev Inside RAB,FINANCE & OPERATIONS (DM),DONCASTER PCT,HAFS-10744,49000000
Department of Health,Department of Health,01/06/2011,CASH FUNDING Rev Inside RAB,FINANCE & OPERATIONS (DM),DORSET PCT,HAFS-10745,46000000
Department of Health,Department of Health,01/06/2011,CASH FUNDING Rev Inside RAB,FINANCE & OPERATIONS (DM),DUDLEY PCT,HAFS-10746,37000000
Department of Health,Department of Health,01/06/2011,CASH FUNDING Rev Inside RAB,FINANCE & OPERATIONS (DM),EALING PCT,HAFS-10747,44000000
Department of Health,Department of Health,01/06/2011,CASH FUNDING Rev Inside RAB,FINANCE & OPERATIONS (DM),EAST LANCASHIRE PCT,HAFS-10748,46800000
Department of Health,Department of Health,01/06/2011,CASH FUNDING Rev Inside RAB,FINANCE & OPERATIONS (DM),EAST MIDLANDS SHA,HAFS-10749,30000000
Department of Health,Department of Health,01/06/2011,CASH FUNDING Rev Inside RAB,FINANCE & OPERATIONS (DM),EAST OF ENGLAND SHA,HAFS-10750,40000000
Department of Health,Department of Health,01/06/2011,CASH FUNDING Rev Inside RAB,FINANCE & OPERATIONS (DM),EAST RIDING OF YORKSHIRE PCT,HAFS-10751,34500000
Department of Health,Department of Health,01/06/2011,CASH FUNDING Rev Inside RAB,FINANCE & OPERATIONS (DM),EAST SUSSEX DOWNS & WEALD PCT,HAFS-10752,45000000
Department of Health,Department of Health,01/06/2011,CASH FUNDING Rev Inside RAB,FINANCE & OPERATIONS (DM),EASTERN & COASTAL KENT PCT,HAFS-10753,90000000
Department of Health,Department of Health,01/06/2011,CASH FUNDING Rev Inside RAB,FINANCE & OPERATIONS (DM),ENFIELD PCT,HAFS-10754,35000000
Department of Health,Department of Health,01/06/2011,CASH FUNDING Rev Inside RAB,FINANCE & OPERATIONS (DM),GATESHEAD PCT,HAFS-10755,28000000
Department of Health,Department of Health,01/06/2011,CASH FUNDING Rev Inside RAB,FINANCE & OPERATIONS (DM),GLOUCESTERSHIRE PCT,HAFS-10756,70000000
Department of Health,Department of Health,01/06/2011,CASH FUNDING Rev Inside RAB,FINANCE & OPERATIONS (DM),GREAT YARMOUTH AND WAVENY PCT,HAFS-10757,26700000
Department of Health,Department of Health,01/06/2011,CASH FUNDING Rev Inside RAB,FINANCE & OPERATIONS (DM),GREENWICH TEACHING PCT,HAFS-10758,35000000
Department of Health,Department of Health,01/06/2011,CASH FUNDING Rev Inside RAB,FINANCE & OPERATIONS (DM),HALTON & ST HELENS PCT,HAFS-10759,45000000
Department of Health,Department of Health,01/06/2011,CASH FUNDING Rev Inside RAB,FINANCE & OPERATIONS (DM),HAMMERSMITH AND FULHAM PCT,HAFS-10760,14000000
Department of Health,Department of Health,01/06/2011,CASH FUNDING Rev Inside RAB,FINANCE & OPERATIONS (DM),HAMPSHIRE PCT,HAFS-10761,133500000
Department of Health,Department of Health,01/06/2011,CASH FUNDING Rev Inside RAB,FINANCE & OPERATIONS (DM),HARINGEY TEACHING PCT,HAFS-10762,32000000
Department of Health,Department of Health,01/06/2011,CASH FUNDING Rev Inside RAB,FINANCE & OPERATIONS (DM),HARROW PCT,HAFS-10763,27000000
Department of Health,Department of Health,01/06/2011,CASH FUNDING Rev Inside RAB,FINANCE & OPERATIONS (DM),HARTLEPOOL PCT,HAFS-10764,9100000
Department of Health,Department of Health,01/06/2011,CASH FUNDING Rev Inside RAB,FINANCE & OPERATIONS (DM),HASTINGS & ROTHER PCT,HAFS-10765,24500000
Department of Health,Department of Health,01/06/2011,CASH FUNDING Rev Inside RAB,FINANCE & OPERATIONS (DM),HAVERING PCT COMMISSIONING,HAFS-10766,32000000
Department of Health,Department of Health,01/06/2011,CASH FUNDING Rev Inside RAB,FINANCE & OPERATIONS (DM),HEALTH AND SOCIAL CARE INFORMATION CENTRE,HAFS-10767,2000000
Department of Health,Department of Health,01/06/2011,CASH FUNDING Rev Inside RAB,FINANCE & OPERATIONS (DM),HEART OF BIRMINGHAM TEACHING PCT,HAFS-10768,41000000
Department of Health,Department of Health,01/06/2011,CASH FUNDING Rev Inside RAB,FINANCE & OPERATIONS (DM),HEREFORDSHIRE PCT,HAFS-10769,22000000
Department of Health,Department of Health,01/06/2011,CASH FUNDING Rev Inside RAB,FINANCE & OPERATIONS (DM),HERTFORDSHIRE PCT,HAFS-10770,123000000
Department of Health,Department of Health,01/06/2011,CASH FUNDING Rev Inside RAB,FINANCE & OPERATIONS (DM),HEYWOOD MIDDLETON & ROCHDALE PCT,HAFS-10771,26500000
Department of Health,Department of Health,01/06/2011,CASH FUNDING Rev Inside RAB,FINANCE & OPERATIONS (DM),HILLINGDON PCT,HAFS-10772,32000000
Department of Health,Department of Health,01/06/2011,CASH FUNDING Rev Inside RAB,FINANCE & OPERATIONS (DM),HOUNSLOW PCT,HAFS-10773,29000000
Department of Health,Department of Health,01/06/2011,CASH FUNDING Rev Inside RAB,FINANCE & OPERATIONS (DM),HULL PCT,HAFS-10774,31600000
Department of Health,Department of Health,01/06/2011,CASH FUNDING Rev Inside RAB,FINANCE & OPERATIONS (DM),ISLE OF WIGHT NHS PCT,HAFS-10775,22000000
Department of Health,Department of Health,01/06/2011,CASH FUNDING Rev Inside RAB,FINANCE & OPERATIONS (DM),ISLINGTON PCT,HAFS-10776,32000000
Department of Health,Department of Health,01/06/2011,CASH FUNDING Rev Inside RAB,FINANCE & OPERATIONS (DM),KENSINGTON AND CHELSEA PCT,HAFS-10777,28000000
Department of Health,Department of Health,01/06/2011,CASH FUNDING Rev Inside RAB,FINANCE & OPERATIONS (DM),KINGSTON PCT,HAFS-10778,20000000
Department of Health,Department of Health,01/06/2011,CASH FUNDING Rev Inside RAB,FINANCE & OPERATIONS (DM),KIRKLEES PCT,HAFS-10779,50000000
Department of Health,Department of Health,01/06/2011,CASH FUNDING Rev Inside RAB,FINANCE & OPERATIONS (DM),KNOWSLEY PCT,HAFS-10780,26100000
Department of Health,Department of Health,01/06/2011,CASH FUNDING Rev Inside RAB,FINANCE & OPERATIONS (DM),LAMBETH PCT,HAFS-10781,45000000
Department of Health,Department of Health,01/06/2011,CASH FUNDING Rev Inside RAB,FINANCE & OPERATIONS (DM),LEEDS PCT,HAFS-10782,86355000
Department of Health,Department of Health,01/06/2011,CASH FUNDING Rev Inside RAB,FINANCE & OPERATIONS (DM),LEICESTER CITY PCT,HAFS-10783,38000000
Department of Health,Department of Health,01/06/2011,CASH FUNDING Rev Inside RAB,FINANCE & OPERATIONS (DM),LEICESTERSHIRE COUNTY & RUTLAND PCT,HAFS-10784,60000000
Department of Health,Department of Health,01/06/2011,CASH FUNDING Rev Inside RAB,FINANCE & OPERATIONS (DM),LEWISHAM PCT,HAFS-10785,39000000
Department of Health,Department of Health,01/06/2011,CASH FUNDING Rev Inside RAB,FINANCE & OPERATIONS (DM),LINCOLNSHIRE PCT,HAFS-10786,85000000
Department of Health,Department of Health,01/06/2011,CASH FUNDING Rev Inside RAB,FINANCE & OPERATIONS (DM),LIVERPOOL PCT,HAFS-10787,79025000
Department of Health,Department of Health,01/06/2011,CASH FUNDING Rev Inside RAB,FINANCE & OPERATIONS (DM),LONDON SHA,HAFS-10788,130000000
Department of Health,Department of Health,01/06/2011,CASH FUNDING Rev Inside RAB,FINANCE & OPERATIONS (DM),LUTON TEACHING PCT,HAFS-10789,23200000
Department of Health,Department of Health,01/06/2011,CASH FUNDING Rev Inside RAB,FINANCE & OPERATIONS (DM),MANCHESTER PCT,HAFS-10790,70000000
Department of Health,Department of Health,01/06/2011,CASH FUNDING Rev Inside RAB,FINANCE & OPERATIONS (DM),MEDWAY TEACHING PCT,HAFS-10791,27000000
Department of Health,Department of Health,01/06/2011,CASH FUNDING Rev Inside RAB,FINANCE & OPERATIONS (DM),MID ESSEX PCT,HAFS-10792,47000000
Department of Health,Department of Health,01/06/2011,CASH FUNDING Rev Inside RAB,FINANCE & OPERATIONS (DM),MIDDLESBOROUGH PCT,HAFS-10793,12100000
Department of Health,Department of Health,01/06/2011,CASH FUNDING Rev Inside RAB,FINANCE & OPERATIONS (DM),MILTON KEYNES PCT,HAFS-10794,25000000
Department of Health,Department of Health,01/06/2011,CASH FUNDING Rev Inside RAB,FINANCE & OPERATIONS (DM),NATIONAL INSTITUTE FOR CLINICAL EXCELLENCE (NICE),HAFS-10795,3000000
Department of Health,Department of Health,01/06/2011,CASH FUNDING Rev Inside RAB,FINANCE & OPERATIONS (DM),NEWCASTLE PCT,HAFS-10796,40000000
Department of Health,Department of Health,01/06/2011,CASH FUNDING Rev Inside RAB,FINANCE & OPERATIONS (DM),NEWHAM PCT,HAFS-10797,48000000
Department of Health,Department of Health,01/06/2011,CASH FUNDING Rev Inside RAB,FINANCE & OPERATIONS (DM),NHS BUSINESS SERVICES AUTHORITY (NHSBSA),HAFS-10798,39958000
Department of Health,Department of Health,01/06/2011,CASH FUNDING Rev ND In RAB,FINANCE & OPERATIONS (DM),NHS BUSINESS SERVICES AUTHORITY (NHSBSA),HAFS-10799,1035000000
Department of Health,Department of Health,01/06/2011,CASH FUNDING Rev Inside RAB,FINANCE & OPERATIONS (DM),NHS INSTITUTE FOR INNOVATION AND IMPROVEMENT,HAFS-10800,2500000
Department of Health,Department of Health,01/06/2011,CASH FUNDING Rev Inside RAB,FINANCE & OPERATIONS (DM),NORFOLK PCT,HAFS-10801,84000000
Department of Health,Department of Health,01/06/2011,CASH FUNDING Rev Inside RAB,FINANCE & OPERATIONS (DM),NORTH EAST ESSEX PCT,HAFS-10802,37000000
Department of Health,Department of Health,01/06/2011,CASH FUNDING Rev Inside RAB,FINANCE & OPERATIONS (DM),NORTH EAST LINCOLNSHIRE CARE TRUST PLUS,HAFS-10803,18200000
Department of Health,Department of Health,01/06/2011,CASH FUNDING Rev Inside RAB,FINANCE & OPERATIONS (DM),NORTH EAST SHA,HAFS-10804,19000000
Department of Health,Department of Health,01/06/2011,CASH FUNDING Rev Inside RAB,FINANCE & OPERATIONS (DM),NORTH LANCASHIRE PCT,HAFS-10805,36731000
Department of Health,Department of Health,01/06/2011,CASH FUNDING Rev Inside RAB,FINANCE & OPERATIONS (DM),NORTH LINCOLNSHIRE PCT,HAFS-10806,18900000
Department of Health,Department of Health,01/06/2011,CASH FUNDING Rev Inside RAB,FINANCE & OPERATIONS (DM),NORTH SOMERSET PCT,HAFS-10807,23500000
Department of Health,Department of Health,01/06/2011,CASH FUNDING Rev Inside RAB,FINANCE & OPERATIONS (DM),NORTH STAFFORDSHIRE PCT,HAFS-10808,25000000
Department of Health,Department of Health,01/06/2011,CASH FUNDING Rev Inside RAB,FINANCE & OPERATIONS (DM),NORTH TYNESIDE PCT,HAFS-10809,33500000
Department of Health,Department of Health,01/06/2011,CASH FUNDING Rev Inside RAB,FINANCE & OPERATIONS (DM),NORTH WEST SHA,HAFS-10810,62800000
Department of Health,Department of Health,01/06/2011,CASH FUNDING Rev Inside RAB,FINANCE & OPERATIONS (DM),NORTH YORKSHIRE & YORK PCT,HAFS-10811,87000000
Department of Health,Department of Health,01/06/2011,CASH FUNDING Rev Inside RAB,FINANCE & OPERATIONS (DM),NORTHAMPTONSHIRE PCT,HAFS-10812,80000000
Department of Health,Department of Health,01/06/2011,CASH FUNDING Rev Inside RAB,FINANCE & OPERATIONS (DM),NORTHUMBERLAND CARE TRUST,HAFS-10813,35000000
Department of Health,Department of Health,01/06/2011,CASH FUNDING Rev Inside RAB,FINANCE & OPERATIONS (DM),NOTTINGHAM CITY PCT,HAFS-10814,36500000
Department of Health,Department of Health,01/06/2011,CASH FUNDING Rev Inside RAB,FINANCE & OPERATIONS (DM),NOTTINGHAMSHIRE COUNTY TEACHING PCT,HAFS-10815,61000000
Department of Health,Department of Health,01/06/2011,CASH FUNDING Rev Inside RAB,FINANCE & OPERATIONS (DM),OLDHAM PCT,HAFS-10816,35000000
Department of Health,Department of Health,01/06/2011,CASH FUNDING Rev Inside RAB,FINANCE & OPERATIONS (DM),OXFORDSHIRE PCT,HAFS-10817,65000000
Department of Health,Department of Health,01/06/2011,CASH FUNDING Rev Inside RAB,FINANCE & OPERATIONS (DM),PETERBOROUGH PCT,HAFS-10818,18500000
Department of Health,Department of Health,01/06/2011,CASH FUNDING Rev Inside RAB,FINANCE & OPERATIONS (DM),PLYMOUTH TEACHING PCT,HAFS-10819,31000000
Department of Health,Department of Health,01/06/2011,CASH FUNDING Rev Inside RAB,FINANCE & OPERATIONS (DM),PORTSMOUTH CITY TEACHING PCT,HAFS-10820,28000000
Department of Health,Department of Health,01/06/2011,CASH FUNDING Rev Inside RAB,FINANCE & OPERATIONS (DM),REDBRIDGE PCT,HAFS-10821,31000000
Department of Health,Department of Health,01/06/2011,CASH FUNDING Rev Inside RAB,FINANCE & OPERATIONS (DM),REDCAR AND CLEVELAND PCT,HAFS-10822,10000000
Department of Health,Department of Health,01/06/2011,CASH FUNDING Rev Inside RAB,FINANCE & OPERATIONS (DM),RICHMOND AND TWICKENHAM PCT,HAFS-10823,20000000
Department of Health,Department of Health,01/06/2011,CASH FUNDING Rev Inside RAB,FINANCE & OPERATIONS (DM),ROTHERHAM PCT,HAFS-10824,27000000
Department of Health,Department of Health,01/06/2011,CASH FUNDING Rev Inside RAB,FINANCE & OPERATIONS (DM),SALFORD PCT,HAFS-10825,36000000
Department of Health,Department of Health,01/06/2011,CASH FUNDING Rev Inside RAB,FINANCE & OPERATIONS (DM),SANDWELL PCT,HAFS-10826,42300000
Department of Health,Department of Health,01/06/2011,CASH FUNDING Rev Inside RAB,FINANCE & OPERATIONS (DM),SEFTON PCT,HAFS-10827,34000000
Department of Health,Department of Health,01/06/2011,CASH FUNDING Rev Inside RAB,FINANCE & OPERATIONS (DM),SHEFFIELD PCT,HAFS-10828,71000000
Department of Health,Department of Health,01/06/2011,CASH FUNDING Rev Inside RAB,FINANCE & OPERATIONS (DM),SHROPSHIRE COUNTY PCT,HAFS-10829,36181000
Department of Health,Department of Health,01/06/2011,CASH FUNDING Rev Inside RAB,FINANCE & OPERATIONS (DM),SOLIHULL PCT,HAFS-10830,24000000
Department of Health,Department of Health,01/06/2011,CASH FUNDING Rev Inside RAB,FINANCE & OPERATIONS (DM),SOMERSET PCT,HAFS-10831,70500000
Department of Health,Department of Health,01/06/2011,CASH FUNDING Rev Inside RAB,FINANCE & OPERATIONS (DM),SOUTH BIRMINGHAM PCT,HAFS-10832,44500000
Department of Health,Department of Health,01/06/2011,CASH FUNDING Rev Inside RAB,FINANCE & OPERATIONS (DM),SOUTH CENTRAL SHA,HAFS-10833,26500000
Department of Health,Department of Health,01/06/2011,CASH FUNDING Rev Inside RAB,FINANCE & OPERATIONS (DM),SOUTH EAST COAST SHA,HAFS-10834,24000000
Department of Health,Department of Health,01/06/2011,CASH FUNDING Rev Inside RAB,FINANCE & OPERATIONS (DM),SOUTH EAST ESSEX PCT,HAFS-10835,20000000
Department of Health,Department of Health,01/06/2011,CASH FUNDING Rev Inside RAB,FINANCE & OPERATIONS (DM),SOUTH GLOUCESTERSHIRE PCT,HAFS-10836,24000000
Department of Health,Department of Health,01/06/2011,CASH FUNDING Rev Inside RAB,FINANCE & OPERATIONS (DM),SOUTH STAFFORDSHIRE PCT,HAFS-10837,70600000
Department of Health,Department of Health,01/06/2011,CASH FUNDING Rev Inside RAB,FINANCE & OPERATIONS (DM),SOUTH TYNESIDE PCT,HAFS-10838,20200000
Department of Health,Department of Health,01/06/2011,CASH FUNDING Rev Inside RAB,FINANCE & OPERATIONS (DM),SOUTH WEST ESSEX PCT,HAFS-10839,45000000
Department of Health,Department of Health,01/06/2011,CASH FUNDING Rev Inside RAB,FINANCE & OPERATIONS (DM),SOUTH WEST SHA,HAFS-10840,30000000
Department of Health,Department of Health,01/06/2011,CASH FUNDING Rev Inside RAB,FINANCE & OPERATIONS (DM),SOUTHAMPTON CITY PCT,HAFS-10841,30000000
Department of Health,Department of Health,01/06/2011,CASH FUNDING Rev Inside RAB,FINANCE & OPERATIONS (DM),SOUTHWARK PCT,HAFS-10842,38000000
Department of Health,Department of Health,01/06/2011,CASH FUNDING Rev Inside RAB,FINANCE & OPERATIONS (DM),STOCKPORT PCT,HAFS-10843,30000000
Department of Health,Department of Health,01/06/2011,CASH FUNDING Rev Inside RAB,FINANCE & OPERATIONS (DM),STOCKTON-ON-TEES TEACHING PCT,HAFS-10844,23500000
Department of Health,Department of Health,01/06/2011,CASH FUNDING Rev Inside RAB,FINANCE & OPERATIONS (DM),STOKE ON TRENT PCT,HAFS-10845,37400000
Department of Health,Department of Health,01/06/2011,CASH FUNDING Rev Inside RAB,FINANCE & OPERATIONS (DM),SUFFOLK PCT,HAFS-10846,70000000
Department of Health,Department of Health,01/06/2011,CASH FUNDING Rev Inside RAB,FINANCE & OPERATIONS (DM),SUNDERLAND TEACHING PCT,HAFS-10847,31500000
Department of Health,Department of Health,01/06/2011,CASH FUNDING Rev Inside RAB,FINANCE & OPERATIONS (DM),SURREY PCT,HAFS-10848,125000000
Department of Health,Department of Health,01/06/2011,CASH FUNDING Rev Inside RAB,FINANCE & OPERATIONS (DM),SUTTON AND MERTON PCT,HAFS-10849,45000000
Department of Health,Department of Health,01/06/2011,CASH FUNDING Rev Inside RAB,FINANCE & OPERATIONS (DM),SWINDON PCT,HAFS-10850,19000000
Department of Health,Department of Health,01/06/2011,CASH FUNDING Rev Inside RAB,FINANCE & OPERATIONS (DM),TAMESIDE AND GLOSSOP PCT,HAFS-10851,30500000
Department of Health,Department of Health,01/06/2011,CASH FUNDING Rev Inside RAB,FINANCE & OPERATIONS (DM),TELFORD & WREKIN PCT,HAFS-10852,20804000
Department of Health,Department of Health,01/06/2011,CASH FUNDING Rev Inside RAB,FINANCE & OPERATIONS (DM),TORBAY CARE TRUST,HAFS-10853,23200000
Department of Health,Department of Health,01/06/2011,CASH FUNDING Rev Inside RAB,FINANCE & OPERATIONS (DM),TOWER HAMLETS PCT,HAFS-10854,36000000
Department of Health,Department of Health,01/06/2011,CASH FUNDING Rev Inside RAB,FINANCE & OPERATIONS (DM),TRAFFORD PCT,HAFS-10855,26000000
Department of Health,Department of Health,01/06/2011,CASH FUNDING Rev Inside RAB,FINANCE & OPERATIONS (DM),WAKEFIELD DISTRICT PCT,HAFS-10856,44000000
Department of Health,Department of Health,01/06/2011,CASH FUNDING Rev Inside RAB,FINANCE & OPERATIONS (DM),WALSALL TEACHING PCT,HAFS-10857,38400000
Department of Health,Department of Health,01/06/2011,CASH FUNDING Rev Inside RAB,FINANCE & OPERATIONS (DM),WALTHAM FOREST PCT,HAFS-10858,34000000
Department of Health,Department of Health,01/06/2011,CASH FUNDING Rev Inside RAB,FINANCE & OPERATIONS (DM),WANDSWORTH TEACHING PCT,HAFS-10859,43500000
Department of Health,Department of Health,01/06/2011,CASH FUNDING Rev Inside RAB,FINANCE & OPERATIONS (DM),WARRINGTON PCT,HAFS-10860,21000000
Department of Health,Department of Health,01/06/2011,CASH FUNDING Rev Inside RAB,FINANCE & OPERATIONS (DM),WARWICKSHIRE PCT,HAFS-10861,63000000
Department of Health,Department of Health,01/06/2011,CASH FUNDING Rev Inside RAB,FINANCE & OPERATIONS (DM),WEST ESSEX PCT,HAFS-10862,33000000
Department of Health,Department of Health,01/06/2011,CASH FUNDING Rev Inside RAB,FINANCE & OPERATIONS (DM),WEST KENT PCT,HAFS-10863,73000000
Department of Health,Department of Health,01/06/2011,CASH FUNDING Rev Inside RAB,FINANCE & OPERATIONS (DM),WEST MIDLANDS SHA,HAFS-10864,50000000
Department of Health,Department of Health,01/06/2011,CASH FUNDING Rev Inside RAB,FINANCE & OPERATIONS (DM),WEST SUSSEX PCT,HAFS-10865,121000000
Department of Health,Department of Health,01/06/2011,CASH FUNDING Rev Inside RAB,FINANCE & OPERATIONS (DM),WESTERN CHESHIRE PCT,HAFS-10866,19000000
Department of Health,Department of Health,01/06/2011,CASH FUNDING Rev Inside RAB,FINANCE & OPERATIONS (DM),WESTMINSTER PCT,HAFS-10867,34000000
Department of Health,Department of Health,01/06/2011,CASH FUNDING Rev Inside RAB,FINANCE & OPERATIONS (DM),WILTSHIRE PCT,HAFS-10868,50000000
Department of Health,Department of Health,01/06/2011,CASH FUNDING Rev Inside RAB,FINANCE & OPERATIONS (DM),WIRRAL PCT,HAFS-10869,43750000
Department of Health,Department of Health,01/06/2011,CASH FUNDING Rev Inside RAB,FINANCE & OPERATIONS (DM),WOLVERHAMPTON CITY PCT,HAFS-10870,38000000
Department of Health,Department of Health,01/06/2011,CASH FUNDING Rev Inside RAB,FINANCE & OPERATIONS (DM),WORCESTERSHIRE PCT,HAFS-10871,54000000
Department of Health,Department of Health,01/06/2011,CASH FUNDING Rev Inside RAB,FINANCE & OPERATIONS (DM),YORKSHIRE & THE HUMBER SHA,HAFS-10872,35000000
Department of Health,Department of Health,01/06/2011,Expense clearing GPC (ST),More than one Directorate,BARCLAYCARD BUSINESS,2070001-20-JUN-11,63600.15
Department of Health,Department of Health,01/06/2011,Contr Other External,NHS Chief Information Officer,NHS BUSINESS SERVICES AUTHORITY,13007761,32650
Department of Health,Department of Health,01/06/2011,Contr Other External,NHS Chief Information Officer,NHS BUSINESS SERVICES AUTHORITY,13007761,99830
Department of Health,Department of Health,01/06/2011,External Consultancy Fees,NHS Chief Information Officer,NHS INFORMATION CENTRE,12909022,224215
Department of Health,Department of Health,01/06/2011,Mobile Phones,NHS Chief Information Officer,VODAFONE CORPORATE LTD,13046432,52451.92
Department of Health,Department of Health,01/06/2011,Staff Consultancy & Suppt,NHS Chief Information Officer,PA CONSULTING SERVICES LTD,13032511,37800
Department of Health,Department of Health,01/06/2011,Staff Consultancy & Suppt,NHS Chief Information Officer,PA CONSULTING SERVICES LTD,13032512,28800
Department of Health,Department of Health,01/06/2011,Staff Consultancy & Suppt,NHS Chief Information Officer,PA CONSULTING SERVICES LTD,13032513,28800
Department of Health,Department of Health,01/06/2011,Staff Consultancy & Suppt,NHS Chief Information Officer,PA CONSULTING SERVICES LTD,13032515,22500
Department of Health,Department of Health,01/06/2011,Outsourcing Contract,NHS FINANCE PERFORMANCE & OPERATIONS,RAMSAY HEALTH CARE UK OPERATIONS LTD,53,2955820.62
Department of Health,Department of Health,01/06/2011,Secondees in invoiced costs,NHS FINANCE PERFORMANCE & OPERATIONS,UNIVERSITY OF CENTRAL LANCASHIRE HEC,5077218,0
Department of Health,Department of Health,01/06/2011,Secondees in invoiced costs,NHS FINANCE PERFORMANCE & OPERATIONS,UNIVERSITY OF CENTRAL LANCASHIRE HEC,5077218,0
Department of Health,Department of Health,01/06/2011,Stock Essential Medicines Additions,NHS MEDICAL DIRECTOR,RANBAXY UK LTD,37402138,45327.1
Department of Health,Department of Health,01/06/2011,Research & development,Research and Development,DNA ELECTRONICS LTD,1,72218
Department of Health,Department of Health,02/06/2011,Outsourcing Contract,COMMISSIONING,South of England Advocacy Projects,SIN002050,582223
Department of Health,Department of Health,02/06/2011,Publicity & advertising,COMMUNICATIONS,CENTRAL OFFICE OF INFORMATION (COI),734688,53684.5
Department of Health,Department of Health,02/06/2011,Outsourcing Contract,FINANCE & OPERATIONS (DM),CSC COMPUTER SCIENCES LTD,5201239331,25468.7
Department of Health,Department of Health,02/06/2011,Outsourcing Contract,FINANCE & OPERATIONS (DM),CSC COMPUTER SCIENCES LTD,5201239332,432041.66
Department of Health,Department of Health,02/06/2011,IT minor costs non capital,FINANCE & OPERATIONS (DM),CSC COMPUTER SCIENCES LTD,5201239333,613918.05
Department of Health,Department of Health,02/06/2011,Outsourcing Contract,Health Improvement and Protection,MULTI RESOURCE MARKETING LTD,121515,68725.74
Department of Health,Department of Health,02/06/2011,Contactor/ Staff Subsitution,Health Improvement and Protection,VENN GROUP LTD,648647,30782.58
Department of Health,Department of Health,02/06/2011,Other programme expenditure,Health Improvement and Protection,NEWCASTLE UNIVERSITY,9100044052,25000
Department of Health,Department of Health,02/06/2011,Other programme expenditure,Health Improvement and Protection,BIRMINGHAM WOMENS NHS FOUNDATION TRUST,OP/I115377,175000
Department of Health,Department of Health,02/06/2011,Expense clearing GPC (ST),More than one Directorate,BARCLAYCARD BUSINESS,2070001-20-JUN-11,2955.08
Department of Health,Department of Health,02/06/2011,Secondees in invoiced costs,NHS MEDICAL DIRECTOR,ROYAL LIVERPOOL & BROADGREEN HOSPITALS UNIVERSITY NHS TRUST,8035398,73362.2
Department of Health,Department of Health,02/06/2011,Travel & subsistence secondees,NHS MEDICAL DIRECTOR,ROYAL LIVERPOOL & BROADGREEN HOSPITALS UNIVERSITY NHS TRUST,8035398,1172.8
Department of Health,Department of Health,02/06/2011,Research & development,Research and Development,INFRARED INTEGRATED SYSTEMS LTD,ERS-433095-47002,54325.33
Department of Health,Department of Health,02/06/2011,Outsourcing Contract,SOCIAL CARE,MANCHESTER UNIVERSITY OF,15032963,56836
Department of Health,Department of Health,02/06/2011,Outsourcing Contract,SOCIAL CARE,CENTREVENTS LTD,CE00600,28738.8
Department of Health,Department of Health,02/06/2011,Admin Revenue Grant-in-Aid ENDPBs,WORKFORCE,APPOINTMENTS COMMISSION,2011061,200000
Department of Health,Department of Health,02/06/2011,Consultancy/Professional Advice,WORKFORCE,HEART OF ENGLAND NHS FOUNDATION TRUST,810362,32000
Department of Health,Department of Health,03/06/2011,Other programme expenditure,Health Improvement and Protection,NHS BUSINESS SERVICES AUTHORITY (NHSBSA),2324,100075
Department of Health,Department of Health,03/06/2011,Other programme expenditure,Health Improvement and Protection,HOME OFFICE,1100736,1186000
Department of Health,Department of Health,03/06/2011,Expense clearing GPC (ST),More than one Directorate,BARCLAYCARD BUSINESS,2070001-20-JUN-11,6108.08
Department of Health,Department of Health,03/06/2011,Computer Hardware Purch,NHS Chief Information Officer,INSIGHT DIRECT (UK) LTD,13076777,29985.93
Department of Health,Department of Health,03/06/2011,Capitalisation cost of redundancy,Patient Experience,NHS PENSION SCHEME,40000141,189320.97
Department of Health,Department of Health,03/06/2011,Capitalisation cost of redundancy,Patient Experience,NHS PENSION SCHEME,40000142,132330.11
Department of Health,Department of Health,03/06/2011,Grants to non profit institutions (CUR),SOCIAL CARE,WOMENS THERAPY CENTRE,ERS-433173-47041,29175.5
Department of Health,Department of Health,03/06/2011,Grants to non profit institutions (CUR),SOCIAL CARE,THE NEW ECONOMIC FOUNDATION,ERS-433201-47061,35780
Department of Health,Department of Health,03/06/2011,Capitalisation cost of redundancy,Social Care,NHS PENSION SCHEME,50003333,111982.3
Department of Health,Department of Health,05/06/2011,Expense clearing GPC (ST),More than one Directorate,BARCLAYCARD BUSINESS,2070001-20-JUN-11,139.17
Department of Health,Department of Health,06/06/2011,Grants to non-profit institutions (CAP),COMMISSIONING,FUTUREBUILDERS ENGLAND FUND MANAGEMENT LTD,CHAPS6/6/11,117588
Department of Health,Department of Health,06/06/2011,Contactor/ Staff Subsitution,COMMISSIONING,IMPERIAL COLLEGE HEALTHCARE NHS TRUST,H0052660,33600
Department of Health,Department of Health,06/06/2011,Outsourcing Contract,COMMISSIONING,South of England Advocacy Projects,SIN002054,291111.5
Department of Health,Department of Health,06/06/2011,CIP Addition Clearing - OLB,FINANCE & OPERATIONS (DM),OFFICE PROJECTS LTD,9031,36128.8
Department of Health,Department of Health,06/06/2011,CIP Addition Clearing - OLB,FINANCE & OPERATIONS (DM),OFFICE PROJECTS LTD,9031,-752.69
Department of Health,Department of Health,06/06/2011,Rates,FINANCE & OPERATIONS (DM),HM REVENUE AND CUSTOMS (HMRC),1.80E+13,191070.24
Department of Health,Department of Health,06/06/2011,Rent of Land & Buildings (non-PFI operating lease),FINANCE & OPERATIONS (DM),HM REVENUE AND CUSTOMS (HMRC),1.80E+13,741978.96
Department of Health,Department of Health,06/06/2011,Utilities,FINANCE & OPERATIONS (DM),HM REVENUE AND CUSTOMS (HMRC),1.80E+13,75218.72
Department of Health,Department of Health,06/06/2011,Expense clearing GPC (ST),More than one Directorate,BARCLAYCARD BUSINESS,2070001-20-JUN-11,4008.61
Department of Health,Department of Health,06/06/2011,Library services,NHS MEDICAL DIRECTOR,CENTRAL OFFICE OF INFORMATION (COI),734817,61375.2
Department of Health,Department of Health,06/06/2011,Admin Revenue Grant-in-Aid ENDPBs,POLICY & STRATEGY,CARE QUALITY COMMISSION (CQC),JUNE DRAWDOWN,4100000
Department of Health,Department of Health,06/06/2011,Research & development,Research and Development,PROVENTEC HYGEIA LTD,31,57842
Department of Health,Department of Health,07/06/2011,Consultancy/Professional Advice,COMMISSIONING,ERNST AND YOUNG LLP,GB10300002323,44637.38
Department of Health,Department of Health,07/06/2011,Outsourcing Contract,Health Improvement and Protection,VERTEX DATA SCIENCE LTD,FI0407390,33618.39
Department of Health,Department of Health,07/06/2011,Outsourcing Contract,Health Improvement and Protection,VERTEX DATA SCIENCE LTD,FI0407392,65894.59
Department of Health,Department of Health,07/06/2011,Expense clearing GPC (ST),More than one Directorate,BARCLAYCARD BUSINESS,2070001-20-JUN-11,6794.25
Department of Health,Department of Health,07/06/2011,Addition Clearing - SW LIC,NHS Chief Information Officer,I SOFT PLC,CHAPS7/6/11,774221.82
Department of Health,Department of Health,07/06/2011,Travel & Subsistence,NHS Chief Information Officer,REDFERN TRAVEL LTD,13076268,1206.66
Department of Health,Department of Health,07/06/2011,Travel & Subsistence,NHS Chief Information Officer,REDFERN TRAVEL LTD,13076268,320.7
Department of Health,Department of Health,07/06/2011,Travel & Subsistence,NHS Chief Information Officer,REDFERN TRAVEL LTD,13076268,92.33
Department of Health,Department of Health,07/06/2011,Travel & Subsistence,NHS Chief Information Officer,REDFERN TRAVEL LTD,13076268,159.99
Department of Health,Department of Health,07/06/2011,Travel & Subsistence,NHS Chief Information Officer,REDFERN TRAVEL LTD,13076268,82.51
Department of Health,Department of Health,07/06/2011,Travel & Subsistence,NHS Chief Information Officer,REDFERN TRAVEL LTD,13076268,588.07
Department of Health,Department of Health,07/06/2011,Travel & Subsistence,NHS Chief Information Officer,REDFERN TRAVEL LTD,13076268,366.84
Department of Health,Department of Health,07/06/2011,Travel & Subsistence,NHS Chief Information Officer,REDFERN TRAVEL LTD,13076268,267.88
Department of Health,Department of Health,07/06/2011,Travel & Subsistence,NHS Chief Information Officer,REDFERN TRAVEL LTD,13076268,350.88
Department of Health,Department of Health,07/06/2011,Travel & Subsistence,NHS Chief Information Officer,REDFERN TRAVEL LTD,13076268,462.81
Department of Health,Department of Health,07/06/2011,Travel & Subsistence,NHS Chief Information Officer,REDFERN TRAVEL LTD,13076268,3150.85
Department of Health,Department of Health,07/06/2011,Travel & Subsistence,NHS Chief Information Officer,REDFERN TRAVEL LTD,13076268,144.35
Department of Health,Department of Health,07/06/2011,Travel & Subsistence,NHS Chief Information Officer,REDFERN TRAVEL LTD,13076268,204.51
Department of Health,Department of Health,07/06/2011,Travel & Subsistence,NHS Chief Information Officer,REDFERN TRAVEL LTD,13076268,640.35
Department of Health,Department of Health,07/06/2011,Travel & Subsistence,NHS Chief Information Officer,REDFERN TRAVEL LTD,13076268,5366.9
Department of Health,Department of Health,07/06/2011,Travel & Subsistence,NHS Chief Information Officer,REDFERN TRAVEL LTD,13076268,1219.06
Department of Health,Department of Health,07/06/2011,Travel & Subsistence,NHS Chief Information Officer,REDFERN TRAVEL LTD,13076268,204.51
Department of Health,Department of Health,07/06/2011,Travel & Subsistence,NHS Chief Information Officer,REDFERN TRAVEL LTD,13076268,800
Department of Health,Department of Health,07/06/2011,Travel & Subsistence,NHS Chief Information Officer,REDFERN TRAVEL LTD,13076268,1638.73
Department of Health,Department of Health,07/06/2011,Travel & Subsistence,NHS Chief Information Officer,REDFERN TRAVEL LTD,13076268,5103.18
Department of Health,Department of Health,07/06/2011,Travel & Subsistence,NHS Chief Information Officer,REDFERN TRAVEL LTD,13076268,663.61
Department of Health,Department of Health,07/06/2011,Travel & Subsistence,NHS Chief Information Officer,REDFERN TRAVEL LTD,13076268,2140.34
Department of Health,Department of Health,07/06/2011,Travel & Subsistence,NHS Chief Information Officer,REDFERN TRAVEL LTD,13076268,1567.79
Department of Health,Department of Health,07/06/2011,Travel & Subsistence,NHS Chief Information Officer,REDFERN TRAVEL LTD,13076268,685.7
Department of Health,Department of Health,07/06/2011,Travel & Subsistence,NHS Chief Information Officer,REDFERN TRAVEL LTD,13076268,1224.54
Department of Health,Department of Health,07/06/2011,Travel & Subsistence,NHS Chief Information Officer,REDFERN TRAVEL LTD,13076268,58.25
Department of Health,Department of Health,07/06/2011,Travel & Subsistence,NHS Chief Information Officer,REDFERN TRAVEL LTD,13076268,48.19
Department of Health,Department of Health,07/06/2011,Travel & Subsistence,NHS Chief Information Officer,REDFERN TRAVEL LTD,13076268,406.43
Department of Health,Department of Health,07/06/2011,Travel & Subsistence,NHS Chief Information Officer,REDFERN TRAVEL LTD,13076268,473.12
Department of Health,Department of Health,07/06/2011,Travel & Subsistence,NHS Chief Information Officer,REDFERN TRAVEL LTD,13076268,1098.95
Department of Health,Department of Health,07/06/2011,Travel & Subsistence,NHS Chief Information Officer,REDFERN TRAVEL LTD,13076268,-74.52
Department of Health,Department of Health,07/06/2011,Travel & Subsistence,NHS Chief Information Officer,REDFERN TRAVEL LTD,13076268,1693.96
Department of Health,Department of Health,07/06/2011,Travel & Subsistence,NHS Chief Information Officer,REDFERN TRAVEL LTD,13076268,232.32
Department of Health,Department of Health,07/06/2011,Travel & Subsistence,NHS Chief Information Officer,REDFERN TRAVEL LTD,13076268,861.51
Department of Health,Department of Health,07/06/2011,Travel & Subsistence,NHS Chief Information Officer,REDFERN TRAVEL LTD,13076268,173.4
Department of Health,Department of Health,07/06/2011,Travel & Subsistence,NHS Chief Information Officer,REDFERN TRAVEL LTD,13076268,1056.48
Department of Health,Department of Health,07/06/2011,Travel & Subsistence,NHS Chief Information Officer,REDFERN TRAVEL LTD,13076268,2312.46
Department of Health,Department of Health,07/06/2011,Travel & Subsistence,NHS Chief Information Officer,REDFERN TRAVEL LTD,13076268,74.19
Department of Health,Department of Health,07/06/2011,Travel & Subsistence,NHS Chief Information Officer,REDFERN TRAVEL LTD,13076268,307.88
Department of Health,Department of Health,07/06/2011,Travel & Subsistence,NHS Chief Information Officer,REDFERN TRAVEL LTD,13076268,958.49
Department of Health,Department of Health,07/06/2011,Travel & Subsistence,NHS Chief Information Officer,REDFERN TRAVEL LTD,13076268,5959.64
Department of Health,Department of Health,07/06/2011,Travel & Subsistence,NHS Chief Information Officer,REDFERN TRAVEL LTD,13076268,2254.8
Department of Health,Department of Health,07/06/2011,Travel & Subsistence,NHS Chief Information Officer,REDFERN TRAVEL LTD,13076268,216.29
Department of Health,Department of Health,07/06/2011,Travel & Subsistence,NHS Chief Information Officer,REDFERN TRAVEL LTD,13076268,3604.25
Department of Health,Department of Health,07/06/2011,Travel & Subsistence,NHS Chief Information Officer,REDFERN TRAVEL LTD,13076268,4652.16
Department of Health,Department of Health,07/06/2011,Travel & Subsistence,NHS Chief Information Officer,REDFERN TRAVEL LTD,13076268,675.25
Department of Health,Department of Health,07/06/2011,Travel & Subsistence,NHS Chief Information Officer,REDFERN TRAVEL LTD,13076268,3939.51
Department of Health,Department of Health,07/06/2011,Travel & Subsistence,NHS Chief Information Officer,REDFERN TRAVEL LTD,13076268,62.98
Department of Health,Department of Health,07/06/2011,Travel & Subsistence,NHS Chief Information Officer,REDFERN TRAVEL LTD,13076268,1778.65
Department of Health,Department of Health,07/06/2011,Travel & Subsistence,NHS Chief Information Officer,REDFERN TRAVEL LTD,13076268,2905.8
Department of Health,Department of Health,07/06/2011,Travel & Subsistence,NHS Chief Information Officer,REDFERN TRAVEL LTD,13076268,544.97
Department of Health,Department of Health,07/06/2011,Travel & Subsistence,NHS Chief Information Officer,REDFERN TRAVEL LTD,13076268,7757.8
Department of Health,Department of Health,07/06/2011,Travel & Subsistence,NHS Chief Information Officer,REDFERN TRAVEL LTD,13076268,490.33
Department of Health,Department of Health,07/06/2011,Travel & Subsistence,NHS Chief Information Officer,REDFERN TRAVEL LTD,13076268,261.66
Department of Health,Department of Health,07/06/2011,Travel & Subsistence,NHS Chief Information Officer,REDFERN TRAVEL LTD,13076268,6674.95
Department of Health,Department of Health,07/06/2011,Travel & Subsistence,NHS Chief Information Officer,REDFERN TRAVEL LTD,13076268,727.23
Department of Health,Department of Health,07/06/2011,Travel & Subsistence,NHS Chief Information Officer,REDFERN TRAVEL LTD,13076268,698.32
Department of Health,Department of Health,07/06/2011,Travel & Subsistence,NHS Chief Information Officer,REDFERN TRAVEL LTD,13076268,1531.12
Department of Health,Department of Health,07/06/2011,Travel & Subsistence,NHS Chief Information Officer,REDFERN TRAVEL LTD,13076268,2326.2
Department of Health,Department of Health,07/06/2011,Travel & Subsistence,NHS Chief Information Officer,REDFERN TRAVEL LTD,13076268,236.56
Department of Health,Department of Health,07/06/2011,Travel & Subsistence,NHS Chief Information Officer,REDFERN TRAVEL LTD,13076268,266.05
Department of Health,Department of Health,07/06/2011,Travel & Subsistence,NHS Chief Information Officer,REDFERN TRAVEL LTD,13076268,199.55
Department of Health,Department of Health,07/06/2011,Travel & Subsistence,NHS Chief Information Officer,REDFERN TRAVEL LTD,13076268,1043.69
Department of Health,Department of Health,07/06/2011,Travel & Subsistence,NHS Chief Information Officer,REDFERN TRAVEL LTD,13076268,281.41
Department of Health,Department of Health,07/06/2011,Travel & Subsistence,NHS Chief Information Officer,REDFERN TRAVEL LTD,13076268,205.2
Department of Health,Department of Health,07/06/2011,Travel & Subsistence,NHS Chief Information Officer,REDFERN TRAVEL LTD,13076268,3118.1
Department of Health,Department of Health,07/06/2011,Travel & Subsistence,NHS Chief Information Officer,REDFERN TRAVEL LTD,13076268,115.07
Department of Health,Department of Health,07/06/2011,Travel & Subsistence,NHS Chief Information Officer,REDFERN TRAVEL LTD,13076268,204.51
Department of Health,Department of Health,07/06/2011,Travel & Subsistence,NHS Chief Information Officer,REDFERN TRAVEL LTD,13076268,255.96
Department of Health,Department of Health,07/06/2011,Travel & Subsistence,NHS Chief Information Officer,REDFERN TRAVEL LTD,13076268,1609.01
Department of Health,Department of Health,07/06/2011,Travel & Subsistence,NHS Chief Information Officer,REDFERN TRAVEL LTD,13076268,104.71
Department of Health,Department of Health,07/06/2011,Travel & Subsistence,NHS Chief Information Officer,REDFERN TRAVEL LTD,13076268,1632.99
Department of Health,Department of Health,07/06/2011,Travel & Subsistence,NHS Chief Information Officer,REDFERN TRAVEL LTD,13076268,-19.01
Department of Health,Department of Health,07/06/2011,Travel & Subsistence,NHS Chief Information Officer,REDFERN TRAVEL LTD,13076268,1126.24
Department of Health,Department of Health,07/06/2011,Travel & Subsistence,NHS Chief Information Officer,REDFERN TRAVEL LTD,13076268,94.13
Department of Health,Department of Health,07/06/2011,Travel & Subsistence,NHS Chief Information Officer,REDFERN TRAVEL LTD,13076268,3489.68
Department of Health,Department of Health,07/06/2011,Travel & Subsistence,NHS Chief Information Officer,REDFERN TRAVEL LTD,13076268,145.4
Department of Health,Department of Health,07/06/2011,Travel & Subsistence,NHS Chief Information Officer,REDFERN TRAVEL LTD,13076268,5983
Department of Health,Department of Health,07/06/2011,Travel & Subsistence,NHS Chief Information Officer,REDFERN TRAVEL LTD,13076268,350.63
Department of Health,Department of Health,07/06/2011,Travel & Subsistence,NHS Chief Information Officer,REDFERN TRAVEL LTD,13076268,889.56
Department of Health,Department of Health,07/06/2011,Rent of Land & Buildings (non-PFI operating lease),NHS FINANCE PERFORMANCE & OPERATIONS,HAZELMOOR PARTNERSHIP,1054,27000
Department of Health,Department of Health,07/06/2011,Outsourcing Contract,NHS FINANCE PERFORMANCE & OPERATIONS,FRESENIUS MEDICAL CARE RENAL SERVICES LTD,1060017294,1021965.33
Department of Health,Department of Health,07/06/2011,Rent of Land & Buildings (non-PFI operating lease),NHS FINANCE PERFORMANCE & OPERATIONS,LEE BARON COMMERCIAL LTD,134245,39000
Department of Health,Department of Health,07/06/2011,Service charge,NHS FINANCE PERFORMANCE & OPERATIONS,LEE BARON COMMERCIAL LTD,134245,9743.76
Department of Health,Department of Health,07/06/2011,Outsourcing Contract,NHS FINANCE PERFORMANCE & OPERATIONS,CARE UK CLINICAL SERVICES LTD,25766491,1814072.96
Department of Health,Department of Health,07/06/2011,Rent of Land & Buildings (non-PFI operating lease),NHS FINANCE PERFORMANCE & OPERATIONS,ABPGP LTD,SIAS1Q782,49747.36
Department of Health,Department of Health,07/06/2011,Research & development,Research and Development,EAST ANGLIA UNIVERSITY OF,ERS-433479-47203,39539.5
Department of Health,Department of Health,07/06/2011,Research & development,Research and Development,BIRMINGHAM UNIVERSITY OF,ERS-433480-47201,75591
Department of Health,Department of Health,07/06/2011,Research & development,Research and Development,BRUNEL UNIVERSITY,ERS-433481-47202,203806
Department of Health,Department of Health,07/06/2011,Grants to non profit institutions (CUR),SOCIAL CARE,NATIONAL CHILDRENS BUREAU,ERS-433453-47161,26000
Department of Health,Department of Health,07/06/2011,Grants to non profit institutions (CUR),SOCIAL CARE,THE HEPATITIS C TRUST,ERS-433467-47182,25750
Department of Health,Department of Health,07/06/2011,Consultancy/Professional Advice,WORKFORCE,FRONTLINE CONSULTANTS LTD,FL6154,25143
Department of Health,Department of Health,07/06/2011,Admin Revenue Grant-in-Aid ENDPBs,WORKFORCE,GENERAL SOCIAL CARE COUNCIL (GSCC),SL02369,420000
Department of Health,Department of Health,07/06/2011,Revenue Grants to Other Bodies,WORKFORCE,GENERAL SOCIAL CARE COUNCIL (GSCC),SL02370,735000
Department of Health,Department of Health,07/06/2011,Admin Revenue Grant-in-Aid ENDPBs,WORKFORCE,GENERAL SOCIAL CARE COUNCIL (GSCC),SL02372,740000
Department of Health,Department of Health,07/06/2011,Revenue Grants to Other Bodies,WORKFORCE,GENERAL SOCIAL CARE COUNCIL (GSCC),SL02373,684000
Department of Health,Department of Health,08/06/2011,Publicity & advertising,COMMUNICATIONS,CENTRAL OFFICE OF INFORMATION (COI),733167,174674.75
Department of Health,Department of Health,08/06/2011,Outsourcing Contract,COMMUNICATIONS,CENTRAL OFFICE OF INFORMATION (COI),734819,29921.66
Department of Health,Department of Health,08/06/2011,Printing,COMMUNICATIONS,PROMOTIONAL LOGISTICS LTD,OP/I117687,27076.68
Department of Health,Department of Health,08/06/2011,Expense clearing GPC (ST),More than one Directorate,BARCLAYCARD BUSINESS,2070001-20-JUN-11,10623.39
Department of Health,Department of Health,08/06/2011,Service charge,NHS Chief Information Officer,CSC COMPUTER SCIENCES LTD,5201234644,5305614.89
Department of Health,Department of Health,08/06/2011,Service charge,NHS Chief Information Officer,CSC COMPUTER SCIENCES LTD,5201236129,1847841.54
Department of Health,Department of Health,08/06/2011,Service charge,NHS Chief Information Officer,CSC COMPUTER SCIENCES LTD,5201236130,2953155.09
Department of Health,Department of Health,08/06/2011,Service charge,NHS Chief Information Officer,CSC COMPUTER SCIENCES LTD,5201236131,1400212.62
Department of Health,Department of Health,08/06/2011,Outsourcing Contract,NHS FINANCE PERFORMANCE & OPERATIONS,RAMSAY HEALTH CARE UK OPERATIONS LTD,54,2444322.27
Department of Health,Department of Health,08/06/2011,Outsourcing Contract,NHS FINANCE PERFORMANCE & OPERATIONS,INHEALTH LTD,91,312500
Department of Health,Department of Health,08/06/2011,Outsourcing Contract,NHS FINANCE PERFORMANCE & OPERATIONS,INHEALTH LTD,92,1915060.82
Department of Health,Department of Health,08/06/2011,Outsourcing Contract,NHS FINANCE PERFORMANCE & OPERATIONS,PARTNERSHIP HEALTH GROUP LTD,25766493,1747316.65
Department of Health,Department of Health,08/06/2011,Outsourcing Contract,NHS FINANCE PERFORMANCE & OPERATIONS,SPIRE HEALTHCARE LTD,CM090258,1190591.78
Department of Health,Department of Health,08/06/2011,Outsourcing Contract,NHS FINANCE PERFORMANCE & OPERATIONS,INHEALTH MOLECULAR IMAGING LTD,SIM000059,826895.42
Department of Health,Department of Health,08/06/2011,Rent of Land & Buildings (non-PFI operating lease),NHS FINANCE PERFORMANCE & OPERATIONS,THREADNEEDLE PENSIONS LTD,TPN/1010981,13924.21
Department of Health,Department of Health,08/06/2011,Rent of Land & Buildings (non-PFI operating lease),NHS FINANCE PERFORMANCE & OPERATIONS,THREADNEEDLE PENSIONS LTD,TPN/1010981,6379.04
Department of Health,Department of Health,08/06/2011,Service charge,NHS FINANCE PERFORMANCE & OPERATIONS,THREADNEEDLE PENSIONS LTD,TPN/1010981,15724.03
Department of Health,Department of Health,08/06/2011,Service charge,NHS FINANCE PERFORMANCE & OPERATIONS,THREADNEEDLE PENSIONS LTD,TPN/1010981,0.01
Department of Health,Department of Health,08/06/2011,Outsourcing Contract,NHS FINANCE PERFORMANCE & OPERATIONS,UKSH SOUTH WEST LTD,UKSHSW/105,2831281.58
Department of Health,Department of Health,08/06/2011,Other programme expenditure,SOCIAL CARE,POOLE BOROUGH OF,5537552,30000
Department of Health,Department of Health,08/06/2011,Other programme expenditure,SOCIAL CARE,POOLE BOROUGH OF,5537552,25000
Department of Health,Department of Health,08/06/2011,Outsourcing Contract,WORKFORCE,NHS EMPLOYERS LTD,5591,3078008.4
Department of Health,Department of Health,09/06/2011,Expense clearing GPC (ST),More than one Directorate,BARCLAYCARD BUSINESS,2070001-20-JUN-11,2730.29
Department of Health,Department of Health,09/06/2011,Contr Other External,NHS Chief Information Officer,CAPITA BUSINESS SERVICES LTD,13103742,36554
Department of Health,Department of Health,09/06/2011,Contr Other External,NHS Chief Information Officer,CAPITA BUSINESS SERVICES LTD,13103747,31396
Department of Health,Department of Health,09/06/2011,Contr Other External,NHS Chief Information Officer,CAPITA BUSINESS SERVICES LTD,13103748,25041.5
Department of Health,Department of Health,09/06/2011,Contr Other External,NHS Chief Information Officer,CAPITA BUSINESS SERVICES LTD,13103751,57813.05
Department of Health,Department of Health,09/06/2011,Contr Other External,NHS Chief Information Officer,CAPITA BUSINESS SERVICES LTD,13103752,48907
Department of Health,Department of Health,09/06/2011,Contr Other External,NHS Chief Information Officer,CAPITA BUSINESS SERVICES LTD,13103753,61335.2
Department of Health,Department of Health,09/06/2011,Contr Other External,NHS Chief Information Officer,CAPITA BUSINESS SERVICES LTD,13103755,80571
Department of Health,Department of Health,09/06/2011,Stock Essential Medicines Additions,NHS MEDICAL DIRECTOR,SANOFI AVENTIS,4700000094,384344.18
Department of Health,Department of Health,09/06/2011,Stock Essential Medicines Additions,NHS MEDICAL DIRECTOR,SANOFI AVENTIS,4700000143,429380.86
Department of Health,Department of Health,09/06/2011,Stock Essential Medicines Additions,NHS MEDICAL DIRECTOR,SIGMA PHARMACEUTICALS PLC,I107370,160701.6
Department of Health,Department of Health,09/06/2011,Stock Essential Medicines Additions,NHS MEDICAL DIRECTOR,SIGMA PHARMACEUTICALS PLC,I214820,95060.12
Department of Health,Department of Health,09/06/2011,Stock Essential Medicines Additions,NHS MEDICAL DIRECTOR,SIGMA PHARMACEUTICALS PLC,I214821,46070.4
Department of Health,Department of Health,09/06/2011,Stock Essential Medicines Additions,NHS MEDICAL DIRECTOR,SIGMA PHARMACEUTICALS PLC,I226249,82250.39
Department of Health,Department of Health,09/06/2011,Outsourcing Contract,POLICY & STRATEGY,OXFORD UNIVERSITY,RTHP0/20075636,33000
Department of Health,Department of Health,09/06/2011,Grants to local authorities (CAP),Social Care,BARKING AND DAGENHAM LONDON BOROUGH COUNCIL,ERS-433677-47223,4125450
Department of Health,Department of Health,09/06/2011,Grants to local authorities (CAP),Social Care,BIRMINGHAM CITY COUNCIL,ERS-433686-47241,36710259
Department of Health,Department of Health,09/06/2011,Grants to local authorities (CAP),Social Care,ESSEX COUNTY COUNCIL,ERS-433692-47242,44253282
Department of Health,Department of Health,09/06/2011,Grants to local authorities (CAP),Social Care,HAMPSHIRE COUNTY COUNCIL,ERS-433693-47243,41858192
Department of Health,Department of Health,09/06/2011,Grants to local authorities (CAP),Social Care,HERTFORDSHIRE COUNTY COUNCIL,ERS-433697-47245,37513451
Department of Health,Department of Health,09/06/2011,Grants to local authorities (CAP),Social Care,KENT COUNTY COUNCIL,ERS-433698-47246,34768399
Department of Health,Department of Health,09/06/2011,Grants to local authorities (CAP),Social Care,LANCASHIRE COUNTY COUNCIL,ERS-433700-47248,33654168
Department of Health,Department of Health,09/06/2011,Grants to local authorities (CAP),Social Care,NORFOLK COUNTY COUNCIL,ERS-433701-47249,39299117
Department of Health,Department of Health,09/06/2011,Grants to local authorities (CAP),Social Care,SURREY COUNTY COUNCIL,ERS-433703-47250,64887510
Department of Health,Department of Health,09/06/2011,Grants to local authorities (CAP),Social Care,BARNET LONDON BOROUGH COUNCIL,ERS-433748-47263,10438503
Department of Health,Department of Health,09/06/2011,Grants to local authorities (CAP),Social Care,BARNSLEY METROPOLITAN BOROUGH COUNCIL,ERS-433757-47264,4044873
Department of Health,Department of Health,09/06/2011,Grants to non profit institutions (CUR),SOCIAL CARE,CHILD BRAIN INJURY TRUST,ERS-433676-47222,36425
Department of Health,Department of Health,09/06/2011,Grants to non profit institutions (CUR),SOCIAL CARE,AFRICAN CARIBBEAN LEUKAEMIA TRUST (ACLT),ERS-433695-47244,25000
Department of Health,Department of Health,09/06/2011,Grants to non profit institutions (CUR),SOCIAL CARE,ASTHMA UK,ERS-433699-47247,35219.5
Department of Health,Department of Health,09/06/2011,Grants to non profit institutions (CUR),SOCIAL CARE,BROOK ADVISORY CENTRES,ERS-433702-47251,48331.5
Department of Health,Department of Health,09/06/2011,Grants to non profit institutions (CUR),SOCIAL CARE,COMMUNITY MEDIA ASSOCIATION,ERS-433705-47252,25750
Department of Health,Department of Health,09/06/2011,Grants to non profit institutions (CUR),SOCIAL CARE,CONSTRUCTING BETTER HEALTH,ERS-433709-47253,60000
Department of Health,Department of Health,09/06/2011,Grants to non profit institutions (CUR),SOCIAL CARE,DISABLED LIVING FOUNDATION,ERS-433711-47254,25000
Department of Health,Department of Health,09/06/2011,Grants to non profit institutions (CUR),SOCIAL CARE,DOCTORS OF THE WORLD UK,ERS-433713-47255,25000
Department of Health,Department of Health,09/06/2011,Grants to non profit institutions (CUR),SOCIAL CARE,MARIE CURIE CANCER CARE,ERS-433714-47256,30000
Department of Health,Department of Health,09/06/2011,Grants to non profit institutions (CUR),SOCIAL CARE,MEDFASH,ERS-433715-47257,40782
Department of Health,Department of Health,09/06/2011,Grants to non profit institutions (CUR),SOCIAL CARE,IRISH TRAVELLER MOVEMENT IN BRITAIN,ERS-433764-47289,38050
Department of Health,Department of Health,09/06/2011,IT minor costs non capital,WORKFORCE,ASTON UNIVERSITY,28024303,30099.5
Department of Health,Department of Health,09/06/2011,Provisions cash payment,WORKFORCE,NHS INJURY BENEFITS SCHEME,ERS-433734-47262,3925064.75
Department of Health,Department of Health,10/06/2011,Outsourcing Contract,COMMUNICATIONS,CENTRAL OFFICE OF INFORMATION (COI),734840,76000
Department of Health,Department of Health,10/06/2011,Travel -Trains,FINANCE & OPERATIONS (DM),FCM TRAVEL SOLUTIONS,1049604190,68652.65
Department of Health,Department of Health,10/06/2011,Professional fees,FINANCE & OPERATIONS (DM),SUSTAINABLE DEVELOPMENT COMMISSION,901133,34253.72
Department of Health,Department of Health,10/06/2011,Research & development,Health Improvement and Protection,TNS UK LTD,131575,60000
Department of Health,Department of Health,10/06/2011,Research & development,Health Improvement and Protection,TNS UK LTD,133618,179520
Department of Health,Department of Health,10/06/2011,Recruitment,Health Improvement and Protection,CENTRAL OFFICE OF INFORMATION (COI),734850,32634
Department of Health,Department of Health,10/06/2011,Other programme expenditure,Health Improvement and Protection,ROYAL INSTITUTE OF INTERNATIONAL AFFAIRS,ERS-433819-47356,200000
Department of Health,Department of Health,10/06/2011,Expense clearing GPC (ST),More than one Directorate,BARCLAYCARD BUSINESS,2070001-20-JUN-11,4719.45
Department of Health,Department of Health,10/06/2011,Addition Clearing - SW LIC,NHS Chief Information Officer,MICROTEST LTD,74243,254182.84
Department of Health,Department of Health,10/06/2011,Service charge,NHS Chief Information Officer,MICROTEST LTD,74243,513.15
Department of Health,Department of Health,10/06/2011,Service charge,NHS Chief Information Officer,BT GROUP PLC,267629PART PAYT,4098722.13
Department of Health,Department of Health,10/06/2011,Service charge,NHS Chief Information Officer,BT GROUP PLC,267631,1307113.49
Department of Health,Department of Health,10/06/2011,Service charge,NHS Chief Information Officer,BT GROUP PLC,267632,387754.51
Department of Health,Department of Health,10/06/2011,Service charge,NHS Chief Information Officer,BT GROUP PLC,267968,31752
Department of Health,Department of Health,10/06/2011,Service charge,NHS Chief Information Officer,BT GROUP PLC,267968,31752
Department of Health,Department of Health,10/06/2011,Addition Clearing - SW LIC,NHS Chief Information Officer,IN PRACTICE SYSTEMS LTD,371462,2693261.5
Department of Health,Department of Health,10/06/2011,Service charge,NHS Chief Information Officer,IN PRACTICE SYSTEMS LTD,371462,587175.36
Department of Health,Department of Health,10/06/2011,Addition Clearing - SW LIC,NHS Chief Information Officer,CSC COMPUTER SCIENCES LTD,5201237263,321975.83
Department of Health,Department of Health,10/06/2011,Service charge,NHS Chief Information Officer,ATOS ORIGIN IT SERVICES UK LTD,5584081100,560590.76
Department of Health,Department of Health,10/06/2011,Service charge,NHS Chief Information Officer,BT GROUP PLC,CHAPS10/6/11,148289
Department of Health,Department of Health,10/06/2011,Addition Clearing - SW LIC,NHS Chief Information Officer,EGTON MEDICAL INFORMATION SYSTEMS LTD,IN45385-1,5078724.14
Department of Health,Department of Health,10/06/2011,Service charge,NHS Chief Information Officer,EGTON MEDICAL INFORMATION SYSTEMS LTD,IN45385-1,922653.85
Department of Health,Department of Health,10/06/2011,Computer Maintenance,NHS Chief Information Officer,PROBRAND LTD,13103690,43445.86
Department of Health,Department of Health,10/06/2011,External Consultancy Fees,NHS Chief Information Officer,CABLE & WIRELESS UK,13119166,31860.36
Department of Health,Department of Health,10/06/2011,Staff Consultancy & Suppt,NHS Chief Information Officer,PA CONSULTING SERVICES LTD,13032495,50400
Department of Health,Department of Health,10/06/2011,Staff Consultancy & Suppt,NHS Chief Information Officer,PA CONSULTING SERVICES LTD,13032497,38400
Department of Health,Department of Health,10/06/2011,Staff Consultancy & Suppt,NHS Chief Information Officer,PA CONSULTING SERVICES LTD,13032500,38400
Department of Health,Department of Health,10/06/2011,Staff Consultancy & Suppt,NHS Chief Information Officer,PA CONSULTING SERVICES LTD,13032505,30000
Department of Health,Department of Health,10/06/2011,Staff Consultancy & Suppt,NHS Chief Information Officer,PA CONSULTING SERVICES LTD,13032507,25560
Department of Health,Department of Health,10/06/2011,Staff Consultancy & Suppt,NHS Chief Information Officer,PA CONSULTING SERVICES LTD,13032510,25560
Department of Health,Department of Health,10/06/2011,Staff Consultancy & Suppt,NHS Chief Information Officer,PA CONSULTING SERVICES LTD,13103638,28000
Department of Health,Department of Health,10/06/2011,IT minor costs non capital,NHS FINANCE PERFORMANCE & OPERATIONS,OBJECTIVE CORPORATION UK LTD,32045,37991.03
Department of Health,Department of Health,10/06/2011,Grants to local authorities (CAP),Social Care,BATH AND NORTH EAST SOMERSET COUNCIL,ERS-433850-47361,3240767
Department of Health,Department of Health,10/06/2011,Grants to local authorities (CAP),Social Care,BEXLEY LONDON BOROUGH COUNCIL,ERS-433853-47381,4994161
Department of Health,Department of Health,10/06/2011,Grants to local authorities (CAP),Social Care,BLACKBURN WITH DARWEN BOROUGH COUNCIL,ERS-433857-47382,4110040
Department of Health,Department of Health,10/06/2011,Grants to local authorities (CAP),Social Care,BLACKPOOL BOROUGH COUNCIL,ERS-433862-47384,4642785
Department of Health,Department of Health,10/06/2011,Grants to local authorities (CAP),Social Care,BOLTON METROPOLITAN BOROUGH COUNCIL,ERS-433866-47386,7517136
Department of Health,Department of Health,10/06/2011,Grants to local authorities (CAP),Social Care,BRACKNELL FOREST BOROUGH COUNCIL,ERS-433872-47388,7764573
Department of Health,Department of Health,10/06/2011,Grants to local authorities (CAP),Social Care,BRADFORD CITY COUNCIL,ERS-433873-47389,11977400
Department of Health,Department of Health,10/06/2011,Grants to local authorities (CAP),Social Care,BRENT LONDON BOROUGH COUNCIL,ERS-433875-47390,7431960
Department of Health,Department of Health,10/06/2011,Grants to local authorities (CAP),Social Care,BRIGHTON AND HOVE CITY COUNCIL,ERS-433876-47391,6563550
Department of Health,Department of Health,10/06/2011,Grants to local authorities (CAP),Social Care,BRISTOL CITY COUNCIL,ERS-433878-47392,17099897
Department of Health,Department of Health,10/06/2011,Grants to local authorities (CAP),Social Care,BROMLEY LONDON BOROUGH COUNCIL,ERS-433879-47393,8579686
Department of Health,Department of Health,10/06/2011,Grants to local authorities (CAP),Social Care,BUCKINGHAMSHIRE COUNTY COUNCIL,ERS-433880-47394,15630388
Department of Health,Department of Health,10/06/2011,Grants to local authorities (CAP),Social Care,BURY METROPOLITAN BOROUGH COUNCIL,ERS-433881-47395,4169099
Department of Health,Department of Health,10/06/2011,Grants to non profit institutions (CUR),SOCIAL CARE,COOL2CARE,ERS-433805-47301,34154
Department of Health,Department of Health,10/06/2011,Grants to non profit institutions (CUR),SOCIAL CARE,THE LESBIAN AND GAY FOUNDATION,ERS-433865-47385,200000
Department of Health,Department of Health,10/06/2011,Outsourcing Contract,WORKFORCE,CARDIFF UNIVERSITY,1021535,294566
Department of Health,Department of Health,11/06/2011,Expense clearing GPC (ST),More than one Directorate,BARCLAYCARD BUSINESS,2070001-20-JUN-11,36.74
Department of Health,Department of Health,13/06/2011,Secondees in invoiced costs,COMMISSIONING,WESTMINSTER PCT,10122738,7836.72
Department of Health,Department of Health,13/06/2011,Secondees in invoiced costs,COMMISSIONING,WESTMINSTER PCT,10122738,85006.93
Department of Health,Department of Health,13/06/2011,Grants to non-profit institutions (CAP),COMMISSIONING,FUTUREBUILDERS ENGLAND FUND MANAGEMENT LTD,CHAPS13/06/11,150845.36
Department of Health,Department of Health,13/06/2011,Additions FT Financing Facility Loans,FINANCE & OPERATIONS (DM),BASILDON AND THURROCK UNIVERSITY HOSPITALS NHS FOUNDATION TRUST,HAFS-10875,1500000
Department of Health,Department of Health,13/06/2011,Secondees in invoiced costs,Health Improvement and Protection,KNOWSLEY METROPOLITAN BOROUGH COUNCIL,SD2161778,30123.5
Department of Health,Department of Health,13/06/2011,Expense clearing GPC (ST),More than one Directorate,BARCLAYCARD BUSINESS,2070001-20-JUN-11,5844.58
Department of Health,Department of Health,13/06/2011,Service charge,NHS Chief Information Officer,BT GROUP PLC,CHAPS13/6/11,316925.15
Department of Health,Department of Health,13/06/2011,Electricity,NHS Chief Information Officer,BRITISH MEDICAL ASSOCIATION,13103640,746.54
Department of Health,Department of Health,13/06/2011,Rent,NHS Chief Information Officer,BRITISH MEDICAL ASSOCIATION,13103640,27467.16
Department of Health,Department of Health,13/06/2011,Staff Consultancy & Suppt,NHS Chief Information Officer,PA CONSULTING SERVICES LTD,13103635,76420.5
Department of Health,Department of Health,13/06/2011,Other programme expenditure,NHS FINANCE PERFORMANCE & OPERATIONS,DEAN CLOUGH LTD,11655,7349.99
Department of Health,Department of Health,13/06/2011,Rent of Land & Buildings (non-PFI operating lease),NHS FINANCE PERFORMANCE & OPERATIONS,DEAN CLOUGH LTD,11655,210200.33
Department of Health,Department of Health,13/06/2011,Rent of Land & Buildings (non-PFI operating lease),NHS FINANCE PERFORMANCE & OPERATIONS,DEAN CLOUGH LTD,11655,-0.01
Department of Health,Department of Health,13/06/2011,Service charge,NHS FINANCE PERFORMANCE & OPERATIONS,DEAN CLOUGH LTD,11655,23587.49
Department of Health,Department of Health,13/06/2011,Stock Essential Medicines Additions,NHS MEDICAL DIRECTOR,SIGMA PHARMACEUTICALS PLC,I146655,145848.4
Department of Health,Department of Health,13/06/2011,Stock Essential Medicines Additions,NHS MEDICAL DIRECTOR,SIGMA PHARMACEUTICALS PLC,I159114,59349.54
Department of Health,Department of Health,13/06/2011,Stock Essential Medicines Additions,NHS MEDICAL DIRECTOR,SIGMA PHARMACEUTICALS PLC,I223593,120915.85
Department of Health,Department of Health,13/06/2011,Stock Essential Medicines Additions,NHS MEDICAL DIRECTOR,SIGMA PHARMACEUTICALS PLC,I235447,51906.23
Department of Health,Department of Health,13/06/2011,Stock Essential Medicines Additions,NHS MEDICAL DIRECTOR,SIGMA PHARMACEUTICALS PLC,I98044,34489.07
Department of Health,Department of Health,13/06/2011,Research & development,Research and Development,NATURAL ENVIRONMENT RESEARCH COUNCIL (NERC),7060000864,25000
Department of Health,Department of Health,13/06/2011,Research & development,Research and Development,NATURAL ENVIRONMENT RESEARCH COUNCIL (NERC),7060000865,25000
Department of Health,Department of Health,13/06/2011,Research & development,Research and Development,MEDICINES AND HEALTHCARE PRODUCTS REGULATORY AGENCY (MHRA),ERS-433910-47427,250000
Department of Health,Department of Health,13/06/2011,Research & development,Research and Development,ASHRIDGE CONSULTING LTD,ERS-433913-47426,320124.98
Department of Health,Department of Health,13/06/2011,Research & development,Research and Development,PREPRESS PROJECTS LTD,ERS-433914-47432,25000
Department of Health,Department of Health,13/06/2011,Research & development,Research and Development,OXLEAS NHS FOUNDATION TRUST,ERS-433916-47423,28413
Department of Health,Department of Health,13/06/2011,Research & development,Research and Development,IMPERIAL COLLEGE LONDON,ERS-433919-47429,109150
Department of Health,Department of Health,13/06/2011,Grants to local authorities (CAP),Social Care,BARNSLEY METROPOLITAN BOROUGH COUNCIL,ERS-433947-47441,650008
Department of Health,Department of Health,13/06/2011,Grants to local authorities (CAP),Social Care,BIRMINGHAM CITY COUNCIL,ERS-433948-47442,2940522
Department of Health,Department of Health,13/06/2011,Grants to local authorities (CAP),Social Care,BOLTON METROPOLITAN BOROUGH COUNCIL,ERS-433949-47443,706878
Department of Health,Department of Health,13/06/2011,Grants to local authorities (CAP),Social Care,BRADFORD CITY COUNCIL,ERS-433950-47444,1191154
Department of Health,Department of Health,13/06/2011,Grants to local authorities (CAP),Social Care,BURY METROPOLITAN BOROUGH COUNCIL,ERS-433951-47445,423627
Department of Health,Department of Health,13/06/2011,Grants to local authorities (CAP),Social Care,CALDERDALE METROPOLITAN BOROUGH COUNCIL,ERS-433952-47446,481944
Department of Health,Department of Health,13/06/2011,Grants to local authorities (CAP),Social Care,COVENTRY CITY COUNCIL,ERS-433954-47447,810387
Department of Health,Department of Health,13/06/2011,Grants to local authorities (CAP),Social Care,DONCASTER METROPOLITAN BOROUGH COUNCIL,ERS-433955-47448,775599
Department of Health,Department of Health,13/06/2011,Grants to local authorities (CAP),Social Care,DUDLEY METROPOLITAN BOROUGH COUNCIL,ERS-433956-47449,820023
Department of Health,Department of Health,13/06/2011,Grants to local authorities (CAP),Social Care,GATESHEAD COUNCIL,ERS-433957-47450,584709
Department of Health,Department of Health,13/06/2011,Grants to local authorities (CAP),Social Care,KIRKLEES METROPOLITAN COUNCIL,ERS-433976-47461,951669
Department of Health,Department of Health,13/06/2011,Grants to local authorities (CAP),Social Care,KNOWSLEY METROPOLITAN BOROUGH COUNCIL,ERS-433978-47462,520722
Department of Health,Department of Health,13/06/2011,Grants to local authorities (CAP),Social Care,LEEDS CITY COUNCIL,ERS-433979-47463,1779403
Department of Health,Department of Health,13/06/2011,Grants to local authorities (CAP),Social Care,LIVERPOOL CITY COUNCIL,ERS-433980-47464,1549605
Department of Health,Department of Health,13/06/2011,Grants to local authorities (CAP),Social Care,MANCHESTER CITY COUNCIL,ERS-433982-47465,1408354
Department of Health,Department of Health,13/06/2011,Grants to local authorities (CAP),Social Care,NEWCASTLE UPON TYNE CITY COUNCIL,ERS-433983-47466,789827
Department of Health,Department of Health,13/06/2011,Grants to local authorities (CAP),Social Care,NORTH TYNESIDE METROPOLITAN BOROUGH COUNCIL,ERS-433984-47467,535228
Department of Health,Department of Health,13/06/2011,Grants to local authorities (CAP),Social Care,OLDHAM METROPOLITAN BOROUGH COUNCIL,ERS-433985-47468,580054
Department of Health,Department of Health,13/06/2011,Grants to local authorities (CAP),Social Care,ROCHDALE BOROUGH COUNCIL,ERS-433986-47469,569634
Department of Health,Department of Health,13/06/2011,Grants to local authorities (CAP),Social Care,ROTHERHAM BOROUGH COUNCIL,ERS-433987-47470,700071
Department of Health,Department of Health,13/06/2011,Grants to local authorities (CAP),Social Care,SALFORD CITY COUNCIL,ERS-433988-47471,690078
Department of Health,Department of Health,13/06/2011,Grants to local authorities (CAP),Social Care,SANDWELL METROPOPLITAN BOROUGH COUNCIL,ERS-433989-47472,953467
Department of Health,Department of Health,13/06/2011,Grants to local authorities (CAP),Social Care,CALDERDALE METROPOLITAN BOROUGH COUNCIL,ERS-433991-47481,1483602
Department of Health,Department of Health,13/06/2011,Grants to local authorities (CAP),Social Care,CAMBRIDGESHIRE COUNTY COUNCIL,ERS-433992-47482,9944687
Department of Health,Department of Health,13/06/2011,Grants to local authorities (CAP),Social Care,CAMDEN LONDON BOROUGH COUNCIL,ERS-433993-47483,3477647
Department of Health,Department of Health,13/06/2011,Grants to local authorities (CAP),Social Care,CENTRAL BEDFORDSHIRE UNITARY AUTHORITY,ERS-433994-47484,9841404
Department of Health,Department of Health,13/06/2011,Grants to local authorities (CAP),Social Care,SEFTON METROPOLITAN BOROUGH COUNCIL,ERS-434002-47502,797227
Department of Health,Department of Health,13/06/2011,Grants to local authorities (CAP),Social Care,SHEFFIELD CITY COUNCIL,ERS-434003-47503,1452825
Department of Health,Department of Health,13/06/2011,Grants to local authorities (CAP),Social Care,SOLIHULL METROPOLITAN BOROUGH COUNCIL,ERS-434005-47504,440394
Department of Health,Department of Health,13/06/2011,Grants to local authorities (CAP),Social Care,SOUTH TYNESIDE COUNCIL,ERS-434006-47505,478661
Department of Health,Department of Health,13/06/2011,Grants to local authorities (CAP),Social Care,ST HELENS METROPOLITAN BOROUGH COUNCIL,ERS-434007-47501,504759
Department of Health,Department of Health,13/06/2011,Grants to local authorities (CAP),Social Care,STOCKPORT METROPOLITAN BOROUGH COUNCIL,ERS-434009-47506,668994
Department of Health,Department of Health,13/06/2011,Grants to local authorities (CAP),Social Care,SUNDERLAND CITY METROPOLITAN BOROUGH COUNCIL,ERS-434010-47507,828893
Department of Health,Department of Health,13/06/2011,Grants to local authorities (CAP),Social Care,TAMESIDE METROPOLITAN BOROUGH COUNCIL,ERS-434011-47508,604306
Department of Health,Department of Health,13/06/2011,Grants to local authorities (CAP),Social Care,TRAFFORD METROPOLITAN BOROUGH COUNCIL,ERS-434012-47509,495754
Department of Health,Department of Health,13/06/2011,Grants to local authorities (CAP),Social Care,WAKEFIELD METROPOLITAN DISTRICT COUNCIL,ERS-434013-47510,873956
Department of Health,Department of Health,13/06/2011,Grants to local authorities (CAP),Social Care,WALSALL METROPOLITAN BOROUGH COUNCIL,ERS-434014-47511,739992
Department of Health,Department of Health,13/06/2011,Grants to local authorities (CAP),Social Care,WIGAN METROPOLITAN BOROUGH COUNCIL,ERS-434017-47514,829846
Department of Health,Department of Health,13/06/2011,Grants to local authorities (CAP),Social Care,WIRRAL METROPOLITAN BOROUGH COUNCIL,ERS-434018-47515,941363
Department of Health,Department of Health,13/06/2011,Grants to local authorities (CAP),Social Care,WOLVERHAMPTON CITY COUNCIL,ERS-434019-47516,721275
Department of Health,Department of Health,13/06/2011,Grants to local authorities (CAP),Social Care,BARKING AND DAGENHAM LONDON BOROUGH COUNCIL,ERS-434020-47512,464665
Department of Health,Department of Health,13/06/2011,Grants to local authorities (CAP),Social Care,BARNET LONDON BOROUGH COUNCIL,ERS-434021-47513,742783
Department of Health,Department of Health,13/06/2011,Grants to non profit institutions (CUR),SOCIAL CARE,CONTACT A FAMILY,ERS-433887-47401,34921
Department of Health,Department of Health,13/06/2011,Research & development,SOCIAL CARE,OXFORD UNIVERSITY,ROVH0/20068512,52754
Department of Health,Department of Health,14/06/2011,Rent of Land & Buildings (non-PFI operating lease),FINANCE & OPERATIONS (DM),FOOD STANDARDS AGENCY (FSA),1700775,500000
Department of Health,Department of Health,14/06/2011,Travel & subsistence staff,FINANCE & OPERATIONS (DM),EXPOTEL HOTEL RESERVATIONS LTD,721399,50522.06
Department of Health,Department of Health,14/06/2011,Conferences & seminars,FINANCE & OPERATIONS (DM),EXPOTEL HOTEL RESERVATIONS LTD,721578,71951.61
Department of Health,Department of Health,14/06/2011,Outsourcing Contract,Health Improvement and Protection,INSTITUTE OF EDUCATION (IOE),INV0000052828,40453
Department of Health,Department of Health,14/06/2011,Expense clearing GPC (ST),More than one Directorate,BARCLAYCARD BUSINESS,2070001-20-JUN-11,6100.61
Department of Health,Department of Health,14/06/2011,Addition Clearing - IT,NHS Chief Information Officer,CSC COMPUTER SCIENCES LTD,5201220361,86223.23
Department of Health,Department of Health,14/06/2011,Addition Clearing - IT,NHS Chief Information Officer,CSC COMPUTER SCIENCES LTD,5201220362,57885.53
Department of Health,Department of Health,14/06/2011,Rent of Land & Buildings (non-PFI operating lease),NHS FINANCE PERFORMANCE & OPERATIONS,GVA GRIMLEY LTD,8120-257810,21629.59
Department of Health,Department of Health,14/06/2011,Service charge,NHS FINANCE PERFORMANCE & OPERATIONS,GVA GRIMLEY LTD,8120-257810,7940.59
Department of Health,Department of Health,14/06/2011,Grants to local authorities (CAP),Social Care,SHEFFIELD CITY COUNCIL,ERS-434036-47542,13784153
Department of Health,Department of Health,14/06/2011,Grants to local authorities (CAP),Social Care,CHESHIRE EAST UNITARY AUTHORITY,ERS-434039-47543,4020582
Department of Health,Department of Health,14/06/2011,Grants to local authorities (CAP),Social Care,CHESHIRE WEST AND CHESTER UNITARY AUTHORITY,ERS-434040-47544,8623097
Department of Health,Department of Health,14/06/2011,Grants to local authorities (CAP),Social Care,CORNWALL COUNTY COUNCIL,ERS-434043-47546,2143230
Department of Health,Department of Health,14/06/2011,Grants to local authorities (CAP),Social Care,COVENTRY CITY COUNCIL,ERS-434047-47547,1373099
Department of Health,Department of Health,14/06/2011,Grants to local authorities (CAP),Social Care,CROYDON LONDON BOROUGH COUNCIL,ERS-434051-47548,14892895
Department of Health,Department of Health,14/06/2011,Grants to local authorities (CAP),Social Care,CUMBRIA COUNTY COUNCIL,ERS-434057-47549,16103109
Department of Health,Department of Health,14/06/2011,Programme Revenue Grant in Aid to ENDPBs,SOCIAL CARE,DEPARTMENT FOR EDUCATION (DFE),350000912,2868000
Department of Health,Department of Health,14/06/2011,Programme Revenue Grant in Aid to ENDPBs,WORKFORCE,GENERAL SOCIAL CARE COUNCIL (GSCC),ERS-434035-47541,3400000
Department of Health,Department of Health,14/06/2011,Other programme expenditure,WORKFORCE,HEALTH PROFESSIONS COUNCIL (HPC),HPC/004,36714.34
Department of Health,Department of Health,14/06/2011,Other programme expenditure,WORKFORCE,HEALTH PROFESSIONS COUNCIL (HPC),HPC/005,56580.66
Department of Health,Department of Health,14/06/2011,Other programme expenditure,WORKFORCE,HEALTH PROFESSIONS COUNCIL (HPC),HPC/007,30300.42
Department of Health,Department of Health,14/06/2011,Other programme expenditure,WORKFORCE,HEALTH PROFESSIONS COUNCIL (HPC),HPC/008,113240.56
Department of Health,Department of Health,15/06/2011,Professional fees,COMMISSIONING,CAPITA BUSINESS SERVICES LTD,92086222,91027.2
Department of Health,Department of Health,15/06/2011,Professional fees,COMMISSIONING,BRITISH MEDICAL ASSOCIATION (BMA),I0039846,21532
Department of Health,Department of Health,15/06/2011,Outsourcing Contract,Health Improvement and Protection,SAPIENT LTD,22030,24745
Department of Health,Department of Health,15/06/2011,Expense clearing GPC (ST),More than one Directorate,BARCLAYCARD BUSINESS,2070001-20-JUN-11,16098.52
Department of Health,Department of Health,15/06/2011,Service charge,NHS Chief Information Officer,ATOS ORIGIN IT SERVICES UK LTD,5584075517,3174.98
Department of Health,Department of Health,15/06/2011,Service charge,NHS Chief Information Officer,ATOS ORIGIN IT SERVICES UK LTD,5584075517,52538.44
Department of Health,Department of Health,15/06/2011,Computer Software/License,NHS Chief Information Officer,SOFTWARE AG (UK) LTD,13076733,86797.2
Department of Health,Department of Health,15/06/2011,Contr Other External,NHS Chief Information Officer,CAPITA BUSINESS SERVICES LTD,13143547,49245
Department of Health,Department of Health,15/06/2011,External Consultancy Fees,NHS Chief Information Officer,CABLE & WIRELESS UK,13143550,63335.89
Department of Health,Department of Health,15/06/2011,Hardware & Crockery,NHS Chief Information Officer,PROBRAND LTD,13112311,119654.34
Department of Health,Department of Health,15/06/2011,Rent,NHS Chief Information Officer,KNIGHT FRANK LLP,13135014,39218.4
Department of Health,Department of Health,15/06/2011,Radio communications,NHS FINANCE PERFORMANCE & OPERATIONS,AIRWAVE SOLUTIONS INTERNATIONAL LTD,0900000137-132,2302.16
Department of Health,Department of Health,15/06/2011,Radio communications,NHS FINANCE PERFORMANCE & OPERATIONS,AIRWAVE SOLUTIONS INTERNATIONAL LTD,0900000137-132,11510.85
Department of Health,Department of Health,15/06/2011,Radio communications,NHS FINANCE PERFORMANCE & OPERATIONS,AIRWAVE SOLUTIONS INTERNATIONAL LTD,0900000137-132,1728
Department of Health,Department of Health,15/06/2011,Radio communications,NHS FINANCE PERFORMANCE & OPERATIONS,AIRWAVE SOLUTIONS INTERNATIONAL LTD,0900000137-132,50
Department of Health,Department of Health,15/06/2011,Radio communications,NHS FINANCE PERFORMANCE & OPERATIONS,AIRWAVE SOLUTIONS INTERNATIONAL LTD,0900000137-132,648.4
Department of Health,Department of Health,15/06/2011,Radio communications,NHS FINANCE PERFORMANCE & OPERATIONS,AIRWAVE SOLUTIONS INTERNATIONAL LTD,0900000137-132,3346.01
Department of Health,Department of Health,15/06/2011,Radio communications,NHS FINANCE PERFORMANCE & OPERATIONS,AIRWAVE SOLUTIONS INTERNATIONAL LTD,0900000137-132,37026
Department of Health,Department of Health,15/06/2011,Radio communications,NHS FINANCE PERFORMANCE & OPERATIONS,AIRWAVE SOLUTIONS INTERNATIONAL LTD,0900000137-132,92566.56
Department of Health,Department of Health,15/06/2011,Radio communications,NHS FINANCE PERFORMANCE & OPERATIONS,AIRWAVE SOLUTIONS INTERNATIONAL LTD,0900000137-132,2962
Department of Health,Department of Health,15/06/2011,Radio communications,NHS FINANCE PERFORMANCE & OPERATIONS,AIRWAVE SOLUTIONS INTERNATIONAL LTD,0900000137-132,25494
Department of Health,Department of Health,15/06/2011,Addition Clearing - IT,NHS FINANCE PERFORMANCE & OPERATIONS,AIRWAVE SOLUTIONS INTERNATIONAL LTD,0900000137-133,778
Department of Health,Department of Health,15/06/2011,Radio communications,NHS FINANCE PERFORMANCE & OPERATIONS,AIRWAVE SOLUTIONS INTERNATIONAL LTD,0900000137-133,5757.23
Department of Health,Department of Health,15/06/2011,Radio communications,NHS FINANCE PERFORMANCE & OPERATIONS,AIRWAVE SOLUTIONS INTERNATIONAL LTD,0900000137-133,100
Department of Health,Department of Health,15/06/2011,Radio communications,NHS FINANCE PERFORMANCE & OPERATIONS,AIRWAVE SOLUTIONS INTERNATIONAL LTD,0900000137-133,4014.31
Department of Health,Department of Health,15/06/2011,Radio communications,NHS FINANCE PERFORMANCE & OPERATIONS,AIRWAVE SOLUTIONS INTERNATIONAL LTD,0900000137-133,2112.25
Department of Health,Department of Health,15/06/2011,Radio communications,NHS FINANCE PERFORMANCE & OPERATIONS,AIRWAVE SOLUTIONS INTERNATIONAL LTD,0900000137-133,800
Department of Health,Department of Health,15/06/2011,Radio communications,NHS FINANCE PERFORMANCE & OPERATIONS,AIRWAVE SOLUTIONS INTERNATIONAL LTD,0900000137-133,3133
Department of Health,Department of Health,15/06/2011,Radio communications,NHS FINANCE PERFORMANCE & OPERATIONS,AIRWAVE SOLUTIONS INTERNATIONAL LTD,0900000137-133,23880
Department of Health,Department of Health,15/06/2011,Radio communications,NHS FINANCE PERFORMANCE & OPERATIONS,AIRWAVE SOLUTIONS INTERNATIONAL LTD,0900000137-133,14152
Department of Health,Department of Health,15/06/2011,Radio communications,NHS FINANCE PERFORMANCE & OPERATIONS,AIRWAVE SOLUTIONS INTERNATIONAL LTD,0900000137-133,8100
Department of Health,Department of Health,15/06/2011,Radio communications,NHS FINANCE PERFORMANCE & OPERATIONS,AIRWAVE SOLUTIONS INTERNATIONAL LTD,0900000137-133,900
Department of Health,Department of Health,15/06/2011,Radio communications,NHS FINANCE PERFORMANCE & OPERATIONS,AIRWAVE SOLUTIONS INTERNATIONAL LTD,0900000137-133,20450
Department of Health,Department of Health,15/06/2011,Radio communications,NHS FINANCE PERFORMANCE & OPERATIONS,AIRWAVE SOLUTIONS INTERNATIONAL LTD,0900000137-133,47334.62
Department of Health,Department of Health,15/06/2011,Facilities management: contract,NHS FINANCE PERFORMANCE & OPERATIONS,New Century Property Developments Ltd,40719,1652.04
Department of Health,Department of Health,15/06/2011,Rent of Land & Buildings (non-PFI operating lease),NHS FINANCE PERFORMANCE & OPERATIONS,New Century Property Developments Ltd,40719,21582
Department of Health,Department of Health,15/06/2011,Service charge,NHS FINANCE PERFORMANCE & OPERATIONS,New Century Property Developments Ltd,40719,9109.38
Department of Health,Department of Health,15/06/2011,Rent of Land & Buildings (non-PFI operating lease),NHS FINANCE PERFORMANCE & OPERATIONS,Rablare Ltd,991234,37500
Department of Health,Department of Health,15/06/2011,Rent of Land & Buildings (non-PFI operating lease),NHS FINANCE PERFORMANCE & OPERATIONS,SAVILLS COMMERCIAL LTD,A264730,21418.5
Department of Health,Department of Health,15/06/2011,Service charge,NHS FINANCE PERFORMANCE & OPERATIONS,SAVILLS COMMERCIAL LTD,A264730,11275.45
Department of Health,Department of Health,15/06/2011,Utilities,NHS FINANCE PERFORMANCE & OPERATIONS,SAVILLS COMMERCIAL LTD,A264730,1981.91
Department of Health,Department of Health,15/06/2011,Research & development,Research and Development,ACADEMY OF MEDICAL SCIENCES,ERS-434152-47651,30370
Department of Health,Department of Health,15/06/2011,Research & development,Research and Development,AINTREE UNIVERSITY HOSPITALS NHS FOUNDATION TRUST,ERS-434153-47606,25323
Department of Health,Department of Health,15/06/2011,Research & development,Research and Development,ALDER HEY CHILDRENS NHS FOUNDATION TRUST,ERS-434154-47602,157574
Department of Health,Department of Health,15/06/2011,Research & development,Research and Development,AVON & WILTSHIRE MENTAL HEALTH PARTNERSHIP NHS TRUST,ERS-434155-47638,113293
Department of Health,Department of Health,15/06/2011,Research & development,Research and Development,AVON & WILTSHIRE MENTAL HEALTH PARTNERSHIP NHS TRUST,ERS-434155-47638,110248
Department of Health,Department of Health,15/06/2011,Research & development,Research and Development,BARTS AND THE LONDON NHS TRUST,ERS-434156-47623,124303
Department of Health,Department of Health,15/06/2011,Research & development,Research and Development,BARTS AND THE LONDON NHS TRUST,ERS-434156-47623,138748
Department of Health,Department of Health,15/06/2011,Research & development,Research and Development,BIRMINGHAM AND SOLIHULL MENTAL HEALTH NHS FOUNDATION TRUST,ERS-434157-47649,113723
Department of Health,Department of Health,15/06/2011,Research & development,Research and Development,BIRMINGHAM CHILDREN'S HOSPITAL NHS FOUNDATION TRUST,ERS-434158-47626,158742
Department of Health,Department of Health,15/06/2011,Research & development,Research and Development,BIRMINGHAM UNIVERSITY OF,ERS-434159-47652,97268
Department of Health,Department of Health,15/06/2011,Research & development,Research and Development,BIRMINGHAM UNIVERSITY OF,ERS-434159-47652,17495
Department of Health,Department of Health,15/06/2011,Research & development,Research and Development,BIRMINGHAM UNIVERSITY OF,ERS-434159-47652,12231
Department of Health,Department of Health,15/06/2011,Research & development,Research and Development,BIRMINGHAM UNIVERSITY OF,ERS-434159-47652,40036
Department of Health,Department of Health,15/06/2011,Research & development,Research and Development,BIRMINGHAM UNIVERSITY OF,ERS-434159-47652,13750
Department of Health,Department of Health,15/06/2011,Research & development,Research and Development,BIRMINGHAM UNIVERSITY OF,ERS-434159-47652,45877
Department of Health,Department of Health,15/06/2011,Research & development,Research and Development,BIRMINGHAM UNIVERSITY OF,ERS-434159-47652,15245
Department of Health,Department of Health,15/06/2011,Research & development,Research and Development,BIRMINGHAM UNIVERSITY OF,ERS-434159-47652,9096
Department of Health,Department of Health,15/06/2011,Research & development,Research and Development,BIRMINGHAM UNIVERSITY OF,ERS-434159-47652,28376
Department of Health,Department of Health,15/06/2011,Research & development,Research and Development,BIRMINGHAM UNIVERSITY OF,ERS-434159-47652,19857
Department of Health,Department of Health,15/06/2011,Research & development,Research and Development,BIRMINGHAM UNIVERSITY OF,ERS-434159-47652,28387
Department of Health,Department of Health,15/06/2011,Research & development,Research and Development,BRADFORD TEACHING HOSPITALS NHS FOUNDATION TRUST,ERS-434160-47601,117422
Department of Health,Department of Health,15/06/2011,Research & development,Research and Development,BRISTOL PCT,ERS-434161-47597,145315
Department of Health,Department of Health,15/06/2011,Research & development,Research and Development,BRISTOL UNIVERSITY OF,ERS-434162-47653,23517
Department of Health,Department of Health,15/06/2011,Research & development,Research and Development,BRISTOL UNIVERSITY OF,ERS-434162-47653,22182
Department of Health,Department of Health,15/06/2011,Research & development,Research and Development,BRISTOL UNIVERSITY OF,ERS-434162-47653,13634
Department of Health,Department of Health,15/06/2011,Research & development,Research and Development,BRISTOL UNIVERSITY OF,ERS-434162-47653,21907
Department of Health,Department of Health,15/06/2011,Research & development,Research and Development,BRISTOL UNIVERSITY OF,ERS-434162-47653,11577
Department of Health,Department of Health,15/06/2011,Research & development,Research and Development,BRISTOL UNIVERSITY OF,ERS-434162-47653,20858
Department of Health,Department of Health,15/06/2011,Research & development,Research and Development,BRISTOL UNIVERSITY OF,ERS-434162-47653,17554
Department of Health,Department of Health,15/06/2011,Research & development,Research and Development,BRISTOL UNIVERSITY OF,ERS-434162-47653,24462
Department of Health,Department of Health,15/06/2011,Research & development,Research and Development,BRISTOL UNIVERSITY OF,ERS-434162-47653,24971
Department of Health,Department of Health,15/06/2011,Research & development,Research and Development,BRISTOL UNIVERSITY OF,ERS-434162-47653,37017
Department of Health,Department of Health,15/06/2011,Research & development,Research and Development,BRISTOL UNIVERSITY OF,ERS-434162-47653,26031
Department of Health,Department of Health,15/06/2011,Research & development,Research and Development,BRISTOL UNIVERSITY OF,ERS-434162-47653,11000
Department of Health,Department of Health,15/06/2011,Research & development,Research and Development,BRISTOL UNIVERSITY OF,ERS-434162-47653,50208
Department of Health,Department of Health,15/06/2011,Research & development,Research and Development,BRISTOL UNIVERSITY OF,ERS-434162-47653,16477
Department of Health,Department of Health,15/06/2011,Research & development,Research and Development,BRISTOL UNIVERSITY OF,ERS-434162-47653,8579
Department of Health,Department of Health,15/06/2011,Research & development,Research and Development,BRISTOL UNIVERSITY OF,ERS-434162-47653,17349
Department of Health,Department of Health,15/06/2011,Research & development,Research and Development,CAMBRIDGE UNIVERSITY HOSPITALS NHS FOUNDATION TRUST,ERS-434163-47608,117939
Department of Health,Department of Health,15/06/2011,Research & development,Research and Development,CAMBRIDGE UNIVERSITY HOSPITALS NHS FOUNDATION TRUST,ERS-434163-47608,201000
Department of Health,Department of Health,15/06/2011,Research & development,Research and Development,CAMBRIDGE UNIVERSITY HOSPITALS NHS FOUNDATION TRUST,ERS-434163-47608,122428
Department of Health,Department of Health,15/06/2011,Research & development,Research and Development,CAMBRIDGE UNIVERSITY OF,ERS-434164-47654,48721
Department of Health,Department of Health,15/06/2011,Research & development,Research and Development,CAMBRIDGE UNIVERSITY OF,ERS-434164-47654,100000
Department of Health,Department of Health,15/06/2011,Research & development,Research and Development,CAMBRIDGESHIRE AND PETERBOROUGH NHS FOUNDATION TRUST,ERS-434165-47629,95602
Department of Health,Department of Health,15/06/2011,Research & development,Research and Development,CAMBRIDGESHIRE PCT,ERS-434166-47594,75258
Department of Health,Department of Health,15/06/2011,Research & development,Research and Development,CAMDEN AND ISLINGTON NHS FOUNDATION TRUST,ERS-434167-47682,127092
Department of Health,Department of Health,15/06/2011,Research & development,Research and Development,CAMDEN PCT,ERS-434168-47583,81821
Department of Health,Department of Health,15/06/2011,Research & development,Research and Development,CENTRAL AND NORTH WEST LONDON MENTAL HEALTH NHS FOUNDATION TRUST,ERS-434170-47636,115774
Department of Health,Department of Health,15/06/2011,Research & development,Research and Development,CENTRAL MANCHESTER UNIVERSITY HOSPITALS NHS FOUNDATION TRUST,ERS-434171-47640,146014
Department of Health,Department of Health,15/06/2011,Research & development,Research and Development,CITY HOSPITALS SUNDERLAND NHS FOUNDATION TRUST,ERS-434172-47618,117881
Department of Health,Department of Health,15/06/2011,Research & development,Research and Development,CITY HOSPITALS SUNDERLAND NHS FOUNDATION TRUST,ERS-434172-47618,163060
Department of Health,Department of Health,15/06/2011,Research & development,Research and Development,CLATTERBRIDGE CENTRE FOR ONCOLOGY NHS FOUNDATION TRUST,ERS-434173-47607,182208
Department of Health,Department of Health,15/06/2011,Research & development,Research and Development,DERBY HOSPITALS NHS FOUNDATION TRUST,ERS-434174-47633,78146
Department of Health,Department of Health,15/06/2011,Research & development,Research and Development,DEVON PCT,ERS-434176-47599,75696
Department of Health,Department of Health,15/06/2011,Research & development,Research and Development,DORSET PCT,ERS-434177-47598,70679
Department of Health,Department of Health,15/06/2011,Research & development,Research and Development,EAST ANGLIA UNIVERSITY OF,ERS-434179-47655,32256
Department of Health,Department of Health,15/06/2011,Research & development,Research and Development,EAST ANGLIA UNIVERSITY OF,ERS-434179-47655,12231
Department of Health,Department of Health,15/06/2011,Research & development,Research and Development,EAST ANGLIA UNIVERSITY OF,ERS-434179-47655,17101
Department of Health,Department of Health,15/06/2011,Research & development,Research and Development,EAST MIDLANDS AMBULANCE SERVICE NHS TRUST,ERS-434181-47647,74677
Department of Health,Department of Health,15/06/2011,Research & development,Research and Development,GLOUCESTERSHIRE HOSPITALS NHS FOUNDATION TRUST,ERS-434183-47631,101392
Department of Health,Department of Health,15/06/2011,Research & development,Research and Development,GREAT ORMOND STREET HOSPITAL FOR CHILDREN NHS TRUST,ERS-434186-47624,163230
Department of Health,Department of Health,15/06/2011,Research & development,Research and Development,GUYS AND ST THOMAS NHS FOUNDATION TRUST,ERS-434187-47613,141522
Department of Health,Department of Health,15/06/2011,Research & development,Research and Development,HALTON & ST HELENS PCT,ERS-434189-47589,75424
Department of Health,Department of Health,15/06/2011,Research & development,Research and Development,HAMMERSMITH AND FULHAM PCT,ERS-434190-47582,170157
Department of Health,Department of Health,15/06/2011,Research & development,Research and Development,HAMMERSMITH AND FULHAM PCT,ERS-434190-47582,13381
Department of Health,Department of Health,15/06/2011,Research & development,Research and Development,HERTFORDSHIRE PCT,ERS-434191-47590,143119
Department of Health,Department of Health,15/06/2011,Research & development,Research and Development,HULL AND EAST YORKSHIRE HOSPITALS NHS TRUST,ERS-434192-47642,93790
Department of Health,Department of Health,15/06/2011,Research & development,Research and Development,HULL AND EAST YORKSHIRE HOSPITALS NHS TRUST,ERS-434192-47642,102428
Department of Health,Department of Health,15/06/2011,Research & development,Research and Development,IMPERIAL COLLEGE HEALTHCARE NHS TRUST,ERS-434193-47650,124183
Department of Health,Department of Health,15/06/2011,Research & development,Research and Development,IMPERIAL COLLEGE LONDON,ERS-434195-47659,30287
Department of Health,Department of Health,15/06/2011,Research & development,Research and Development,IMPERIAL COLLEGE LONDON,ERS-434195-47659,21210.55
Department of Health,Department of Health,15/06/2011,Research & development,Research and Development,IMPERIAL COLLEGE LONDON,ERS-434195-47659,29007
Department of Health,Department of Health,15/06/2011,Research & development,Research and Development,IMPERIAL COLLEGE LONDON,ERS-434195-47659,22448
Department of Health,Department of Health,15/06/2011,Research & development,Research and Development,IMPERIAL COLLEGE LONDON,ERS-434195-47659,12215
Department of Health,Department of Health,15/06/2011,Research & development,Research and Development,IMPERIAL COLLEGE LONDON,ERS-434195-47659,50603
Department of Health,Department of Health,15/06/2011,Research & development,Research and Development,IMPERIAL COLLEGE LONDON,ERS-434195-47659,39301
Department of Health,Department of Health,15/06/2011,Research & development,Research and Development,IMPERIAL COLLEGE LONDON,ERS-434195-47659,65954
Department of Health,Department of Health,15/06/2011,Research & development,Research and Development,IMPERIAL COLLEGE LONDON,ERS-434195-47659,50479
Department of Health,Department of Health,15/06/2011,Research & development,Research and Development,IMPERIAL COLLEGE LONDON,ERS-434195-47659,28136
Department of Health,Department of Health,15/06/2011,Research & development,Research and Development,KEELE UNIVERSITY OF,ERS-434197-47660,14587
Department of Health,Department of Health,15/06/2011,Research & development,Research and Development,KEELE UNIVERSITY OF,ERS-434197-47660,12231
Department of Health,Department of Health,15/06/2011,Research & development,Research and Development,KINGS COLLEGE LONDON,ERS-434198-47661,28583
Department of Health,Department of Health,15/06/2011,Research & development,Research and Development,KINGS COLLEGE LONDON,ERS-434198-47661,24970
Department of Health,Department of Health,15/06/2011,Research & development,Research and Development,KINGS COLLEGE LONDON,ERS-434198-47661,25199
Department of Health,Department of Health,15/06/2011,Research & development,Research and Development,KINGS COLLEGE LONDON,ERS-434198-47661,36595
Department of Health,Department of Health,15/06/2011,Research & development,Research and Development,KINGS COLLEGE LONDON,ERS-434198-47661,27275
Department of Health,Department of Health,15/06/2011,Research & development,Research and Development,KINGS COLLEGE LONDON,ERS-434198-47661,18361
Department of Health,Department of Health,15/06/2011,Research & development,Research and Development,KINGS COLLEGE LONDON,ERS-434198-47661,31347
Department of Health,Department of Health,15/06/2011,Research & development,Research and Development,KINGS COLLEGE LONDON,ERS-434198-47661,28868
Department of Health,Department of Health,15/06/2011,Research & development,Research and Development,KINGS COLLEGE LONDON,ERS-434198-47661,36693
Department of Health,Department of Health,15/06/2011,Research & development,Research and Development,KINGS COLLEGE LONDON,ERS-434198-47661,20959
Department of Health,Department of Health,15/06/2011,Research & development,Research and Development,KINGS COLLEGE LONDON,ERS-434198-47661,69543
Department of Health,Department of Health,15/06/2011,Research & development,Research and Development,KINGS COLLEGE LONDON,ERS-434198-47661,25826
Department of Health,Department of Health,15/06/2011,Research & development,Research and Development,KINGS COLLEGE LONDON,ERS-434198-47661,31130
Department of Health,Department of Health,15/06/2011,Research & development,Research and Development,KINGS COLLEGE LONDON,ERS-434198-47661,26694
Department of Health,Department of Health,15/06/2011,Research & development,Research and Development,LANCASHIRE CARE NHS FOUNDATION TRUST,ERS-434201-47641,106106
Department of Health,Department of Health,15/06/2011,Research & development,Research and Development,LANCASHIRE TEACHING HOSPITALS NHS FOUNDATION TRUST,ERS-434202-47648,128571
Department of Health,Department of Health,15/06/2011,Research & development,Research and Development,LANCASTER UNIVERSITY,ERS-434204-47662,23531
Department of Health,Department of Health,15/06/2011,Research & development,Research and Development,LANCASTER UNIVERSITY,ERS-434204-47662,20635
Department of Health,Department of Health,15/06/2011,Research & development,Research and Development,LEEDS TEACHING HOSPITAL NHS TRUST,ERS-434205-47627,14410
Department of Health,Department of Health,15/06/2011,Research & development,Research and Development,LEEDS TEACHING HOSPITAL NHS TRUST,ERS-434205-47627,209814
Department of Health,Department of Health,15/06/2011,Research & development,Research and Development,LEEDS UNIVERSITY OF,ERS-434206-47663,10302
Department of Health,Department of Health,15/06/2011,Research & development,Research and Development,LEEDS UNIVERSITY OF,ERS-434206-47663,34263
Department of Health,Department of Health,15/06/2011,Research & development,Research and Development,LEEDS UNIVERSITY OF,ERS-434206-47663,40745
Department of Health,Department of Health,15/06/2011,Research & development,Research and Development,LEEDS UNIVERSITY OF,ERS-434206-47663,42773
Department of Health,Department of Health,15/06/2011,Research & development,Research and Development,LEEDS UNIVERSITY OF,ERS-434206-47663,21532
Department of Health,Department of Health,15/06/2011,Research & development,Research and Development,LEEDS UNIVERSITY OF,ERS-434206-47663,30598
Department of Health,Department of Health,15/06/2011,Research & development,Research and Development,LEEDS UNIVERSITY OF,ERS-434206-47663,15393
Department of Health,Department of Health,15/06/2011,Research & development,Research and Development,LEICESTER CITY PCT,ERS-434207-47591,75445
Department of Health,Department of Health,15/06/2011,Research & development,Research and Development,LEICESTER UNIVERSITY OF,ERS-434208-47664,22088
Department of Health,Department of Health,15/06/2011,Research & development,Research and Development,LEICESTER UNIVERSITY OF,ERS-434208-47664,24462
Department of Health,Department of Health,15/06/2011,Research & development,Research and Development,LEICESTER UNIVERSITY OF,ERS-434208-47664,27314
Department of Health,Department of Health,15/06/2011,Research & development,Research and Development,LIVERPOOL UNIVERSITY OF,ERS-434209-47665,26568
Department of Health,Department of Health,15/06/2011,Research & development,Research and Development,LIVERPOOL UNIVERSITY OF,ERS-434209-47665,27073
Department of Health,Department of Health,15/06/2011,Research & development,Research and Development,LIVERPOOL UNIVERSITY OF,ERS-434209-47665,27549
Department of Health,Department of Health,15/06/2011,Research & development,Research and Development,LIVERPOOL UNIVERSITY OF,ERS-434209-47665,35975
Department of Health,Department of Health,15/06/2011,Research & development,Research and Development,LIVERPOOL UNIVERSITY OF,ERS-434209-47665,42128
Department of Health,Department of Health,15/06/2011,Research & development,Research and Development,LIVERPOOL UNIVERSITY OF,ERS-434209-47665,14311
Department of Health,Department of Health,15/06/2011,Research & development,Research and Development,LONDON SCHOOL OF HYGIENE AND TROPICAL MEDICINE,ERS-434210-47658,21237
Department of Health,Department of Health,15/06/2011,Research & development,Research and Development,LONDON SCHOOL OF HYGIENE AND TROPICAL MEDICINE,ERS-434210-47658,53254
Department of Health,Department of Health,15/06/2011,Research & development,Research and Development,LONDON SCHOOL OF HYGIENE AND TROPICAL MEDICINE,ERS-434210-47658,60359
Department of Health,Department of Health,15/06/2011,Research & development,Research and Development,LONDON SCHOOL OF HYGIENE AND TROPICAL MEDICINE,ERS-434210-47658,20260
Department of Health,Department of Health,15/06/2011,Research & development,Research and Development,LONDON SCHOOL OF HYGIENE AND TROPICAL MEDICINE,ERS-434210-47658,12406
Department of Health,Department of Health,15/06/2011,Research & development,Research and Development,MANCHESTER MENTAL HEALTH & SOCIAL CARE TRUST,ERS-434211-47681,125046
Department of Health,Department of Health,15/06/2011,Research & development,Research and Development,MANCHESTER UNIVERSITY OF,ERS-434212-47667,24751
Department of Health,Department of Health,15/06/2011,Research & development,Research and Development,MANCHESTER UNIVERSITY OF,ERS-434212-47667,24714
Department of Health,Department of Health,15/06/2011,Research & development,Research and Development,MANCHESTER UNIVERSITY OF,ERS-434212-47667,12231
Department of Health,Department of Health,15/06/2011,Research & development,Research and Development,MANCHESTER UNIVERSITY OF,ERS-434212-47667,11224
Department of Health,Department of Health,15/06/2011,Research & development,Research and Development,MANCHESTER UNIVERSITY OF,ERS-434212-47667,23591
Department of Health,Department of Health,15/06/2011,Research & development,Research and Development,MANCHESTER UNIVERSITY OF,ERS-434212-47667,37250
Department of Health,Department of Health,15/06/2011,Research & development,Research and Development,MANCHESTER UNIVERSITY OF,ERS-434212-47667,26888
Department of Health,Department of Health,15/06/2011,Research & development,Research and Development,MANCHESTER UNIVERSITY OF,ERS-434212-47667,63742
Department of Health,Department of Health,15/06/2011,Research & development,Research and Development,MANCHESTER UNIVERSITY OF,ERS-434212-47667,18235
Department of Health,Department of Health,15/06/2011,Research & development,Research and Development,MANCHESTER UNIVERSITY OF,ERS-434212-47667,19766
Department of Health,Department of Health,15/06/2011,Research & development,Research and Development,MANCHESTER UNIVERSITY OF,ERS-434212-47667,23775
Department of Health,Department of Health,15/06/2011,Research & development,Research and Development,MANCHESTER UNIVERSITY OF,ERS-434212-47667,16803
Department of Health,Department of Health,15/06/2011,Research & development,Research and Development,MID ESSEX PCT,ERS-434214-47595,128236
Department of Health,Department of Health,15/06/2011,Research & development,Research and Development,NEWCASTLE UNIVERSITY,ERS-434215-47669,24641
Department of Health,Department of Health,15/06/2011,Research & development,Research and Development,NEWCASTLE UNIVERSITY,ERS-434215-47669,22379
Department of Health,Department of Health,15/06/2011,Research & development,Research and Development,NEWCASTLE UNIVERSITY,ERS-434215-47669,25622
Department of Health,Department of Health,15/06/2011,Research & development,Research and Development,NEWCASTLE UNIVERSITY,ERS-434215-47669,23806
Department of Health,Department of Health,15/06/2011,Research & development,Research and Development,NEWCASTLE UNIVERSITY,ERS-434215-47669,10568
Department of Health,Department of Health,15/06/2011,Research & development,Research and Development,NEWCASTLE UNIVERSITY,ERS-434215-47669,27070
Department of Health,Department of Health,15/06/2011,Research & development,Research and Development,NEWCASTLE UNIVERSITY,ERS-434215-47669,37290
Department of Health,Department of Health,15/06/2011,Research & development,Research and Development,NORFOLK & NORWICH UNIVERSITY HOSPITAL NHS FOUNDATION TRUST,ERS-434217-47620,98677
Department of Health,Department of Health,15/06/2011,Research & development,Research and Development,NORFOLK & WAVENEY MENTAL HEALTH NHS FOUNDATION TRUST,ERS-434218-47622,120290
Department of Health,Department of Health,15/06/2011,Research & development,Research and Development,NORTH STAFFORDSHIRE COMBINED HEALTHCARE NHS TRUST,ERS-434219-47619,117584
Department of Health,Department of Health,15/06/2011,Research & development,Research and Development,NORTH STAFFORDSHIRE COMBINED HEALTHCARE NHS TRUST,ERS-434219-47619,161044
Department of Health,Department of Health,15/06/2011,Research & development,Research and Development,NORTH STAFFORDSHIRE PCT,ERS-434220-47592,75383
Department of Health,Department of Health,15/06/2011,Research & development,Research and Development,"NORTHUMBERLAND, TYNE AND WEAR NHS FOUNDATION TRUST",ERS-434221-47645,101778
Department of Health,Department of Health,15/06/2011,Research & development,Research and Development,"NORTHUMBERLAND, TYNE AND WEAR NHS FOUNDATION TRUST",ERS-434222-47646,122137
Department of Health,Department of Health,15/06/2011,Research & development,Research and Development,NOTTINGHAM UNIVERSITY HOSPITALS NHS TRUST,ERS-434224-47644,149095
Department of Health,Department of Health,15/06/2011,Research & development,Research and Development,NOTTINGHAM UNIVERSITY HOSPITALS NHS TRUST,ERS-434224-47644,145002
Department of Health,Department of Health,15/06/2011,Research & development,Research and Development,NOTTINGHAM UNIVERSITY OF,ERS-434225-47671,26882
Department of Health,Department of Health,15/06/2011,Research & development,Research and Development,NOTTINGHAM UNIVERSITY OF,ERS-434225-47671,31011
Department of Health,Department of Health,15/06/2011,Research & development,Research and Development,NOTTINGHAMSHIRE HEALTHCARE NHS TRUST,ERS-434226-47610,109323
Department of Health,Department of Health,15/06/2011,Research & development,Research and Development,OXFORD RADCLIFFE HOSPITAL NHS TRUST,ERS-434228-47634,220310
Department of Health,Department of Health,15/06/2011,Research & development,Research and Development,OXFORD RADCLIFFE HOSPITAL NHS TRUST,ERS-434228-47634,116702
Department of Health,Department of Health,15/06/2011,Research & development,Research and Development,OXFORD RADCLIFFE HOSPITAL NHS TRUST,ERS-434228-47634,117901
Department of Health,Department of Health,15/06/2011,Research & development,Research and Development,OXFORD UNIVERSITY,ERS-434229-47672,15423
Department of Health,Department of Health,15/06/2011,Research & development,Research and Development,OXFORD UNIVERSITY,ERS-434229-47672,36485
Department of Health,Department of Health,15/06/2011,Research & development,Research and Development,OXFORD UNIVERSITY,ERS-434229-47672,38586
Department of Health,Department of Health,15/06/2011,Research & development,Research and Development,OXFORD UNIVERSITY,ERS-434229-47672,46275
Department of Health,Department of Health,15/06/2011,Research & development,Research and Development,OXFORD UNIVERSITY,ERS-434229-47672,36890
Department of Health,Department of Health,15/06/2011,Research & development,Research and Development,OXFORD UNIVERSITY,ERS-434229-47672,28893
Department of Health,Department of Health,15/06/2011,Research & development,Research and Development,OXFORD UNIVERSITY,ERS-434229-47672,217914
Department of Health,Department of Health,15/06/2011,Research & development,Research and Development,OXFORDSHIRE PCT,ERS-434230-47596,83000
Department of Health,Department of Health,15/06/2011,Research & development,Research and Development,QUEEN MARY AND WESTFIELD COLLEGE,ERS-434231-47673,23507
Department of Health,Department of Health,15/06/2011,Research & development,Research and Development,QUEEN MARY AND WESTFIELD COLLEGE,ERS-434231-47673,21256
Department of Health,Department of Health,15/06/2011,Research & development,Research and Development,QUEEN MARY AND WESTFIELD COLLEGE,ERS-434231-47673,12231
Department of Health,Department of Health,15/06/2011,Research & development,Research and Development,QUEEN MARY AND WESTFIELD COLLEGE,ERS-434231-47673,47197
Department of Health,Department of Health,15/06/2011,Research & development,Research and Development,QUEEN MARY AND WESTFIELD COLLEGE,ERS-434231-47673,42496
Department of Health,Department of Health,15/06/2011,Research & development,Research and Development,QUEEN MARY AND WESTFIELD COLLEGE,ERS-434231-47673,20059
Department of Health,Department of Health,15/06/2011,Research & development,Research and Development,QUEEN MARY AND WESTFIELD COLLEGE,ERS-434231-47673,20020
Department of Health,Department of Health,15/06/2011,Research & development,Research and Development,QUEEN MARY AND WESTFIELD COLLEGE,ERS-434231-47673,19075
Department of Health,Department of Health,15/06/2011,Research & development,Research and Development,ROYAL DEVON AND EXETER NHS FOUNDATION TRUST,ERS-434232-47609,117745
Department of Health,Department of Health,15/06/2011,Research & development,Research and Development,ROYAL DEVON AND EXETER NHS FOUNDATION TRUST,ERS-434232-47609,118361
Department of Health,Department of Health,15/06/2011,Research & development,Research and Development,SALFORD ROYAL NHS FOUNDATION TRUST,ERS-434234-47621,118194
Department of Health,Department of Health,15/06/2011,Research & development,Research and Development,SALFORD ROYAL NHS FOUNDATION TRUST,ERS-434234-47621,117401
Department of Health,Department of Health,15/06/2011,Research & development,Research and Development,SALFORD ROYAL NHS FOUNDATION TRUST,ERS-434234-47621,171180
Department of Health,Department of Health,15/06/2011,Research & development,Research and Development,SHEFFIELD TEACHING HOSPITALS NHS FOUNDATION TRUST,ERS-434235-47612,154367
Department of Health,Department of Health,15/06/2011,Research & development,Research and Development,SHEFFIELD UNIVERSITY OF,ERS-434236-47674,21662
Department of Health,Department of Health,15/06/2011,Research & development,Research and Development,SHEFFIELD UNIVERSITY OF,ERS-434236-47674,12231
Department of Health,Department of Health,15/06/2011,Research & development,Research and Development,SHEFFIELD UNIVERSITY OF,ERS-434236-47674,13431
Department of Health,Department of Health,15/06/2011,Research & development,Research and Development,SHEFFIELD UNIVERSITY OF,ERS-434236-47674,22332
Department of Health,Department of Health,15/06/2011,Research & development,Research and Development,SHEFFIELD UNIVERSITY OF,ERS-434236-47674,9302
Department of Health,Department of Health,15/06/2011,Research & development,Research and Development,SOUTH BIRMINGHAM PCT,ERS-434237-47585,166622
Department of Health,Department of Health,15/06/2011,Research & development,Research and Development,SOUTH LONDON AND MAUDSLEY NHS FOUNDATION TRUST,ERS-434238-47637,95964
Department of Health,Department of Health,15/06/2011,Research & development,Research and Development,SOUTH LONDON AND MAUDSLEY NHS FOUNDATION TRUST,ERS-434238-47637,121115
Department of Health,Department of Health,15/06/2011,Research & development,Research and Development,SOUTH TEES HOSPITALS NHS FOUNDATION TRUST,ERS-434239-47635,94291
Department of Health,Department of Health,15/06/2011,Research & development,Research and Development,SOUTH TYNESIDE PCT,ERS-434240-47584,170193
Department of Health,Department of Health,15/06/2011,Research & development,Research and Development,SOUTHAMPTON UNIVERSITY HOSPITALS NHS TRUST,ERS-434241-47611,193112
Department of Health,Department of Health,15/06/2011,Research & development,Research and Development,SOUTHAMPTON UNIVERSITY OF,ERS-434242-47675,22836.65
Department of Health,Department of Health,15/06/2011,Research & development,Research and Development,SOUTHAMPTON UNIVERSITY OF,ERS-434242-47675,25153
Department of Health,Department of Health,15/06/2011,Research & development,Research and Development,SOUTHAMPTON UNIVERSITY OF,ERS-434242-47675,20640
Department of Health,Department of Health,15/06/2011,Research & development,Research and Development,SOUTHAMPTON UNIVERSITY OF,ERS-434242-47675,22491
Department of Health,Department of Health,15/06/2011,Research & development,Research and Development,SOUTHERN HEALTH NHS FOUNDATION TRUST,ERS-434243-47639,107589
Department of Health,Department of Health,15/06/2011,Research & development,Research and Development,ST GEORGE'S HEALTHCARE NHS TRUST,ERS-434244-47615,122776
Department of Health,Department of Health,15/06/2011,Research & development,Research and Development,ST GEORGE'S HEALTHCARE NHS TRUST,ERS-434244-47615,169296
Department of Health,Department of Health,15/06/2011,Research & development,Research and Development,ST GEORGES HOSPITAL MEDICAL SCHOOL,ERS-434245-47676,14750
Department of Health,Department of Health,15/06/2011,Research & development,Research and Development,ST GEORGES HOSPITAL MEDICAL SCHOOL,ERS-434245-47676,14750
Department of Health,Department of Health,15/06/2011,Research & development,Research and Development,ST GEORGES HOSPITAL MEDICAL SCHOOL,ERS-434245-47676,29612
Department of Health,Department of Health,15/06/2011,Research & development,Research and Development,STOCKTON-ON-TEES TEACHING PCT,ERS-434246-47581,75717
Department of Health,Department of Health,15/06/2011,Research & development,Research and Development,SUSSEX UNIVERSITY OF,ERS-434247-47677,32180
Department of Health,Department of Health,15/06/2011,Research & development,Research and Development,THE CHRISTIE HOSPITAL NHS FOUNDATION TRUST,ERS-434248-47603,19523
Department of Health,Department of Health,15/06/2011,Research & development,Research and Development,THE CHRISTIE HOSPITAL NHS FOUNDATION TRUST,ERS-434248-47603,245200
Department of Health,Department of Health,15/06/2011,Research & development,Research and Development,THE NEWCASTLE UPON TYNE NHS FOUNDATION TRUST,ERS-434249-47630,19405
Department of Health,Department of Health,15/06/2011,Research & development,Research and Development,THE NEWCASTLE UPON TYNE NHS FOUNDATION TRUST,ERS-434249-47630,111749
Department of Health,Department of Health,15/06/2011,Research & development,Research and Development,THE ROYAL MARSDEN NHS FOUNDATION TRUST,ERS-434250-47625,173896
Department of Health,Department of Health,15/06/2011,Research & development,Research and Development,THE ROYAL WOLVERHAMPTON HOSPITAL NHS TRUST,ERS-434251-47617,173446
Department of Health,Department of Health,15/06/2011,Research & development,Research and Development,TORBAY CARE TRUST,ERS-434252-47683,130579
Department of Health,Department of Health,15/06/2011,Research & development,Research and Development,UNIVERSITY COLLEGE LONDON (UCL),ERS-434253-47666,29298
Department of Health,Department of Health,15/06/2011,Research & development,Research and Development,UNIVERSITY COLLEGE LONDON (UCL),ERS-434253-47666,38192
Department of Health,Department of Health,15/06/2011,Research & development,Research and Development,UNIVERSITY COLLEGE LONDON (UCL),ERS-434253-47666,50819
Department of Health,Department of Health,15/06/2011,Research & development,Research and Development,UNIVERSITY COLLEGE LONDON (UCL),ERS-434253-47666,20656
Department of Health,Department of Health,15/06/2011,Research & development,Research and Development,UNIVERSITY COLLEGE LONDON (UCL),ERS-434253-47666,17648
Department of Health,Department of Health,15/06/2011,Research & development,Research and Development,UNIVERSITY COLLEGE LONDON (UCL),ERS-434253-47666,37476
Department of Health,Department of Health,15/06/2011,Research & development,Research and Development,UNIVERSITY COLLEGE LONDON (UCL),ERS-434253-47666,27820
Department of Health,Department of Health,15/06/2011,Research & development,Research and Development,UNIVERSITY COLLEGE LONDON (UCL),ERS-434253-47666,36050
Department of Health,Department of Health,15/06/2011,Research & development,Research and Development,UNIVERSITY COLLEGE LONDON (UCL),ERS-434253-47666,34460
Department of Health,Department of Health,15/06/2011,Research & development,Research and Development,UNIVERSITY COLLEGE LONDON HOSPITALS NHS FOUNDATION TRUST,ERS-434255-47628,270062
Department of Health,Department of Health,15/06/2011,Research & development,Research and Development,UNIVERSITY COLLEGE LONDON HOSPITALS NHS FOUNDATION TRUST,ERS-434255-47628,123797
Department of Health,Department of Health,15/06/2011,Research & development,Research and Development,UNIVERSITY COLLEGE LONDON HOSPITALS NHS FOUNDATION TRUST,ERS-434255-47628,150079
Department of Health,Department of Health,15/06/2011,Research & development,Research and Development,UNIVERSITY HOSPITALS BRISTOL NHS FOUNDATION TRUST,ERS-434256-47600,146123
Department of Health,Department of Health,15/06/2011,Research & development,Research and Development,UNIVERSITY HOSPITALS COVENTRY & WARWICKSHIRE NHS TRUST,ERS-434257-47616,93269
Department of Health,Department of Health,15/06/2011,Research & development,Research and Development,UNIVERSITY HOSPITALS OF LEICESTER NHS TRUST,ERS-434258-47643,123612
Department of Health,Department of Health,15/06/2011,Research & development,Research and Development,UNIVERSITY HOSPITALS OF LEICESTER NHS TRUST,ERS-434258-47643,118444
Department of Health,Department of Health,15/06/2011,Research & development,Research and Development,UNIVERSITY HOSPITALS OF LEICESTER NHS TRUST,ERS-434258-47643,117490
Department of Health,Department of Health,15/06/2011,Research & development,Research and Development,UNIVERSITY HOSPITALS OF LEICESTER NHS TRUST,ERS-434258-47643,161208
Department of Health,Department of Health,15/06/2011,Research & development,Research and Development,WARWICK UNIVERSITY OF,ERS-434259-47678,32051
Department of Health,Department of Health,15/06/2011,Research & development,Research and Development,WARWICK UNIVERSITY OF,ERS-434259-47678,12231
Department of Health,Department of Health,15/06/2011,Research & development,Research and Development,WARWICK UNIVERSITY OF,ERS-434259-47678,16915
Department of Health,Department of Health,15/06/2011,Research & development,Research and Development,WARWICK UNIVERSITY OF,ERS-434259-47678,23624
Department of Health,Department of Health,15/06/2011,Research & development,Research and Development,WEST OF ENGLAND UNIVERSITY OF (UWE),ERS-434260-47679,30004
Department of Health,Department of Health,15/06/2011,Research & development,Research and Development,YORK TEACHING HOSPITAL NHS FOUNDATION TRUST,ERS-434262-47604,75340
Department of Health,Department of Health,15/06/2011,Research & development,Research and Development,YORK UNIVERSITY OF,ERS-434263-47680,3073
Department of Health,Department of Health,15/06/2011,Research & development,Research and Development,YORK UNIVERSITY OF,ERS-434263-47680,13040
Department of Health,Department of Health,15/06/2011,Research & development,Research and Development,YORK UNIVERSITY OF,ERS-434263-47680,25987
Department of Health,Department of Health,15/06/2011,Research & development,Research and Development,YORK UNIVERSITY OF,ERS-434263-47680,23386
Department of Health,Department of Health,15/06/2011,Grants to local authorities (CAP),Social Care,BEXLEY LONDON BOROUGH COUNCIL,ERS-434292-47721,460534
Department of Health,Department of Health,15/06/2011,Grants to local authorities (CAP),Social Care,BRENT LONDON BOROUGH COUNCIL,ERS-434293-47733,652201
Department of Health,Department of Health,15/06/2011,Grants to local authorities (CAP),Social Care,BROMLEY LONDON BOROUGH COUNCIL,ERS-434294-47722,606705
Department of Health,Department of Health,15/06/2011,Grants to local authorities (CAP),Social Care,CAMDEN LONDON BOROUGH COUNCIL,ERS-434295-47723,653392
Department of Health,Department of Health,15/06/2011,Grants to local authorities (CAP),Social Care,CITY OF LONDON CORPORATION,ERS-434296-47724,32156
Department of Health,Department of Health,15/06/2011,Grants to non profit institutions (CUR),SOCIAL CARE,CHILD MIGRANT TRUST,ERS-434321-47701,100000
Department of Health,Department of Health,15/06/2011,Contactor/ Staff Subsitution,WORKFORCE,SAPIENT LTD,22031,31773
Department of Health,Department of Health,15/06/2011,CIP Addition Clearing - IT_IDS,WORKFORCE,IMC (UK) LEARNING LTD,IUK2011-157,145083.6
Department of Health,Department of Health,16/06/2011,Utilities,FINANCE & OPERATIONS (DM),SCOTTISH AND SOUTHERN ENERGY PLC,191304511/0050,38273.34
Department of Health,Department of Health,16/06/2011,Outsourcing Contract,FINANCE & OPERATIONS (DM),CSC COMPUTER SCIENCES LTD,5201240256,24193.96
Department of Health,Department of Health,16/06/2011,Outsourcing Contract,FINANCE & OPERATIONS (DM),CSC COMPUTER SCIENCES LTD,5201240260,24193.96
Department of Health,Department of Health,16/06/2011,Outsourcing Contract,FINANCE & OPERATIONS (DM),CSC COMPUTER SCIENCES LTD,5201240261,24193.96
Department of Health,Department of Health,16/06/2011,Rent of Land & Buildings (non-PFI operating lease),FINANCE & OPERATIONS (DM),LONDON AND REGIONAL PROPERTIES LTD,5491858260-24/6/2011,1304183.25
Department of Health,Department of Health,16/06/2011,Travel & subsistence staff,FINANCE & OPERATIONS (DM),EXPOTEL HOTEL RESERVATIONS LTD,715916,52371.22
Department of Health,Department of Health,16/06/2011,Travel & subsistence staff,FINANCE & OPERATIONS (DM),EXPOTEL HOTEL RESERVATIONS LTD,716060,61307.75
Department of Health,Department of Health,16/06/2011,Outsourcing Contract,Health Improvement and Protection,IMPERIAL COLLEGE LONDON,10085703,49000
Department of Health,Department of Health,16/06/2011,Research & development,Health Improvement and Protection,KINGS COLLEGE LONDON,RGI-10112946,233865
Department of Health,Department of Health,16/06/2011,Expense clearing GPC (ST),More than one Directorate,BARCLAYCARD BUSINESS,2070001-20-JUN-11,4062.15
Department of Health,Department of Health,16/06/2011,Contr Other External,NHS Chief Information Officer,CAPITA BUSINESS SERVICES LTD,13151595,41864
Department of Health,Department of Health,16/06/2011,Legal / Prof Fees,NHS Chief Information Officer,DLA PIPER UK LLP,13007790,39664.4
Department of Health,Department of Health,16/06/2011,Building repairs & maintenance,NHS FINANCE PERFORMANCE & OPERATIONS,MARS PENSIONS TRUSTEES LTD CO JONES LANG LA SALLE,025/74456,38881.96
Department of Health,Department of Health,16/06/2011,Raw materials & consumables,NHS MEDICAL DIRECTOR,BURTON HOSPITALS NHS FOUNDATION TRUST,IN001166883-1,34913.67
Department of Health,Department of Health,16/06/2011,Research & development,Research and Development,MANCHESTER UNIVERSITY OF,ERS-434460-47781,34582
Department of Health,Department of Health,16/06/2011,Research & development,Research and Development,ROYAL BROMPTON AND HAREFIELD NHS FOUNDATION TRUST,ERS-434461-47774,30011
Department of Health,Department of Health,16/06/2011,Research & development,Research and Development,UNIVERSITY COLLEGE LONDON (UCL),ERS-434463-47779,34251
Department of Health,Department of Health,16/06/2011,Research & development,Research and Development,KINGS COLLEGE LONDON,ERS-434467-47778,56547
Department of Health,Department of Health,16/06/2011,Research & development,Research and Development,LONDON SCHOOL OF ECONOMICS,ERS-434473-47780,87312
Department of Health,Department of Health,16/06/2011,Grants to local authorities (CAP),Social Care,CROYDON LONDON BOROUGH COUNCIL,ERS-434345-47725,709498
Department of Health,Department of Health,16/06/2011,Grants to local authorities (CAP),Social Care,EALING LONDON BOROUGH COUNCIL,ERS-434346-47726,712266
Department of Health,Department of Health,16/06/2011,Grants to local authorities (CAP),Social Care,ENFIELD LONDON BOROUGH COUNCIL,ERS-434347-47727,665330
Department of Health,Department of Health,16/06/2011,Grants to local authorities (CAP),Social Care,GREENWICH LONDON BOROUGH COUNCIL,ERS-434348-47728,667133
Department of Health,Department of Health,16/06/2011,Grants to local authorities (CAP),Social Care,HACKNEY LONDON BOROUGH COUNCIL,ERS-434349-47729,702273
Department of Health,Department of Health,16/06/2011,Grants to local authorities (CAP),Social Care,HAMMERSMITH AND FULHAM LONDON BOROUGH COUNCIL,ERS-434350-47730,474623
Department of Health,Department of Health,16/06/2011,Grants to local authorities (CAP),Social Care,HARINGEY LONDON BOROUGH COUNCIL,ERS-434351-47731,567361
Department of Health,Department of Health,16/06/2011,Grants to local authorities (CAP),Social Care,HARROW LONDON BOROUGH COUNCIL,ERS-434352-47732,496875
Department of Health,Department of Health,16/06/2011,Grants to local authorities (CAP),Social Care,NEWHAM LONDON BOROUGH COUNCIL,ERS-434404-47746,682356
Department of Health,Department of Health,16/06/2011,Grants to local authorities (CAP),Social Care,REDBRIDGE LONDON BOROUGH COUNCIL,ERS-434405-47747,559685
Department of Health,Department of Health,16/06/2011,Grants to local authorities (CAP),Social Care,RICHMOND UPON THAMES BOROUGH COUNCIL,ERS-434406-47748,334940
Department of Health,Department of Health,16/06/2011,Grants to local authorities (CAP),Social Care,SOUTHWARK LONDON BOROUGH COUNCIL,ERS-434407-47749,818470
Department of Health,Department of Health,16/06/2011,Grants to local authorities (CAP),Social Care,SUTTON LONDON BOROUGH COUNCIL,ERS-434408-47750,377373
Department of Health,Department of Health,16/06/2011,Grants to local authorities (CAP),Social Care,TOWER HAMLETS LONDON BOROUGH COUNCIL,ERS-434409-47751,711664
Department of Health,Department of Health,16/06/2011,Grants to local authorities (CAP),Social Care,WALTHAM FOREST LONDON BOROUGH COUNCIL,ERS-434410-47752,528855
Department of Health,Department of Health,16/06/2011,Grants to local authorities (CAP),Social Care,WANDSWORTH LONDON BOROUGH COUNCIL,ERS-434411-47753,659857
Department of Health,Department of Health,16/06/2011,Grants to local authorities (CAP),Social Care,WESTMINSTER CITY COUNCIL,ERS-434412-47754,738580
Department of Health,Department of Health,16/06/2011,Grants to local authorities (CAP),Social Care,BUCKINGHAMSHIRE COUNTY COUNCIL,ERS-434413-47741,866620
Department of Health,Department of Health,16/06/2011,Grants to local authorities (CAP),Social Care,CAMBRIDGESHIRE COUNTY COUNCIL,ERS-434414-47742,1192378
Department of Health,Department of Health,16/06/2011,Grants to local authorities (CAP),Social Care,CORNWALL COUNTY COUNCIL,ERS-434415-47743,1476102
Department of Health,Department of Health,16/06/2011,Grants to local authorities (CAP),Social Care,CUMBRIA COUNTY COUNCIL,ERS-434416-47744,1328881
Department of Health,Department of Health,16/06/2011,Grants to local authorities (CAP),Social Care,DERBYSHIRE COUNTY COUNCIL,ERS-434417-47745,1906835
Department of Health,Department of Health,16/06/2011,Grants to local authorities (CAP),Social Care,DARLINGTON BOROUGH COUNCIL,ERS-434419-47756,2613799
Department of Health,Department of Health,16/06/2011,Grants to local authorities (CAP),Social Care,DERBY CITY COUNCIL,ERS-434421-47757,6187390
Department of Health,Department of Health,16/06/2011,Grants to local authorities (CAP),Social Care,DERBYSHIRE COUNTY COUNCIL,ERS-434422-47758,13742906
Department of Health,Department of Health,16/06/2011,Grants to local authorities (CAP),Social Care,DEVON COUNTY COUNCIL,ERS-434430-47759,9405701
Department of Health,Department of Health,16/06/2011,Grants to local authorities (CAP),Social Care,HAVERING LONDON BOROUGH COUNCIL,ERS-434433-47761,509455
Department of Health,Department of Health,16/06/2011,Grants to local authorities (CAP),Social Care,HILLINGDON LONDON BOROUGH COUNCIL,ERS-434434-47762,521081
Department of Health,Department of Health,16/06/2011,Grants to local authorities (CAP),Social Care,HOUNSLOW LONDON BOROUGH COUNCIL,ERS-434435-47763,486792
Department of Health,Department of Health,16/06/2011,Grants to local authorities (CAP),Social Care,ISLINGTON LONDON BOROUGH COUNCIL,ERS-434436-47764,620489
Department of Health,Department of Health,16/06/2011,Grants to local authorities (CAP),Social Care,KINGSTON UPON THAMES COUNCIL ROYAL BOROUGH OF,ERS-434437-47768,288781
Department of Health,Department of Health,16/06/2011,Grants to local authorities (CAP),Social Care,LAMBETH LONDON BOROUGH COUNCIL,ERS-434438-47765,758620
Department of Health,Department of Health,16/06/2011,Grants to local authorities (CAP),Social Care,LEWISHAM LONDON BOROUGH COUNCIL,ERS-434439-47766,698022
Department of Health,Department of Health,16/06/2011,Grants to local authorities (CAP),Social Care,MERTON BOROUGH COUNCIL,ERS-434440-47767,392028
Department of Health,Department of Health,16/06/2011,Grants to local authorities (CAP),Social Care,DONCASTER METROPOLITAN BOROUGH COUNCIL,ERS-434447-47769,10278833
Department of Health,Department of Health,16/06/2011,Grants to local authorities (CAP),Social Care,DORSET COUNTY COUNCIL,ERS-434450-47770,1638984
Department of Health,Department of Health,16/06/2011,Grants to local authorities (CAP),Social Care,DUDLEY METROPOLITAN BOROUGH COUNCIL,ERS-434452-47771,9124429
Department of Health,Department of Health,16/06/2011,Grants to local authorities (CAP),Social Care,EALING LONDON BOROUGH COUNCIL,ERS-434454-47772,6522345
Department of Health,Department of Health,16/06/2011,Grants to local authorities (CAP),Social Care,EAST RIDING OF YORKSHIRE COUNCIL,ERS-434471-47773,3398819
Department of Health,Department of Health,16/06/2011,Grants to local authorities (CAP),Social Care,EAST SUSSEX COUNTY COUNCIL,ERS-434474-47788,17396256
Department of Health,Department of Health,16/06/2011,Grants to local authorities (CAP),Social Care,ENFIELD LONDON BOROUGH COUNCIL,ERS-434475-47789,4881968
Department of Health,Department of Health,16/06/2011,Grants to local authorities (CAP),Social Care,GATESHEAD COUNCIL,ERS-434477-47790,8347417
Department of Health,Department of Health,16/06/2011,Grants to local authorities (CAP),Social Care,GLOUCESTERSHIRE COUNTY COUNCIL,ERS-434479-47791,11332995
Department of Health,Department of Health,16/06/2011,Grants to local authorities (CAP),Social Care,GREENWICH LONDON BOROUGH COUNCIL,ERS-434480-47792,5139523
Department of Health,Department of Health,16/06/2011,Grants to local authorities (CAP),Social Care,HACKNEY LONDON BOROUGH COUNCIL,ERS-434484-47793,1841177
Department of Health,Department of Health,16/06/2011,Grants to local authorities (CAP),Social Care,HALTON BOROUGH COUNCIL,ERS-434489-47794,4667880
Department of Health,Department of Health,16/06/2011,Grants to non profit institutions (CUR),SOCIAL CARE,CANCER RESEARCH UK,ERS-434358-47734,39750
Department of Health,Department of Health,16/06/2011,Grants to non profit institutions (CUR),SOCIAL CARE,NATIONAL VOICES,ERS-434418-47755,200000
Department of Health,Department of Health,17/06/2011,Contactor/ Staff Subsitution,COMMISSIONING,BADENOCH AND CLARK LTD,4096918,26514
Department of Health,Department of Health,17/06/2011,Addition Clearing - OLB,FINANCE & OPERATIONS (DM),EMCOR FACILITIES SERVICES LTD,00197132RI,26219.69
Department of Health,Department of Health,17/06/2011,Building repairs & maintenance,FINANCE & OPERATIONS (DM),EMCOR FACILITIES SERVICES LTD,00197630aRI,45125.67
Department of Health,Department of Health,17/06/2011,Minor office equipment purchases non capital,FINANCE & OPERATIONS (DM),EMCOR FACILITIES SERVICES LTD,00197630aRI,444.43
Department of Health,Department of Health,17/06/2011,Security: contract,FINANCE & OPERATIONS (DM),EMCOR FACILITIES SERVICES LTD,00197630aRI,11358.64
Department of Health,Department of Health,17/06/2011,Outsourcing Contract,FINANCE & OPERATIONS (DM),STERIA LTD,100020303,62989.69
Department of Health,Department of Health,17/06/2011,Contactor/ Staff Subsitution,FINANCE & OPERATIONS (DM),SHARPE PRITCHARD AND CO,72261,30731.2
Department of Health,Department of Health,17/06/2011,CASH FUNDING Rev Inside RAB,FINANCE & OPERATIONS (DM),KIRKLEES PCT,HAFS-10878,2200000
Department of Health,Department of Health,17/06/2011,Provisions cash payment,Health Improvement and Protection,PGO FOREIGN CURRENCY PAYMENTS,FT/11166/00237,10672571.17
Department of Health,Department of Health,17/06/2011,Contr Other External,NHS Chief Information Officer,CABLE & WIRELESS UK,12935341,786831.71
Department of Health,Department of Health,17/06/2011,Contr Other External,NHS Chief Information Officer,CABLE & WIRELESS UK,13032479,161808
Department of Health,Department of Health,17/06/2011,Contr Other External,NHS Chief Information Officer,CABLE & WIRELESS UK,13119161,46523.04
Department of Health,Department of Health,17/06/2011,Contr Other External,NHS Chief Information Officer,CABLE & WIRELESS UK,13143473,96542.34
Department of Health,Department of Health,17/06/2011,External Consultancy Fees,NHS Chief Information Officer,CAPGEMINI UK PLC,12736818,16830.31
Department of Health,Department of Health,17/06/2011,Staff Consultancy & Suppt,NHS Chief Information Officer,CAPGEMINI UK PLC,13128027,21068.5
Department of Health,Department of Health,17/06/2011,Staff Consultancy & Suppt,NHS Chief Information Officer,CAPGEMINI UK PLC,13128027,24701
Department of Health,Department of Health,17/06/2011,Staff Consultancy & Suppt,NHS Chief Information Officer,CAPGEMINI UK PLC,13135033,36166.5
Department of Health,Department of Health,17/06/2011,Staff Consultancy & Suppt,NHS Chief Information Officer,CAPGEMINI UK PLC,13135036,31030
Department of Health,Department of Health,17/06/2011,Training Expenses,NHS Chief Information Officer,CAPGEMINI UK PLC,12736818,40477.19
Department of Health,Department of Health,17/06/2011,Travel & Subsistence,NHS Chief Information Officer,HRG UK,13142573,81.4
Department of Health,Department of Health,17/06/2011,Travel & Subsistence,NHS Chief Information Officer,HRG UK,13142573,130.4
Department of Health,Department of Health,17/06/2011,Travel & Subsistence,NHS Chief Information Officer,HRG UK,13142573,310.6
Department of Health,Department of Health,17/06/2011,Travel & Subsistence,NHS Chief Information Officer,HRG UK,13142573,450.2
Department of Health,Department of Health,17/06/2011,Travel & Subsistence,NHS Chief Information Officer,HRG UK,13142573,232.7
Department of Health,Department of Health,17/06/2011,Travel & Subsistence,NHS Chief Information Officer,HRG UK,13142573,3128.82
Department of Health,Department of Health,17/06/2011,Travel & Subsistence,NHS Chief Information Officer,HRG UK,13142573,629.99
Department of Health,Department of Health,17/06/2011,Travel & Subsistence,NHS Chief Information Officer,HRG UK,13142573,138
Department of Health,Department of Health,17/06/2011,Travel & Subsistence,NHS Chief Information Officer,HRG UK,13142573,645.4
Department of Health,Department of Health,17/06/2011,Travel & Subsistence,NHS Chief Information Officer,HRG UK,13142573,3894.61
Department of Health,Department of Health,17/06/2011,Travel & Subsistence,NHS Chief Information Officer,HRG UK,13142573,524.4
Department of Health,Department of Health,17/06/2011,Travel & Subsistence,NHS Chief Information Officer,HRG UK,13142573,655.8
Department of Health,Department of Health,17/06/2011,Travel & Subsistence,NHS Chief Information Officer,HRG UK,13142573,2736.68
Department of Health,Department of Health,17/06/2011,Travel & Subsistence,NHS Chief Information Officer,HRG UK,13142573,180.8
Department of Health,Department of Health,17/06/2011,Travel & Subsistence,NHS Chief Information Officer,HRG UK,13142573,9589.26
Department of Health,Department of Health,17/06/2011,Travel & Subsistence,NHS Chief Information Officer,HRG UK,13142573,649.21
Department of Health,Department of Health,17/06/2011,Travel & Subsistence,NHS Chief Information Officer,HRG UK,13142573,976.7
Department of Health,Department of Health,17/06/2011,Travel & Subsistence,NHS Chief Information Officer,HRG UK,13142573,123.4
Department of Health,Department of Health,17/06/2011,Travel & Subsistence,NHS Chief Information Officer,HRG UK,13142573,229.21
Department of Health,Department of Health,17/06/2011,Travel & Subsistence,NHS Chief Information Officer,HRG UK,13142573,289.8
Department of Health,Department of Health,17/06/2011,Travel & Subsistence,NHS Chief Information Officer,HRG UK,13142573,587.6
Department of Health,Department of Health,17/06/2011,Travel & Subsistence,NHS Chief Information Officer,HRG UK,13142573,325.58
Department of Health,Department of Health,17/06/2011,Travel & Subsistence,NHS Chief Information Officer,HRG UK,13142573,661.96
Department of Health,Department of Health,17/06/2011,Travel & Subsistence,NHS Chief Information Officer,HRG UK,13142573,447.2
Department of Health,Department of Health,17/06/2011,Travel & Subsistence,NHS Chief Information Officer,HRG UK,13142573,81.4
Department of Health,Department of Health,17/06/2011,Travel & Subsistence,NHS Chief Information Officer,HRG UK,13142573,1837.6
Department of Health,Department of Health,17/06/2011,Travel & Subsistence,NHS Chief Information Officer,HRG UK,13142573,380.6
Department of Health,Department of Health,17/06/2011,Travel & Subsistence,NHS Chief Information Officer,HRG UK,13142573,840.79
Department of Health,Department of Health,17/06/2011,Travel & Subsistence,NHS Chief Information Officer,HRG UK,13142573,647.89
Department of Health,Department of Health,17/06/2011,Travel & Subsistence,NHS Chief Information Officer,HRG UK,13142573,990.97
Department of Health,Department of Health,17/06/2011,Travel & Subsistence,NHS Chief Information Officer,HRG UK,13142573,1206.9
Department of Health,Department of Health,17/06/2011,Travel & Subsistence,NHS Chief Information Officer,HRG UK,13142573,873.6
Department of Health,Department of Health,17/06/2011,Travel & Subsistence,NHS Chief Information Officer,HRG UK,13142573,176.8
Department of Health,Department of Health,17/06/2011,Travel & Subsistence,NHS Chief Information Officer,HRG UK,13142573,2483.03
Department of Health,Department of Health,17/06/2011,Travel & Subsistence,NHS Chief Information Officer,HRG UK,13142573,300.18
Department of Health,Department of Health,17/06/2011,Travel & Subsistence,NHS Chief Information Officer,HRG UK,13142573,615.4
Department of Health,Department of Health,17/06/2011,Travel & Subsistence,NHS Chief Information Officer,HRG UK,13142573,798.59
Department of Health,Department of Health,17/06/2011,Travel & Subsistence,NHS Chief Information Officer,HRG UK,13142573,1422.12
Department of Health,Department of Health,17/06/2011,Travel & Subsistence,NHS Chief Information Officer,HRG UK,13142573,99.4
Department of Health,Department of Health,17/06/2011,Travel & Subsistence,NHS Chief Information Officer,HRG UK,13142573,5656.39
Department of Health,Department of Health,17/06/2011,Travel & Subsistence,NHS Chief Information Officer,HRG UK,13142573,165.79
Department of Health,Department of Health,17/06/2011,Travel & Subsistence,NHS Chief Information Officer,HRG UK,13142573,1518.58
Department of Health,Department of Health,17/06/2011,Travel & Subsistence,NHS Chief Information Officer,HRG UK,13142573,4069.96
Department of Health,Department of Health,17/06/2011,Travel & Subsistence,NHS Chief Information Officer,HRG UK,13142573,488.38
Department of Health,Department of Health,17/06/2011,Travel & Subsistence,NHS Chief Information Officer,HRG UK,13142573,81.4
Department of Health,Department of Health,17/06/2011,Travel & Subsistence,NHS Chief Information Officer,HRG UK,13142573,1125.18
Department of Health,Department of Health,17/06/2011,Travel & Subsistence,NHS Chief Information Officer,HRG UK,13142573,81.4
Department of Health,Department of Health,17/06/2011,Travel & Subsistence,NHS Chief Information Officer,HRG UK,13142573,762.41
Department of Health,Department of Health,17/06/2011,Travel & Subsistence,NHS Chief Information Officer,HRG UK,13142573,95.4
Department of Health,Department of Health,17/06/2011,Travel & Subsistence,NHS Chief Information Officer,HRG UK,13142573,93.4
Department of Health,Department of Health,17/06/2011,Travel & Subsistence,NHS Chief Information Officer,HRG UK,13142573,2652.59
Department of Health,Department of Health,17/06/2011,Travel & Subsistence,NHS Chief Information Officer,HRG UK,13142573,155.81
Department of Health,Department of Health,17/06/2011,Travel & Subsistence,NHS Chief Information Officer,HRG UK,13142573,316.8
Department of Health,Department of Health,17/06/2011,Travel & Subsistence,NHS Chief Information Officer,HRG UK,13142573,1118.29
Department of Health,Department of Health,17/06/2011,Travel & Subsistence,NHS Chief Information Officer,HRG UK,13142573,928.72
Department of Health,Department of Health,17/06/2011,Travel & Subsistence,NHS Chief Information Officer,HRG UK,13142573,108.4
Department of Health,Department of Health,17/06/2011,Travel & Subsistence,NHS Chief Information Officer,HRG UK,13142573,1377.29
Department of Health,Department of Health,17/06/2011,Travel & Subsistence,NHS Chief Information Officer,HRG UK,13142573,606.1
Department of Health,Department of Health,17/06/2011,Travel & Subsistence,NHS Chief Information Officer,HRG UK,13142573,1300.09
Department of Health,Department of Health,17/06/2011,Travel & Subsistence,NHS Chief Information Officer,HRG UK,13142573,154.8
Department of Health,Department of Health,17/06/2011,Travel & Subsistence,NHS Chief Information Officer,HRG UK,13142573,374.1
Department of Health,Department of Health,17/06/2011,Rent of Land & Buildings (non-PFI operating lease),NHS FINANCE PERFORMANCE & OPERATIONS,Amicus Horizon Group Ltd,225790,18270
Department of Health,Department of Health,17/06/2011,Service charge,NHS FINANCE PERFORMANCE & OPERATIONS,Amicus Horizon Group Ltd,225790,8125.04
Department of Health,Department of Health,17/06/2011,Outsourcing Contract,NHS FINANCE PERFORMANCE & OPERATIONS,PARTNERSHIP HEALTH GROUP LTD,25757468,2144953.52
Department of Health,Department of Health,17/06/2011,Grants to local authorities (CAP),Social Care,DEVON COUNTY COUNCIL,ERS-434508-47801,1847690
Department of Health,Department of Health,17/06/2011,Grants to local authorities (CAP),Social Care,DORSET COUNTY COUNCIL,ERS-434510-47802,984980
Department of Health,Department of Health,17/06/2011,Grants to local authorities (CAP),Social Care,DURHAM COUNTY COUNCIL,ERS-434511-47803,1470614
Department of Health,Department of Health,17/06/2011,Grants to local authorities (CAP),Social Care,EAST SUSSEX COUNTY COUNCIL,ERS-434512-47804,1314710
Department of Health,Department of Health,17/06/2011,Grants to local authorities (CAP),Social Care,ESSEX COUNTY COUNCIL,ERS-434513-47805,3072101
Department of Health,Department of Health,17/06/2011,Grants to local authorities (CAP),Social Care,GLOUCESTERSHIRE COUNTY COUNCIL,ERS-434514-47806,1293268
Department of Health,Department of Health,17/06/2011,Grants to local authorities (CAP),Social Care,HAMPSHIRE COUNTY COUNCIL,ERS-434515-47807,2417210
Department of Health,Department of Health,17/06/2011,Grants to local authorities (CAP),Social Care,HERTFORDSHIRE COUNTY COUNCIL,ERS-434516-47808,2106093
Department of Health,Department of Health,17/06/2011,Grants to local authorities (CAP),Social Care,KENT COUNTY COUNCIL,ERS-434518-47809,3099758
Department of Health,Department of Health,17/06/2011,Grants to local authorities (CAP),Social Care,LANCASHIRE COUNTY COUNCIL,ERS-434519-47810,2861138
Department of Health,Department of Health,17/06/2011,Grants to local authorities (CAP),Social Care,LEICESTERSHIRE COUNTY COUNCIL,ERS-434520-47811,1229220
Department of Health,Department of Health,17/06/2011,Grants to local authorities (CAP),Social Care,LINCOLNSHIRE COUNTY COUNCIL,ERS-434521-47812,1731207
Department of Health,Department of Health,17/06/2011,Grants to local authorities (CAP),Social Care,NORFOLK COUNTY COUNCIL,ERS-434522-47813,2169502
Department of Health,Department of Health,17/06/2011,Grants to non profit institutions (CUR),SOCIAL CARE,BROOK ADVISORY CENTRES,ERS-434528-47821,42400
Department of Health,Department of Health,17/06/2011,Grants to non profit institutions (CUR),SOCIAL CARE,BEDFORDSHIRE & LUTON MIND,ERS-434542-47841,40283
Department of Health,Department of Health,17/06/2011,Grants to non profit institutions (CUR),SOCIAL CARE,ASSIST UK,ERS-434580-47861,61335
Department of Health,Department of Health,17/06/2011,Outsourcing Contract,WORKFORCE,MOUCHEL MANAGEMENT CONSULTING LTD,90070041,292075.2
Department of Health,Department of Health,17/06/2011,Outsourcing Contract,WORKFORCE,MOUCHEL MANAGEMENT CONSULTING LTD,90070043,67870.8
Department of Health,Department of Health,17/06/2011,Outsourcing Contract,WORKFORCE,MOUCHEL MANAGEMENT CONSULTING LTD,90070043,30109.2
Department of Health,Department of Health,17/06/2011,Programme Revenue Grant in Aid to ENDPBs,WORKFORCE,GENERAL SOCIAL CARE COUNCIL (GSCC),ERS-434530-47822,9192600
Department of Health,Department of Health,17/06/2011,Revenue Grants to Other Bodies,WORKFORCE,NHS BUSINESS SERVICES AUTHORITY (NHSBSA),ERS-434531-47823,25000000
Department of Health,Department of Health,20/06/2011,Contactor/ Staff Subsitution,COMMISSIONING,NORTHGATE UK LTD,CHAPS1/6/11,138085.54
Department of Health,Department of Health,20/06/2011,Outsourcing Contract,COMMISSIONING,FUTUREBUILDERS ENGLAND FUND MANAGEMENT LTD,TSIB003,641218.8
Department of Health,Department of Health,20/06/2011,Outsourcing Contract,COMMISSIONING,FUTUREBUILDERS ENGLAND FUND MANAGEMENT LTD,TSIB004,150000
Department of Health,Department of Health,20/06/2011,Outsourcing Contract,COMMISSIONING,FUTUREBUILDERS ENGLAND FUND MANAGEMENT LTD,TSIB006,107898.24
Department of Health,Department of Health,20/06/2011,Publicity & advertising,COMMUNICATIONS,CENTRAL OFFICE OF INFORMATION (COI),734954,65314.08
Department of Health,Department of Health,20/06/2011,Publicity & advertising,COMMUNICATIONS,CENTRAL OFFICE OF INFORMATION (COI),734960,54192.1
Department of Health,Department of Health,20/06/2011,Additions FT Financing Facility Loans,FINANCE & OPERATIONS (DM),THE CHRISTIE HOSPITAL NHS FOUNDATION TRUST,HAFS-10876,4000000
Department of Health,Department of Health,20/06/2011,Additions FT Financing Facility Loans,FINANCE & OPERATIONS (DM),THE NEWCASTLE UPON TYNE NHS FOUNDATION TRUST,HAFS-10877,15291000
Department of Health,Department of Health,20/06/2011,Arm Length Bodies-Revenue Subsidy,Health Improvement and Protection,MEDICINES AND HEALTHCARE PRODUCTS REGULATORY AGENCY (MHRA),1351150,3000000
Department of Health,Department of Health,20/06/2011,Service charge,NHS Chief Information Officer,KING'S COLLEGE HOSPITAL NHS FOUNDATION TRUST,136320,1200000
Department of Health,Department of Health,20/06/2011,Computer Software/License,NHS Chief Information Officer,ERNST & YOUNG LLP,13023972,65000
Department of Health,Department of Health,20/06/2011,External Consultancy Fees,NHS Chief Information Officer,QI CONSULTING,12853428,431033.5
Department of Health,Department of Health,20/06/2011,External Consultancy Fees,NHS Chief Information Officer,QI CONSULTING,12879535,23822.28
Department of Health,Department of Health,20/06/2011,External Consultancy Fees,NHS Chief Information Officer,QI CONSULTING,13076761,282022.5
Department of Health,Department of Health,20/06/2011,External Consultancy Fees,NHS Chief Information Officer,ERNST & YOUNG LLP,13023972,340937.27
Department of Health,Department of Health,20/06/2011,Staff Consultancy & Suppt,NHS Chief Information Officer,ALPINE CONSORTIUM,12879491,31050
Department of Health,Department of Health,20/06/2011,Rent of Land & Buildings (non-PFI operating lease),NHS FINANCE PERFORMANCE & OPERATIONS,CH PROPERTY TRUSTEE KENNY LTD AND ANDREW KENNY,9,27900
Department of Health,Department of Health,20/06/2011,Outsourcing Contract,NHS MEDICAL DIRECTOR,ROYAL COLLEGE OF PATHOLOGISTS,2535,40440
Department of Health,Department of Health,20/06/2011,Research & development,Research and Development,WARWICK UNIVERSITY OF,ERS-434600-47905,49414.97
Department of Health,Department of Health,20/06/2011,Research & development,Research and Development,LEEDS UNIVERSITY OF,ERS-434603-47903,3640630.14
Department of Health,Department of Health,20/06/2011,Research & development,Research and Development,EAST ANGLIA UNIVERSITY OF,ERS-434614-47921,39197
Department of Health,Department of Health,20/06/2011,Research & development,Research and Development,NORTHUMBRIA AT NEWCASTLE UNIVERSITY OF,ERS-434615-47926,64962
Department of Health,Department of Health,20/06/2011,Research & development,Research and Development,KINGS COLLEGE LONDON,ERS-434616-47922,75541
Department of Health,Department of Health,20/06/2011,Research & development,Research and Development,UNIVERSITY COLLEGE LONDON (UCL),ERS-434617-47924,62237
Department of Health,Department of Health,20/06/2011,Research & development,Research and Development,KINGS COLLEGE LONDON,ERS-434618-47923,122230.67
Department of Health,Department of Health,20/06/2011,Research & development,Research and Development,YORK UNIVERSITY OF,ERS-434620-47928,37810
Department of Health,Department of Health,20/06/2011,Research & development,Research and Development,UNIVERSITY COLLEGE LONDON (UCL),ERS-434621-47925,154822
Department of Health,Department of Health,20/06/2011,Research & development,Research and Development,OXFORD UNIVERSITY,ERS-434623-47927,118000
Department of Health,Department of Health,20/06/2011,Grants to local authorities (CAP),Social Care,NORTHAMPTONSHIRE COUNTY COUNCIL,ERS-434636-47941,1386292
Department of Health,Department of Health,20/06/2011,Grants to local authorities (CAP),Social Care,NORTHUMBERLAND COUNTY COUNCIL,ERS-434637-47942,790553
Department of Health,Department of Health,20/06/2011,Grants to local authorities (CAP),Social Care,NORTH YORKSHIRE COUNTY COUNCIL,ERS-434638-47943,1259647
Department of Health,Department of Health,20/06/2011,Grants to local authorities (CAP),Social Care,NOTTINGHAMSHIRE COUNTY COUNCIL,ERS-434639-47944,1838584
Department of Health,Department of Health,20/06/2011,Grants to local authorities (CAP),Social Care,OXFORDSHIRE COUNTY COUNCIL,ERS-434640-47945,1169960
Department of Health,Department of Health,20/06/2011,Grants to local authorities (CAP),Social Care,SHROPSHIRE COUNTY COUNCIL,ERS-434641-47946,714935
Department of Health,Department of Health,20/06/2011,Grants to local authorities (CAP),Social Care,SOMERSET COUNTY COUNCIL,ERS-434642-47947,1287069
Department of Health,Department of Health,20/06/2011,Grants to local authorities (CAP),Social Care,STAFFORDSHIRE COUNTY COUNCIL,ERS-434643-47948,1828972
Department of Health,Department of Health,20/06/2011,Grants to local authorities (CAP),Social Care,SUFFOLK COUNTY COUNCIL,ERS-434644-47949,1675353
Department of Health,Department of Health,20/06/2011,Grants to local authorities (CAP),Social Care,SURREY COUNTY COUNCIL,ERS-434645-47950,2023753
Department of Health,Department of Health,20/06/2011,Grants to local authorities (CAP),Social Care,WARWICKSHIRE COUNTY COUNCIL,ERS-434646-47951,1151415
Department of Health,Department of Health,20/06/2011,Grants to local authorities (CAP),Social Care,WEST SUSSEX COUNTY COUNCIL,ERS-434647-47952,1676609
Department of Health,Department of Health,20/06/2011,Grants to local authorities (CAP),Social Care,WILTSHIRE COUNTY COUNCIL,ERS-434648-47953,921944
Department of Health,Department of Health,20/06/2011,Grants to local authorities (CAP),Social Care,WORCESTERSHIRE COUNTY COUNCIL,ERS-434649-47954,1239212
Department of Health,Department of Health,20/06/2011,Grants to local authorities (CAP),Social Care,DARLINGTON BOROUGH COUNCIL,ERS-434676-47961,260133
Department of Health,Department of Health,20/06/2011,Grants to local authorities (CAP),Social Care,DERBY CITY COUNCIL,ERS-434677-47962,610231
Department of Health,Department of Health,20/06/2011,Grants to local authorities (CAP),Social Care,EAST RIDING OF YORKSHIRE COUNCIL,ERS-434678-47966,756921
Department of Health,Department of Health,20/06/2011,Grants to local authorities (CAP),Social Care,HALTON BOROUGH COUNCIL,ERS-434679-47963,326461
Department of Health,Department of Health,20/06/2011,Grants to local authorities (CAP),Social Care,HARTLEPOOL BOROUGH COUNCIL,ERS-434680-47964,252014
Department of Health,Department of Health,20/06/2011,Grants to local authorities (CAP),Social Care,HEREFORDSHIRE COUNCIL,ERS-434681-47965,452322
Department of Health,Department of Health,20/06/2011,Grants to non profit institutions (CUR),SOCIAL CARE,ACTION FOR BLIND PEOPLE,ERS-434589-47881,32806
Department of Health,Department of Health,20/06/2011,Grants to non profit institutions (CUR),SOCIAL CARE,NATIONAL DEVELOPMENT TEAM FOR INCLUSION NDTI,ERS-434608-47906,38467.5
Department of Health,Department of Health,20/06/2011,Professional fees,SOCIAL CARE,ECOTEC RESEARCH AND CONSULTING LTD,INV10048,57000
Department of Health,Department of Health,20/06/2011,Addition Clearing - SW LIC,WORKFORCE,METHODS CONSULTING,100014724,27387.01
Department of Health,Department of Health,20/06/2011,Outsourcing Contract,WORKFORCE,METHODS CONSULTING,100014724,15782.99
Department of Health,Department of Health,20/06/2011,Professional fees,WORKFORCE,GOVERNMENT ACTUARYS DEPARTMENT (GAD),SINV/00014552,63730.32
Department of Health,Department of Health,20/06/2011,Professional fees,WORKFORCE,GOVERNMENT ACTUARYS DEPARTMENT (GAD),SINV/00014716,59580.36
Department of Health,Department of Health,21/06/2011,Professional fees,COMMISSIONING,MARKET AND OPINION RESEARCH INTERNATIONAL LTD,11000887,88348.87
Department of Health,Department of Health,21/06/2011,IT minor costs non capital,FINANCE & OPERATIONS (DM),SAS SOFTWARE LTD,UK00143013,35352
Department of Health,Department of Health,21/06/2011,Grants to non profit institutions (CUR),Health Improvement and Protection,HAEMOPHILIA SOC NAT OFF A CURR,ERS-434694-47981,50000
Department of Health,Department of Health,21/06/2011,Contr Other External,NHS Chief Information Officer,NHS SHARED BUSINESS SERVICES LTD,13157558,-37333.22
Department of Health,Department of Health,21/06/2011,Addition Clearing - IT,NHS FINANCE PERFORMANCE & OPERATIONS,AIRWAVE SOLUTIONS INTERNATIONAL LTD,0900000137-140,338847.76
Department of Health,Department of Health,21/06/2011,Addition Clearing - IT,NHS FINANCE PERFORMANCE & OPERATIONS,AIRWAVE SOLUTIONS INTERNATIONAL LTD,0900000137-140,-0.01
Department of Health,Department of Health,21/06/2011,Insurance building,NHS FINANCE PERFORMANCE & OPERATIONS,THOMPSONS,1029/1029/2011,2807.63
Department of Health,Department of Health,21/06/2011,Rent of Land & Buildings (non-PFI operating lease),NHS FINANCE PERFORMANCE & OPERATIONS,THOMPSONS,1029/1029/2011,25650
Department of Health,Department of Health,21/06/2011,Service charge,NHS FINANCE PERFORMANCE & OPERATIONS,THOMPSONS,1029/1029/2011,7592.4
Department of Health,Department of Health,21/06/2011,Outsourcing Contract,NHS FINANCE PERFORMANCE & OPERATIONS,ALLIANCE MEDICAL LTD,PET0098,811416.81
Department of Health,Department of Health,21/06/2011,Research & development,Research and Development,OXFORD HEALTH NHS FOUNDATION TRUST,ERS-434751-48022,36082
Department of Health,Department of Health,21/06/2011,Research & development,Research and Development,OXFORD RADCLIFFE HOSPITAL NHS TRUST,ERS-434752-48023,62107.36
Department of Health,Department of Health,21/06/2011,Research & development,Research and Development,BELFAST QUEENS UNIVERSITY OF,ERS-434786-48059,31845
Department of Health,Department of Health,21/06/2011,Grants to local authorities (CAP),Social Care,ISLE OF WIGHT COUNCIL,ERS-434712-48011,406908
Department of Health,Department of Health,21/06/2011,Grants to local authorities (CAP),Social Care,KINGSTON UPON HULL CITY COUNCIL,ERS-434714-48001,775930
Department of Health,Department of Health,21/06/2011,Grants to local authorities (CAP),Social Care,LEICESTER CITY COUNCIL,ERS-434715-48002,811934
Department of Health,Department of Health,21/06/2011,Grants to local authorities (CAP),Social Care,LUTON BOROUGH COUNCIL,ERS-434716-48003,391015
Department of Health,Department of Health,21/06/2011,Grants to local authorities (CAP),Social Care,MEDWAY COUNCIL,ERS-434717-48004,489484
Department of Health,Department of Health,21/06/2011,Grants to local authorities (CAP),Social Care,MIDDLESBROUGH COUNCIL,ERS-434718-48005,397464
Department of Health,Department of Health,21/06/2011,Grants to local authorities (CAP),Social Care,MILTON KEYNES COUNCIL,ERS-434719-48006,455676
Department of Health,Department of Health,21/06/2011,Grants to local authorities (CAP),Social Care,NORTH EAST LINCOLNSHIRE COUNCIL,ERS-434720-48007,402031
Department of Health,Department of Health,21/06/2011,Grants to local authorities (CAP),Social Care,NORTH LINCOLNSHIRE COUNCIL,ERS-434721-48008,388626
Department of Health,Department of Health,21/06/2011,Grants to local authorities (CAP),Social Care,NORTH SOMERSET COUNCIL,ERS-434722-48009,484970
Department of Health,Department of Health,21/06/2011,Grants to local authorities (CAP),Social Care,NOTTINGHAM CITY COUNCIL,ERS-434807-48122,812082
Department of Health,Department of Health,21/06/2011,Grants to local authorities (CAP),Social Care,PETERBOROUGH CITY COUNCIL,ERS-434808-48123,395030
Department of Health,Department of Health,21/06/2011,Grants to local authorities (CAP),Social Care,PLYMOUTH CITY COUNCIL,ERS-434809-48124,674072
Department of Health,Department of Health,21/06/2011,Grants to local authorities (CAP),Social Care,POOLE BOROUGH OF,ERS-434811-48125,325572
Department of Health,Department of Health,21/06/2011,Grants to local authorities (CAP),Social Care,PORTSMOUTH CITY COUNCIL,ERS-434812-48126,461101
Department of Health,Department of Health,21/06/2011,Grants to local authorities (CAP),Social Care,READING BOROUGH COUNCIL,ERS-434813-48127,292096
Department of Health,Department of Health,21/06/2011,Grants to local authorities (CAP),Social Care,REDCAR AND CLEVELAND BOROUGH COUNCIL,ERS-434815-48128,374977
Department of Health,Department of Health,21/06/2011,Grants to local authorities (CAP),Social Care,RUTLAND COUNTY COUNCIL,ERS-434816-48129,68415
Department of Health,Department of Health,21/06/2011,Grants to local authorities (CAP),Social Care,SLOUGH BOROUGH COUNCIL,ERS-434817-48130,261571
Department of Health,Department of Health,21/06/2011,Grants to local authorities (CAP),Social Care,SOUTHAMPTON CITY COUNCIL,ERS-434818-48131,593122
Department of Health,Department of Health,21/06/2011,Grants to local authorities (CAP),Social Care,SOUTHEND-ON-SEA BOROUGH COUNCIL,ERS-434819-48133,424558
Department of Health,Department of Health,21/06/2011,Grants to local authorities (CAP),Social Care,SOUTH GLOUCESTERSHIRE COUNCIL,ERS-434821-48132,480130
Department of Health,Department of Health,21/06/2011,Grants to local authorities (CAP),Social Care,STOCKTON-ON-TEES BOROUGH COUNCIL,ERS-434822-48134,433592
Department of Health,Department of Health,21/06/2011,Grants to local authorities (CAP),Social Care,STOKE-ON-TRENT CITY COUNCIL,ERS-434823-48135,703964
Department of Health,Department of Health,21/06/2011,Grants to local authorities (CAP),Social Care,SWINDON BOROUGH COUNCIL,ERS-434824-48136,385465
Department of Health,Department of Health,21/06/2011,Grants to local authorities (CAP),Social Care,TELFORD AND WREKIN BOROUGH OF,ERS-434826-48137,402708
Department of Health,Department of Health,21/06/2011,Grants to local authorities (CAP),Social Care,THURROCK BOROUGH COUNCIL,ERS-434827-48138,344687
Department of Health,Department of Health,21/06/2011,Grants to local authorities (CAP),Social Care,TORBAY COUNCIL,ERS-434828-48139,443488
Department of Health,Department of Health,21/06/2011,Grants to local authorities (CAP),Social Care,WARRINGTON BOROUGH COUNCIL,ERS-434829-48140,428324
Department of Health,Department of Health,21/06/2011,Grants to local authorities (CAP),Social Care,WEST BERKSHIRE COUNCIL,ERS-434830-48141,249093
Department of Health,Department of Health,21/06/2011,Grants to local authorities (CAP),Social Care,WINDSOR AND MAIDENHEAD ROYAL BOROUGH OF,ERS-434831-48142,237051
Department of Health,Department of Health,21/06/2011,Grants to local authorities (CAP),Social Care,WOKINGHAM COUNCIL,ERS-434832-48143,201637
Department of Health,Department of Health,21/06/2011,Grants to local authorities (CAP),Social Care,YORK COUNCIL CITY OF,ERS-434833-48144,381307
Department of Health,Department of Health,21/06/2011,Grants to local authorities (CAP),Social Care,KENSINGTON AND CHELSEA COUNCIL ROYAL BOROUGH OF,ERS-434834-48121,521043
Department of Health,Department of Health,21/06/2011,Secondees in invoiced costs,SOCIAL CARE,HULL PCT,800047770,10527.14
Department of Health,Department of Health,21/06/2011,Secondees in invoiced costs,SOCIAL CARE,HULL PCT,800047770,16004.46
Department of Health,Department of Health,21/06/2011,Grants to non profit institutions (CUR),SOCIAL CARE,ADFAM,ERS-434784-48063,37938.5
Department of Health,Department of Health,21/06/2011,Grants to non profit institutions (CUR),SOCIAL CARE,THE ROYAL BRITISH LEGION,ERS-434794-48081,198000
Department of Health,Department of Health,21/06/2011,Grants to non profit institutions (CUR),SOCIAL CARE,SALFORD HEALTH MATTERS CIC,ERS-434801-48101,73274.5
Department of Health,Department of Health,21/06/2011,Research & development,SOCIAL CARE,OXFORD UNIVERSITY,ROVH0/20066992,102677
Department of Health,Department of Health,21/06/2011,Research & development,SOCIAL CARE,OXFORD UNIVERSITY,ROVH0/20071633,52754
Department of Health,Department of Health,21/06/2011,Research & development,SOCIAL CARE,OXFORD UNIVERSITY,ROVH0/20075077,52756
Department of Health,Department of Health,21/06/2011,Outsourcing Contract,SOCIAL CARE,BROADCASTING SUPPORT SERVICES,S12-00063,138144.54
Department of Health,Department of Health,21/06/2011,Revenue Grants to Other Bodies,WORKFORCE,OFFICE OF THE HEALTH PROFESSIONS ADJUDICATOR OHPA,DLG-PS-OHPA-13,53262
Department of Health,Department of Health,22/06/2011,Outsourcing Contract,Health Improvement and Protection,MULTI RESOURCE MARKETING LTD,121663,69137.29
Department of Health,Department of Health,22/06/2011,Service charge,NHS Chief Information Officer,ATOS ORIGIN IT SERVICES UK LTD,5584082482,68609.67
Department of Health,Department of Health,22/06/2011,Addition Clearing - IT,NHS Chief Information Officer,ATOS ORIGIN IT SERVICES UK LTD,5584082483,100979
Department of Health,Department of Health,22/06/2011,Service charge,NHS Chief Information Officer,ATOS ORIGIN IT SERVICES UK LTD,5584083810,68609.67
Department of Health,Department of Health,22/06/2011,Staff Consultancy & Suppt,NHS Chief Information Officer,PA CONSULTING SERVICES LTD,13032503,22400
Department of Health,Department of Health,22/06/2011,Staff Consultancy & Suppt,NHS Chief Information Officer,PA CONSULTING SERVICES LTD,13032514,25200
Department of Health,Department of Health,22/06/2011,Research & development,Research and Development,THAMES VALLEY UNIVERSITY,ERS-434903-48204,55626
Department of Health,Department of Health,22/06/2011,Research & development,Research and Development,UNIVERSITY COLLEGE LONDON (UCL),ERS-434904-48195,50897
Department of Health,Department of Health,22/06/2011,Research & development,Research and Development,SHEFFIELD UNIVERSITY OF,ERS-434906-48201,235306
Department of Health,Department of Health,22/06/2011,Research & development,Research and Development,HEALTH PROTECTION AGENCY (HPA),ERS-434907-48184,165666
Department of Health,Department of Health,22/06/2011,Research & development,Research and Development,CAMBRIDGE UNIVERSITY HOSPITALS NHS FOUNDATION TRUST,ERS-434908-48181,43534
Department of Health,Department of Health,22/06/2011,Research & development,Research and Development,UNIVERSITY COLLEGE LONDON (UCL),ERS-434912-48196,293644
Department of Health,Department of Health,22/06/2011,Research & development,Research and Development,EDINBURGH UNIVERSITY OF,ERS-434914-48191,192633
Department of Health,Department of Health,22/06/2011,Research & development,Research and Development,UNIVERSITY COLLEGE LONDON (UCL),ERS-434915-48197,114779
Department of Health,Department of Health,22/06/2011,Research & development,Research and Development,HEALTH PROTECTION AGENCY (HPA),ERS-434916-48186,31443
Department of Health,Department of Health,22/06/2011,Research & development,Research and Development,LONDON SCHOOL OF HYGIENE AND TROPICAL MEDICINE,ERS-434919-48192,127859
Department of Health,Department of Health,22/06/2011,Research & development,Research and Development,YORK UNIVERSITY OF,ERS-434920-48205,282982
Department of Health,Department of Health,22/06/2011,Research & development,Research and Development,MANCHESTER UNIVERSITY OF,ERS-434921-48198,31731
Department of Health,Department of Health,22/06/2011,Research & development,Research and Development,SHEFFIELD UNIVERSITY OF,ERS-434922-48202,44664
Department of Health,Department of Health,22/06/2011,Research & development,Research and Development,LONDON SCHOOL OF HYGIENE AND TROPICAL MEDICINE,ERS-434923-48193,37984
Department of Health,Department of Health,22/06/2011,Research & development,Research and Development,BRISTOL UNIVERSITY OF,ERS-434924-48190,34556
Department of Health,Department of Health,22/06/2011,Research & development,Research and Development,SHEFFIELD UNIVERSITY OF,ERS-434925-48203,39633
Department of Health,Department of Health,22/06/2011,Research & development,Research and Development,KENT UNIVERSITY OF,ERS-434926-48194,100522
Department of Health,Department of Health,22/06/2011,Research & development,Research and Development,NOTTINGHAM UNIVERSITY OF,ERS-434927-48200,66929
Department of Health,Department of Health,22/06/2011,Research & development,Research and Development,MANCHESTER UNIVERSITY OF,ERS-434928-48199,111863
Department of Health,Department of Health,22/06/2011,Research & development,Research and Development,ASTON UNIVERSITY,ERS-434929-48188,161092
Department of Health,Department of Health,22/06/2011,Research & development,Research and Development,BIRMINGHAM UNIVERSITY OF,ERS-434930-48189,44684
Department of Health,Department of Health,22/06/2011,Grants to non profit institutions (CUR),Social Care,DEPARTMENT FOR COMMUNITIES AND LOCAL GOVERNMENT (DCLG),ERS-434848-48161,5292017
Department of Health,Department of Health,22/06/2011,Grants to local authorities (CAP),Social Care,TOWER HAMLETS LONDON BOROUGH COUNCIL,ERS-434947-48222,1774329
Department of Health,Department of Health,22/06/2011,Grants to local authorities (CAP),Social Care,TRAFFORD METROPOLITAN BOROUGH COUNCIL,ERS-434948-48223,4962048
Department of Health,Department of Health,22/06/2011,Grants to local authorities (CAP),Social Care,WAKEFIELD METROPOLITAN DISTRICT COUNCIL,ERS-434949-48224,8593504
Department of Health,Department of Health,22/06/2011,Grants to local authorities (CAP),Social Care,WALSALL METROPOLITAN BOROUGH COUNCIL,ERS-434953-48241,6459125
Department of Health,Department of Health,22/06/2011,Grants to local authorities (CAP),Social Care,WALTHAM FOREST LONDON BOROUGH COUNCIL,ERS-434962-48242,7220630
Department of Health,Department of Health,22/06/2011,Grants to local authorities (CAP),Social Care,WANDSWORTH LONDON BOROUGH COUNCIL,ERS-434966-48243,9423832
Department of Health,Department of Health,22/06/2011,Grants to local authorities (CAP),Social Care,WARRINGTON BOROUGH COUNCIL,ERS-434967-48244,4783582
Department of Health,Department of Health,22/06/2011,Grants to local authorities (CAP),Social Care,BATH AND NORTH EAST SOMERSET COUNCIL,ERS-434968-48254,378679
Department of Health,Department of Health,22/06/2011,Grants to local authorities (CAP),Social Care,WARWICKSHIRE COUNTY COUNCIL,ERS-434969-48245,11716483
Department of Health,Department of Health,22/06/2011,Grants to local authorities (CAP),Social Care,BEDFORD BOROUGH COUNCIL,ERS-434970-48255,322304
Department of Health,Department of Health,22/06/2011,Grants to local authorities (CAP),Social Care,BLACKBURN WITH DARWEN BOROUGH COUNCIL,ERS-434971-48257,387395
Department of Health,Department of Health,22/06/2011,Grants to local authorities (CAP),Social Care,WEST BERKSHIRE COUNCIL,ERS-434972-48246,3088463
Department of Health,Department of Health,22/06/2011,Grants to local authorities (CAP),Social Care,BLACKPOOL BOROUGH COUNCIL,ERS-434973-48256,466492
Department of Health,Department of Health,22/06/2011,Grants to local authorities (CAP),Social Care,BOURNEMOUTH COUNCIL,ERS-434974-48258,445632
Department of Health,Department of Health,22/06/2011,Grants to local authorities (CAP),Social Care,BRACKNELL FOREST BOROUGH COUNCIL,ERS-434975-48259,183502
Department of Health,Department of Health,22/06/2011,Grants to local authorities (CAP),Social Care,BRIGHTON AND HOVE CITY COUNCIL,ERS-434976-48260,627640
Department of Health,Department of Health,22/06/2011,Grants to local authorities (CAP),Social Care,WEST SUSSEX COUNTY COUNCIL,ERS-434977-48247,19318260
Department of Health,Department of Health,22/06/2011,Grants to local authorities (CAP),Social Care,BRISTOL CITY COUNCIL,ERS-434978-48261,1063040
Department of Health,Department of Health,22/06/2011,Grants to local authorities (CAP),Social Care,CENTRAL BEDFORDSHIRE UNITARY AUTHORITY,ERS-434979-48264,430191
Department of Health,Department of Health,22/06/2011,Grants to local authorities (CAP),Social Care,WESTMINSTER CITY COUNCIL,ERS-434981-48249,7660578
Department of Health,Department of Health,22/06/2011,Grants to local authorities (CAP),Social Care,CHESHIRE EAST UNITARY AUTHORITY,ERS-434982-48262,746141
Department of Health,Department of Health,22/06/2011,Grants to local authorities (CAP),Social Care,WIGAN METROPOLITAN BOROUGH COUNCIL,ERS-434983-48250,6797211
Department of Health,Department of Health,22/06/2011,Grants to local authorities (CAP),Social Care,WILTSHIRE COUNTY COUNCIL,ERS-434984-48251,8217803
Department of Health,Department of Health,22/06/2011,Grants to local authorities (CAP),Social Care,WINDSOR AND MAIDENHEAD ROYAL BOROUGH OF,ERS-434986-48252,3632110
Department of Health,Department of Health,22/06/2011,Grants to local authorities (CAP),Social Care,CHESHIRE WEST AND CHESTER UNITARY AUTHORITY,ERS-434988-48263,755721
Department of Health,Department of Health,22/06/2011,Grants to local authorities (CAP),Social Care,WIRRAL METROPOLITAN BOROUGH COUNCIL,ERS-434993-48266,6708877
Department of Health,Department of Health,22/06/2011,Grants to local authorities (CAP),Social Care,WOKINGHAM COUNCIL,ERS-434996-48267,6644778
Department of Health,Department of Health,22/06/2011,Grants to local authorities (CAP),Social Care,WOLVERHAMPTON CITY COUNCIL,ERS-434997-48268,10747409
Department of Health,Department of Health,22/06/2011,Grants to local authorities (CAP),Social Care,WORCESTERSHIRE COUNTY COUNCIL,ERS-434998-48269,9577099
Department of Health,Department of Health,22/06/2011,Grants to local authorities (CAP),Social Care,YORK COUNCIL CITY OF,ERS-434999-48270,4038879
Department of Health,Department of Health,23/06/2011,Publicity & advertising,COMMUNICATIONS,CENTRAL OFFICE OF INFORMATION (COI),735040,99527.54
Department of Health,Department of Health,23/06/2011,Secondees in invoiced costs,Health Improvement and Protection,GREAT WESTERN AMBULANCE SERVICE NHS TRUST,A010187,28244.87
Department of Health,Department of Health,23/06/2011,Other programme expenditure,Health Improvement and Protection,THE TERRENCE HIGGINS TRUST,STA003586,585000
Department of Health,Department of Health,23/06/2011,Computer Software/License,NHS Chief Information Officer,ISOFT PLC,13052602,100614.06
Department of Health,Department of Health,23/06/2011,Computer Software/License,NHS Chief Information Officer,ISOFT PLC,13052620,-100614.06
Department of Health,Department of Health,23/06/2011,Hardware & Crockery,NHS Chief Information Officer,ISOFT PLC,13059410,454958.4
Department of Health,Department of Health,23/06/2011,Hardware & Crockery,NHS Chief Information Officer,ISOFT PLC,13059419,-454958.4
Department of Health,Department of Health,23/06/2011,Radio communications,NHS FINANCE PERFORMANCE & OPERATIONS,TERRAFIX LTD,110307,56100
Department of Health,Department of Health,23/06/2011,Storage costs,NHS MEDICAL DIRECTOR,CONSILIENT HEALTH UK LTD,9745,32840.65
Department of Health,Department of Health,23/06/2011,Consultancy/Professional Advice,POLICY & STRATEGY,MCKINSEY AND CO INC UK,12507,64785
Department of Health,Department of Health,23/06/2011,Consultancy/Professional Advice,POLICY & STRATEGY,MCKINSEY AND CO INC UK,12658,53100
Department of Health,Department of Health,23/06/2011,Consultancy/Professional Advice,POLICY & STRATEGY,MCKINSEY AND CO INC UK,12667,40790
Department of Health,Department of Health,23/06/2011,Research & development,Research and Development,VANTIX LTD,209,148364
Department of Health,Department of Health,23/06/2011,Research & development,Research and Development,UNIVERSITY COLLEGE LONDON (UCL),ERS-435054-48296,29792
Department of Health,Department of Health,23/06/2011,Research & development,Research and Development,LONDON SCHOOL OF HYGIENE AND TROPICAL MEDICINE,ERS-435058-48290,40586
Department of Health,Department of Health,23/06/2011,Research & development,Research and Development,LONDON SCHOOL OF HYGIENE AND TROPICAL MEDICINE,ERS-435061-48291,26992
Department of Health,Department of Health,23/06/2011,Research & development,Research and Development,QUEEN MARY AND WESTFIELD COLLEGE,ERS-435062-48299,241445
Department of Health,Department of Health,23/06/2011,Research & development,Research and Development,CAMBRIDGE UNIVERSITY OF,ERS-435063-48285,39893
Department of Health,Department of Health,23/06/2011,Research & development,Research and Development,BRISTOL UNIVERSITY OF,ERS-435064-48283,33828
Department of Health,Department of Health,23/06/2011,Research & development,Research and Development,UNIVERSITY OF CENTRAL LANCASHIRE HEC,ERS-435065-48294,36885
Department of Health,Department of Health,23/06/2011,Research & development,Research and Development,OXFORD UNIVERSITY,ERS-435066-48298,291172.68
Department of Health,Department of Health,23/06/2011,Research & development,Research and Development,KENT UNIVERSITY OF,ERS-435067-48293,280748
Department of Health,Department of Health,23/06/2011,Research & development,Research and Development,MIDDLESEX UNIVERSITY,ERS-435069-48297,44625
Department of Health,Department of Health,23/06/2011,Research & development,Research and Development,LANCASTER UNIVERSITY,ERS-435072-48295,38572
Department of Health,Department of Health,23/06/2011,Research & development,Research and Development,BRISTOL UNIVERSITY OF,ERS-435073-48284,43998
Department of Health,Department of Health,23/06/2011,Research & development,Research and Development,QUEEN MARY AND WESTFIELD COLLEGE,ERS-435075-48300,63613
Department of Health,Department of Health,23/06/2011,Research & development,Research and Development,CAMBRIDGE UNIVERSITY OF,ERS-435076-48286,288391
Department of Health,Department of Health,23/06/2011,Research & development,Research and Development,BARTS AND THE LONDON NHS TRUST,ERS-435085-48310,50758
Department of Health,Department of Health,23/06/2011,Research & development,Research and Development,UNIVERSITY HOSPITAL BIRMINGHAM NHS FOUNDATION TRUST,ERS-435086-48314,40015
Department of Health,Department of Health,23/06/2011,Research & development,Research and Development,CAMBRIDGE UNIVERSITY HOSPITALS NHS FOUNDATION TRUST,ERS-435087-48306,60311
Department of Health,Department of Health,23/06/2011,Research & development,Research and Development,THE ROYAL MARSDEN NHS FOUNDATION TRUST,ERS-435088-48311,79391
Department of Health,Department of Health,23/06/2011,Research & development,Research and Development,IMPERIAL COLLEGE HEALTHCARE NHS TRUST,ERS-435089-48319,58793
Department of Health,Department of Health,23/06/2011,Research & development,Research and Development,GUYS AND ST THOMAS NHS FOUNDATION TRUST,ERS-435090-48309,29436
Department of Health,Department of Health,23/06/2011,Research & development,Research and Development,LEEDS TEACHING HOSPITAL NHS TRUST,ERS-435091-48313,59585
Department of Health,Department of Health,23/06/2011,Research & development,Research and Development,UNIVERSITY HOSPITALS OF LEICESTER NHS TRUST,ERS-435092-48318,25535
Department of Health,Department of Health,23/06/2011,Research & development,Research and Development,THE CHRISTIE HOSPITAL NHS FOUNDATION TRUST,ERS-435095-48304,53349
Department of Health,Department of Health,23/06/2011,Research & development,Research and Development,OXFORD RADCLIFFE HOSPITAL NHS TRUST,ERS-435096-48316,81255
Department of Health,Department of Health,23/06/2011,Research & development,Research and Development,SOUTHAMPTON UNIVERSITY HOSPITALS NHS TRUST,ERS-435098-48307,51908
Department of Health,Department of Health,23/06/2011,Research & development,Research and Development,UNIVERSITY COLLEGE LONDON HOSPITALS NHS FOUNDATION TRUST,ERS-435099-48315,62279
Department of Health,Department of Health,23/06/2011,Research & development,Research and Development,SURREY UNIVERSITY OF,ERS-435108-48329,58125
Department of Health,Department of Health,23/06/2011,Research & development,Research and Development,EXETER UNIVERSITY OF,ERS-435109-48326,45565
Department of Health,Department of Health,23/06/2011,Research & development,Research and Development,CANCER RESEARCH UK,ERS-435112-48330,150000
Department of Health,Department of Health,23/06/2011,Research & development,Research and Development,NORTH STAFFORDSHIRE PCT,ERS-435114-48321,105855
Department of Health,Department of Health,23/06/2011,Research & development,Research and Development,HUMBER NHS FOUNDATION TRUST,ERS-435115-48323,81200
Department of Health,Department of Health,23/06/2011,Research & development,Research and Development,UNIVERSITY HOSPITALS OF LEICESTER NHS TRUST,ERS-435116-48324,96425
Department of Health,Department of Health,23/06/2011,Research & development,Research and Development,OXFORD HEALTH NHS FOUNDATION TRUST,ERS-435118-48322,115921
Department of Health,Department of Health,23/06/2011,Research & development,Research and Development,ACADEMY OF MEDICAL SCIENCES,IW1507/ERS-434152-47651,30370
Department of Health,Department of Health,23/06/2011,Outsourcing Contract,SOCIAL CARE,MANCHESTER UNIVERSITY OF,15035734,56836
Department of Health,Department of Health,23/06/2011,Professional fees,WORKFORCE,GENERAL MEDICAL COUNCIL,90000140,375222.02
Department of Health,Department of Health,23/06/2011,Admin Revenue Grant-in-Aid ENDPBs,WORKFORCE,COUNCIL FOR HEALTHCARE REGULATORY EXCELLENCE (CHRE),DH003,100000
Department of Health,Department of Health,24/06/2011,Professional fees,FINANCE & OPERATIONS (DM),GRANT THORNTON LTD,6523279,3973.2
Department of Health,Department of Health,24/06/2011,Professional fees,FINANCE & OPERATIONS (DM),GRANT THORNTON LTD,6523279,6555
Department of Health,Department of Health,24/06/2011,Professional fees,FINANCE & OPERATIONS (DM),GRANT THORNTON LTD,6523279,2091.98
Department of Health,Department of Health,24/06/2011,Professional fees,FINANCE & OPERATIONS (DM),GRANT THORNTON LTD,6523279,4788
Department of Health,Department of Health,24/06/2011,Professional fees,FINANCE & OPERATIONS (DM),GRANT THORNTON LTD,6523279,7780.5
Department of Health,Department of Health,24/06/2011,Professional fees,FINANCE & OPERATIONS (DM),GRANT THORNTON LTD,6523279,3453
Department of Health,Department of Health,24/06/2011,Professional fees,FINANCE & OPERATIONS (DM),GRANT THORNTON LTD,6523279,3500
Department of Health,Department of Health,24/06/2011,Professional fees,FINANCE & OPERATIONS (DM),GRANT THORNTON LTD,6523279,19
Department of Health,Department of Health,24/06/2011,Professional fees,FINANCE & OPERATIONS (DM),GRANT THORNTON LTD,6523279,3174
Department of Health,Department of Health,24/06/2011,Professional fees,FINANCE & OPERATIONS (DM),GRANT THORNTON LTD,6523279,154
Department of Health,Department of Health,24/06/2011,Professional fees,FINANCE & OPERATIONS (DM),GRANT THORNTON LTD,6523279,2074.53
Department of Health,Department of Health,24/06/2011,Professional fees,FINANCE & OPERATIONS (DM),GRANT THORNTON LTD,6523279,3846
Department of Health,Department of Health,24/06/2011,Professional fees,FINANCE & OPERATIONS (DM),GRANT THORNTON LTD,6523279,2643
Department of Health,Department of Health,24/06/2011,Professional fees,FINANCE & OPERATIONS (DM),GRANT THORNTON LTD,6523279,2000
Department of Health,Department of Health,24/06/2011,Other programme expenditure,Health Improvement and Protection,SKIPTON FUND LTD,002/11-12,6000000
Department of Health,Department of Health,24/06/2011,Programme Revenue Grant in Aid to ENDPBs,Health Improvement and Protection,HEALTH PROTECTION AGENCY (HPA),DRAWDOWN JUNE 2011,13500000
Department of Health,Department of Health,24/06/2011,"SFVS - product & distribution cost, during May 2011",Health Improvement and Protection,GW Price Ltd,708741,46516.27
Department of Health,Department of Health,24/06/2011,"SFVS - product & distribution cost, during May 2011",Health Improvement and Protection,GW Price Ltd,708751,38534.84
Department of Health,Department of Health,24/06/2011,"SFVS - product & distribution cost, during May 2011",Health Improvement and Protection,GW Price Ltd,708735,28910.03
Department of Health,Department of Health,24/06/2011,"SFVS - product & distribution cost, during May 2011",Health Improvement and Protection,GW Price Ltd,708737,50582.6
Department of Health,Department of Health,24/06/2011,"SFVS - product & distribution cost, during May 2011",Health Improvement and Protection,GW Price Ltd,708738,26749.47
Department of Health,Department of Health,24/06/2011,"SFVS - product & distribution cost, during May 2011",Health Improvement and Protection,GW Price Ltd,708745,38304.04
Department of Health,Department of Health,24/06/2011,"SFVS - product & distribution cost, during May 2011",Health Improvement and Protection,GW Price Ltd,708742,59096.15
Department of Health,Department of Health,24/06/2011,Computer Maintenance,NHS Chief Information Officer,PROBRAND LTD,13119122,46303.83
Department of Health,Department of Health,24/06/2011,Legal / Prof Fees,NHS Chief Information Officer,DLA PIPER UK LLP,12853389,50085.88
Department of Health,Department of Health,24/06/2011,Legal / Prof Fees,NHS Chief Information Officer,DLA PIPER UK LLP,12853407,377552.88
Department of Health,Department of Health,24/06/2011,Rent,NHS Chief Information Officer,DTZ DEBENHAM TIE LEUNG,13083449,29084.94
Department of Health,Department of Health,24/06/2011,SYS VAT Non recoverable,NHS Chief Information Officer,DTZ DEBENHAM TIE LEUNG,13083449,14542.46
Department of Health,Department of Health,24/06/2011,SYS VAT Non recoverable,NHS Chief Information Officer,PROBRAND LTD,13119122,0.01
Department of Health,Department of Health,24/06/2011,Outsourcing Contract,NHS FINANCE PERFORMANCE & OPERATIONS,SPIRE HEALTHCARE LTD,CM090259,473803.69
Department of Health,Department of Health,24/06/2011,Outsourcing Contract,NHS FINANCE PERFORMANCE & OPERATIONS,SPIRE HEALTHCARE LTD,CM090259,188200.46
Department of Health,Department of Health,24/06/2011,Admin Revenue Grant-in-Aid ENDPBs,NHS FINANCE PERFORMANCE & OPERATIONS,MONITOR INDEPENDENT REGULATOR OF NHS FOUNDATION TRUSTS,IR OF NHS JUNE 2011,1000000
Department of Health,Department of Health,24/06/2011,Admin Revenue Grant-in-Aid ENDPBs,NHS FINANCE PERFORMANCE & OPERATIONS,MONITOR INDEPENDENT REGULATOR OF NHS FOUNDATION TRUSTS,IR OF NHS JUNE 2011,400000
Department of Health,Department of Health,24/06/2011,Research & development,Research and Development,CRANFIELD UNIVERSITY,ERS-435247-48389,41087
Department of Health,Department of Health,24/06/2011,Research & development,Research and Development,INSTITUTE OF CANCER RESEARCH (ICR),ERS-435249-48395,154865
Department of Health,Department of Health,24/06/2011,Research & development,Research and Development,MEDICAL RESEARCH COUNCIL MRC,ERS-435250-48392,40539
Department of Health,Department of Health,24/06/2011,Research & development,Research and Development,OXFORD UNIVERSITY,ERS-435251-48393,117500
Department of Health,Department of Health,24/06/2011,Research & development,Research and Development,BARTS AND THE LONDON NHS TRUST,ERS-435255-48387,104340
Department of Health,Department of Health,24/06/2011,Research & development,Research and Development,CORNWALL PARTNERSHIP NHS FOUNDATION TRUST,ERS-435257-48386,25415
Department of Health,Department of Health,24/06/2011,Research & development,Research and Development,SOUTH WEST SHA,ERS-435258-48384,156373.19
Department of Health,Department of Health,24/06/2011,Research & development,Research and Development,WEST MIDLANDS SHA,ERS-435259-48383,226196
Department of Health,Department of Health,24/06/2011,Grants to non profit institutions (CUR),SOCIAL CARE,NEUROLOGICAL COMMISSIONING SUPPORT LTD,ERS-435210-48341,86678
Department of Health,Department of Health,24/06/2011,Grants to non profit institutions (CUR),SOCIAL CARE,THE ASSOCIATION FOR REAL CHANGE,ERS-435217-48361,32197
Department of Health,Department of Health,24/06/2011,Grants to non profit institutions (CUR),SOCIAL CARE,THE ASSOCIATION FOR REAL CHANGE,ERS-435224-48362,44167.5
Department of Health,Department of Health,24/06/2011,Grants to non profit institutions (CUR),SOCIAL CARE,PRINCESS ROYAL TRUST FOR CARERS,ERS-435226-48363,25000
Department of Health,Department of Health,24/06/2011,Grants to non profit institutions (CUR),SOCIAL CARE,THE MOVEMENT FOR NON MOBILE CHILDREN WHIZZ KIDZ,ERS-435245-48382,50337.5
Department of Health,Department of Health,24/06/2011,Grants to non profit institutions (CUR),SOCIAL CARE,NATIONAL SOCIETY FOR THE PREVENTION OF CRUELTY TO CHILDREN,ERS-435267-48396,26959
Department of Health,Department of Health,24/06/2011,Grants to non profit institutions (CUR),SOCIAL CARE,THE MENTAL HEALTH FOUNDATION,ERS-435271-48397,30010.2
Department of Health,Department of Health,24/06/2011,Workforce,Social Care,LONDON SHA,50003360,27000
Department of Health,Department of Health,24/06/2011,Consultancy & Other Professional Fees,Social Care,HEALTH AND SOCIAL CARE INFORMATION CENTRE,50003362,81970.9
Department of Health,Department of Health,24/06/2011,Admin Revenue Grant-in-Aid ENDPBs,WORKFORCE,APPOINTMENTS COMMISSION,20110761,300000
Department of Health,Department of Health,27/06/2011,Grants to non-profit institutions (CAP),COMMISSIONING,FUTUREBUILDERS ENGLAND FUND MANAGEMENT LTD,CHAPS27/6/11,707341.64
Department of Health,Department of Health,27/06/2011,Publicity & advertising,COMMUNICATIONS,CENTRAL OFFICE OF INFORMATION (COI),735090,31441.38
Department of Health,Department of Health,27/06/2011,Publicity & advertising,COMMUNICATIONS,CENTRAL OFFICE OF INFORMATION (COI),735100,44174.17
Department of Health,Department of Health,27/06/2011,Additions FT Financing Facility Loans,FINANCE & OPERATIONS (DM),BLACKPOOL FYLDE & WYRE HOSPITALS NHS FOUNDATION TRUST,HAFS-10879,1000000
Department of Health,Department of Health,27/06/2011,Additions FT Financing Facility Loans,FINANCE & OPERATIONS (DM),ROYAL BERKSHIRE NHS FOUNDATION TRUST,HAFS-10880,3000000
Department of Health,Department of Health,27/06/2011,Additions FT Financing Facility Loans,FINANCE & OPERATIONS (DM),THE ROTHERHAM NHS FOUNDATION TRUST,HAFS-10881,5000000
Department of Health,Department of Health,27/06/2011,Outsourcing Contract,Health Improvement and Protection,NHS SUPPLY CHAIN,9042000004,4354507.91
Department of Health,Department of Health,27/06/2011,Addition Clearing - IT,NHS Chief Information Officer,BT GROUP PLC,265510PART PAYT,23884
Department of Health,Department of Health,27/06/2011,Service charge,NHS Chief Information Officer,BT GROUP PLC,270061,387338.55
Department of Health,Department of Health,27/06/2011,Service charge,NHS Chief Information Officer,BT GROUP PLC,270129PART PAYT,1307113.49
Department of Health,Department of Health,27/06/2011,Addition Clearing - SW LIC,NHS Chief Information Officer,ATOS ORIGIN IT SERVICES UK LTD,CHAPS27/6/11,111971.62
Department of Health,Department of Health,27/06/2011,Service charge,NHS Chief Information Officer,ATOS ORIGIN IT SERVICES UK LTD,CHAPS27/6/11,2799214.99
Department of Health,Department of Health,27/06/2011,Research & development,Research and Development,UNIVERSITY COLLEGE LONDON (UCL),ERS-435273-48447,38611
Department of Health,Department of Health,27/06/2011,Research & development,Research and Development,ECONOMIC AND SOCIAL RESEARCH COUNCIL (ESRC),ERS-435318-48445,472160
Department of Health,Department of Health,27/06/2011,Research & development,Research and Development,LONDON SCHOOL OF HYGIENE AND TROPICAL MEDICINE,ERS-435322-48446,369705.5
Department of Health,Department of Health,27/06/2011,Grants to local authorities (CAP),Social Care,LAMBETH LONDON BOROUGH COUNCIL,ERS-435330-48448,8220450
Department of Health,Department of Health,27/06/2011,Grants to local authorities (CAP),Social Care,LEEDS CITY COUNCIL,ERS-435332-48449,9971695
Department of Health,Department of Health,27/06/2011,Grants to local authorities (CAP),Social Care,LEICESTER CITY COUNCIL,ERS-435334-48450,10144753
Department of Health,Department of Health,27/06/2011,Grants to local authorities (CAP),Social Care,LEICESTERSHIRE COUNTY COUNCIL,ERS-435337-48461,10703382
Department of Health,Department of Health,27/06/2011,Grants to local authorities (CAP),Social Care,REDBRIDGE LONDON BOROUGH COUNCIL,ERS-435341-48462,3185149
Department of Health,Department of Health,27/06/2011,Grants to local authorities (CAP),Social Care,REDCAR AND CLEVELAND BOROUGH COUNCIL,ERS-435344-48463,1920181
Department of Health,Department of Health,27/06/2011,Grants to local authorities (CAP),Social Care,RICHMOND UPON THAMES BOROUGH COUNCIL,ERS-435345-48464,8981233
Department of Health,Department of Health,27/06/2011,Grants to local authorities (CAP),Social Care,ROTHERHAM BOROUGH COUNCIL,ERS-435346-48465,6560585
Department of Health,Department of Health,27/06/2011,Grants to local authorities (CAP),Social Care,RUTLAND COUNTY COUNCIL,ERS-435347-48466,52466
Department of Health,Department of Health,27/06/2011,Grants to local authorities (CAP),Social Care,SALFORD CITY COUNCIL,ERS-435348-48467,7081781
Department of Health,Department of Health,27/06/2011,Grants to local authorities (CAP),Social Care,SANDWELL METROPOPLITAN BOROUGH COUNCIL,ERS-435349-48468,13446136
Department of Health,Department of Health,27/06/2011,Grants to local authorities (CAP),Social Care,SEFTON METROPOLITAN BOROUGH COUNCIL,ERS-435350-48469,4217284
Department of Health,Department of Health,27/06/2011,Grants to local authorities (CAP),Social Care,SHROPSHIRE COUNTY COUNCIL,ERS-435352-48470,4498623
Department of Health,Department of Health,27/06/2011,Grants to local authorities (CAP),Social Care,SLOUGH BOROUGH COUNCIL,ERS-435363-48481,2898756
Department of Health,Department of Health,27/06/2011,Grants to local authorities (CAP),Social Care,SOLIHULL METROPOLITAN BOROUGH COUNCIL,ERS-435365-48482,4987264
Department of Health,Department of Health,27/06/2011,Grants to local authorities (CAP),Social Care,SOMERSET COUNTY COUNCIL,ERS-435366-48483,69861
Department of Health,Department of Health,27/06/2011,Grants to local authorities (CAP),Social Care,SOUTH GLOUCESTERSHIRE COUNCIL,ERS-435371-48501,14927444
Department of Health,Department of Health,27/06/2011,Grants to local authorities (CAP),Social Care,SOUTH TYNESIDE COUNCIL,ERS-435373-48502,6101817
Department of Health,Department of Health,27/06/2011,Grants to local authorities (CAP),Social Care,SOUTHAMPTON CITY COUNCIL,ERS-435375-48503,5184727
Department of Health,Department of Health,27/06/2011,Grants to local authorities (CAP),Social Care,SOUTHEND-ON-SEA BOROUGH COUNCIL,ERS-435377-48504,4748011
Department of Health,Department of Health,27/06/2011,Outsourcing Contract,WORKFORCE,METHODS CONSULTING,100014776,30357.6
Department of Health,Department of Health,28/06/2011,Outsourcing Contract,Health Improvement and Protection,VERTEX DATA SCIENCE LTD,FI0407592,93064.06
Department of Health,Department of Health,28/06/2011,Outsourcing Contract,Health Improvement and Protection,VERTEX DATA SCIENCE LTD,FI0407594,172201.43
Department of Health,Department of Health,28/06/2011,Outsourcing Contract,Health Improvement and Protection,VERTEX DATA SCIENCE LTD,FI0407608,279567.94
Department of Health,Department of Health,28/06/2011,Service charge,NHS Chief Information Officer,BT GROUP PLC,270058PART PYMT,4182734.78
Department of Health,Department of Health,28/06/2011,Service charge,NHS Chief Information Officer,CSC COMPUTER SCIENCES LTD,5201237021,27370.86
Department of Health,Department of Health,28/06/2011,Service charge,NHS Chief Information Officer,BT GROUP PLC,CHAPS28/06/11,64276.35
Department of Health,Department of Health,28/06/2011,Service charge,NHS Chief Information Officer,LANCASHIRE CARE NHS FOUNDATION TRUST,I0019270,100127
Department of Health,Department of Health,28/06/2011,Service charge,NHS Chief Information Officer,LANCASHIRE CARE NHS FOUNDATION TRUST,I0019271,47483
Department of Health,Department of Health,28/06/2011,Computer Maintenance,NHS Chief Information Officer,PROBRAND LTD,13203278,66548.45
Department of Health,Department of Health,28/06/2011,Contr Other External,NHS Chief Information Officer,CABLE & WIRELESS UK,13060601,710937.65
Department of Health,Department of Health,28/06/2011,Contr Other External,NHS Chief Information Officer,CABLE & WIRELESS UK,13180853,301838.99
Department of Health,Department of Health,28/06/2011,Staff Consultancy & Suppt,NHS Chief Information Officer,ALPINE CONSORTIUM,13151569,23000
Department of Health,Department of Health,28/06/2011,Rent of Land & Buildings (non-PFI operating lease),NHS FINANCE PERFORMANCE & OPERATIONS,PERDISWELL MILLENIUM PARK LTD,193,26750.4
Department of Health,Department of Health,28/06/2011,Consultancy/Professional Advice,NHS FINANCE PERFORMANCE & OPERATIONS,SPRING TECHNOLOGY,E82344/00,25600.08
Department of Health,Department of Health,28/06/2011,Stock Essential Medicines Additions,NHS MEDICAL DIRECTOR,SIGMA PHARMACEUTICALS PLC,I265553,121239.73
Department of Health,Department of Health,28/06/2011,Research & development,Research and Development,MICROONCOLOGY LTD TA CREO MEDICAL LTD,112_SBRI2_03,84175
Department of Health,Department of Health,28/06/2011,Research & development,Research and Development,ABERDEEN UNIVERSITY OF,ERS-435393-48670,40075
Department of Health,Department of Health,28/06/2011,Research & development,Research and Development,ABERDEEN UNIVERSITY OF,ERS-435393-48670,2200
Department of Health,Department of Health,28/06/2011,Research & development,Research and Development,ABERDEEN UNIVERSITY OF,ERS-435393-48670,51547.99
Department of Health,Department of Health,28/06/2011,Research & development,Research and Development,ABERDEEN UNIVERSITY OF,ERS-435393-48670,47288
Department of Health,Department of Health,28/06/2011,Research & development,Research and Development,ABERDEEN UNIVERSITY OF,ERS-435393-48670,32086
Department of Health,Department of Health,28/06/2011,Research & development,Research and Development,ABERDEEN UNIVERSITY OF,ERS-435393-48670,4016
Department of Health,Department of Health,28/06/2011,Research & development,Research and Development,ABERDEEN UNIVERSITY OF,ERS-435393-48670,119115
Department of Health,Department of Health,28/06/2011,Research & development,Research and Development,ABERDEEN UNIVERSITY OF,ERS-435393-48670,55360
Department of Health,Department of Health,28/06/2011,Research & development,Research and Development,ABERDEEN UNIVERSITY OF,ERS-435393-48670,33456
Department of Health,Department of Health,28/06/2011,Research & development,Research and Development,ABERDEEN UNIVERSITY OF,ERS-435393-48670,93400
Department of Health,Department of Health,28/06/2011,Research & development,Research and Development,ABERDEEN UNIVERSITY OF,ERS-435393-48670,13092.8
Department of Health,Department of Health,28/06/2011,Research & development,Research and Development,ABERDEEN UNIVERSITY OF,ERS-435393-48670,5916
Department of Health,Department of Health,28/06/2011,Research & development,Research and Development,ABERDEEN UNIVERSITY OF,ERS-435393-48670,8458
Department of Health,Department of Health,28/06/2011,Research & development,Research and Development,ABERDEEN UNIVERSITY OF,ERS-435393-48670,104592
Department of Health,Department of Health,28/06/2011,Research & development,Research and Development,ALDER HEY CHILDRENS NHS FOUNDATION TRUST,ERS-435394-48594,74915
Department of Health,Department of Health,28/06/2011,Research & development,Research and Development,ALDER HEY CHILDRENS NHS FOUNDATION TRUST,ERS-435394-48594,8912
Department of Health,Department of Health,28/06/2011,Research & development,Research and Development,ALDER HEY CHILDRENS NHS FOUNDATION TRUST,ERS-435394-48594,29987
Department of Health,Department of Health,28/06/2011,Research & development,Research and Development,BANGOR UNIVERSITY,ERS-435395-48722,20950.5
Department of Health,Department of Health,28/06/2011,Research & development,Research and Development,BANGOR UNIVERSITY,ERS-435395-48722,29922
